Service Area,Service Division,Cost Centre,Cost Centre Desc,Expense Type,Expense Code,Detailed Expense Type,Payment Date,Transaction Number,Amount Exc Vat,Supplier Name
Adults Wellbeing and Health,Head of Adults,051613,OP/PD Integrated Team - Easington Central,Transfer Payments,515201,Social Services Clients,01-May-2012,2441277-1236390H,"1,624.72",REDACTED - PAYMENT TO INDIVIDUAL
Adults Wellbeing and Health,Head of Adults,052731,PD Management,Supplies and Services,338365,Services,01-May-2012,2441309-108031,"2,589.04",CARE ABILITY.
Adults Wellbeing and Health,Head of Adults,052731,PD Management,Supplies and Services,338365,Services,01-May-2012,2441309-95020,"1,733.78",CARE ABILITY.
Adults Wellbeing and Health,Head of Adults,055634,Derwentside LD Community Services,Supplies and Services,384985,Miscellaneous Expenses,01-May-2012,2441322-022012,620.00,CONSETT METHODIST CHURCH.
Adults Wellbeing and Health,Head of Adults,055634,Derwentside LD Community Services,Supplies and Services,384985,Miscellaneous Expenses,01-May-2012,2441322-032012,620.00,CONSETT METHODIST CHURCH.
Adults Wellbeing and Health,Head of Adults,052354,West Locality LD Team,Transport,230007,Contract Hire,01-May-2012,2441324-3103,814.00,CROFT BUSINESS SERVICES (UK) LTD T/A CROFT TAXIS.
Adults Wellbeing and Health,Head of Adults,052760,OP Management,Summary reporting level,720045,Fees and Charges,01-May-2012,2441345-R,"1,671.32",REDACTED - PAYMENT TO INDIVIDUAL
Adults Wellbeing and Health,Head of Adults,057603,LD Supported Housing - Easington,Premises,125009,Rents,01-May-2012,2441380-MAY2012,585.06,REDACTED - PAYMENT TO INDIVIDUAL
Adults Wellbeing and Health,Head of Adults,052554,East Locality LD Team,Transport,230005,Contract Hire,01-May-2012,2441418-505,935.00,MACS TAXIS DURHAM LTD.
Adults Wellbeing and Health,Head of Adults,052354,West Locality LD Team,Third Party Payments,473101,Purchase of Care,01-May-2012,2441444-AD5003,"4,364.76",NORTH EAST AUTISM SOCIETY.
Adults Wellbeing and Health,Head of Adults,052354,West Locality LD Team,Third Party Payments,473101,Purchase of Care,01-May-2012,2441444-AD5004,"4,364.76",NORTH EAST AUTISM SOCIETY.
Adults Wellbeing and Health,Head of Adults,052354,West Locality LD Team,Third Party Payments,473101,Purchase of Care,01-May-2012,2441444-AD5005,"4,364.76",NORTH EAST AUTISM SOCIETY.
Adults Wellbeing and Health,Head of Adults,052354,West Locality LD Team,Third Party Payments,473101,Purchase of Care,01-May-2012,2441444-AD5006,"4,364.76",NORTH EAST AUTISM SOCIETY.
Adults Wellbeing and Health,Head of Adults,052354,West Locality LD Team,Third Party Payments,473101,Purchase of Care,01-May-2012,2441444-AD5007,"4,364.76",NORTH EAST AUTISM SOCIETY.
Adults Wellbeing and Health,Head of Adults,052354,West Locality LD Team,Third Party Payments,473101,Purchase of Care,01-May-2012,2441444-AD5065,"4,364.76",NORTH EAST AUTISM SOCIETY.
Adults Wellbeing and Health,Head of Adults,052354,West Locality LD Team,Third Party Payments,473101,Purchase of Care,01-May-2012,2441444-COM5590,"2,460.00",NORTH EAST AUTISM SOCIETY.
Adults Wellbeing and Health,Head of Adults,052554,East Locality LD Team,Third Party Payments,473101,Purchase of Care,01-May-2012,2441444-COM5592,"2,985.00",NORTH EAST AUTISM SOCIETY.
Adults Wellbeing and Health,Head of Adults,052554,East Locality LD Team,Third Party Payments,473101,Purchase of Care,01-May-2012,2441444-COM5593,693.00,NORTH EAST AUTISM SOCIETY.
Adults Wellbeing and Health,Head of Adults,052354,West Locality LD Team,Third Party Payments,473101,Purchase of Care,01-May-2012,2441444-D5002,"4,364.76",NORTH EAST AUTISM SOCIETY.
Adults Wellbeing and Health,Head of Adults,051623,OP/PD Integrated Team - Teesdale,Third Party Payments,472101,Purchase of Care,01-May-2012,2441482-172,881.70,RED KITE HOMECARE LTD.
Adults Wellbeing and Health,Head of Adults,051623,OP/PD Integrated Team - Teesdale,Third Party Payments,472101,Purchase of Care,01-May-2012,2441482-205,"1,168.20",RED KITE HOMECARE LTD.
Adults Wellbeing and Health,Planning and Performance,052953,Training - Social Work,Supplies and Services,352001,Conference Expenses,01-May-2012,2441385-00-016,966.00,JCK TRAINING.
Assistant Chief Executive,Partnerships & Community Engagement Div.,060660,Members Initiative Fund,Supplies and Services,384085,Miscellaneous Expenses,01-May-2012,2441419-BELJ01-12,500.00,MAD ALICE THEATRE CO LTD.
Children and Young Peoples Services,CYPS - Local Authority,085380,Adoption and Fostering Mgt,Third Party Payments,440027,Other Third Party Payments,01-May-2012,2440755-799848,"2,394.76",REDACTED - PAYMENT TO INDIVIDUAL
Children and Young Peoples Services,CYPS - Local Authority,085380,Adoption and Fostering Mgt,Third Party Payments,440027,Other Third Party Payments,01-May-2012,2441231-799847,"2,426.39",REDACTED - PAYMENT TO INDIVIDUAL
Children and Young Peoples Services,CYPS - Local Authority,085552,Services for Disabled Children,Third Party Payments,440999,Other Third Party Payments,01-May-2012,2441317-3136241,"19,251.00",CO DURHAM & DARLINGTON NHS FOUNDATION TRUST.
Children and Young Peoples Services,CYPS - Local Authority,077800,Special Schools General-LA,Transport,230007,Contract Hire,01-May-2012,2441318-8APR12,825.00,COLIN E GLEAVE.
Children and Young Peoples Services,CYPS - Local Authority,071700,Support for Parents and Families,Supplies and Services,384491,Miscellaneous Expenses,01-May-2012,2441329-SS4070,"1,702.50",DAWN TILL DUSK CHILDCARE.
Children and Young Peoples Services,CYPS - Local Authority,071801,Selby Cottage Childcare Centre,Transport,230007,Contract Hire,01-May-2012,2441359-555,"1,386.00",GEM TRAVEL.
Children and Young Peoples Services,CYPS - Local Authority,089720,Recruitment Scheme Provision,Summary reporting level,720246,Fees and Charges,01-May-2012,2441371-RA,"2,212.91",HERMITAGE ACADEMY.
Children and Young Peoples Services,CYPS - Local Authority,074693,St Bedes RC VA Comp Peterlee,Construction Work,908105,Construction work,01-May-2012,2441378-DURH/0214,"2,254,519.20",INSPIREDSPACES DURHAM LTD.
Children and Young Peoples Services,CYPS - Local Authority,074928,Stanley Academy BSF LA,Construction Work,908105,Construction work,01-May-2012,2441378-DURH/0226,"968,274.00",INSPIREDSPACES DURHAM LTD.
Children and Young Peoples Services,CYPS - Local Authority,085121,Children In Need Team 1 Stanley,Supplies and Services,384964,Miscellaneous Expenses,01-May-2012,2441379-92284,845.42,ITL NORTH EAST LTD.
Children and Young Peoples Services,CYPS - Local Authority,074944,North Durham Academy - H to S Transport,Transport,230007,Contract Hire,01-May-2012,2441393-11026105,605.00,REDACTED - PAYMENT TO INDIVIDUAL
Children and Young Peoples Services,CYPS - Local Authority,074944,North Durham Academy - H to S Transport,Transport,230007,Contract Hire,01-May-2012,2441393-11026106,550.00,REDACTED - PAYMENT TO INDIVIDUAL
Children and Young Peoples Services,CYPS - Local Authority,074154,Spennymoor Comprehensive-upper,Transport,230007,Contract Hire,01-May-2012,2441404-15466,"2,970.00",LEES COACHES.
Children and Young Peoples Services,CYPS - Local Authority,077800,Special Schools General-LA,Transport,230007,Contract Hire,01-May-2012,2441408-2673,"1,210.00",LINCAB TAXIS.
Children and Young Peoples Services,CYPS - Local Authority,078401,Other Further Education,Transport,230007,Contract Hire,01-May-2012,2441408-2676,"1,276.00",LINCAB TAXIS.
Children and Young Peoples Services,CYPS - Local Authority,073489,St Josephs RC VA Primary Durham,Transport,230007,Contract Hire,01-May-2012,2441418-504,546.00,MACS TAXIS DURHAM LTD.
Children and Young Peoples Services,CYPS - Local Authority,073161,Belmont CE Controlled Junior,Transport,230007,Contract Hire,01-May-2012,2441418-531,748.00,MACS TAXIS DURHAM LTD.
Children and Young Peoples Services,CYPS - Local Authority,077014,Walworth School,Transport,230007,Contract Hire,01-May-2012,2441428-19MAR12,"2,082.50",MOLLYS TAXIS.
Children and Young Peoples Services,CYPS - Local Authority,077800,Special Schools General-LA,Transport,230007,Contract Hire,01-May-2012,2441433-0011,"3,040.00",MR P CAHILL.
Children and Young Peoples Services,CYPS - Local Authority,077800,Special Schools General-LA,Transport,230007,Contract Hire,01-May-2012,2441434-085,"2,970.00",MR S BALL.
Children and Young Peoples Services,CYPS - Local Authority,077033,The Oaks School,Transport,230007,Contract Hire,01-May-2012,2441434-086,"1,364.00",MR S BALL.
Children and Young Peoples Services,CYPS - Local Authority,077033,The Oaks School,Transport,230007,Contract Hire,01-May-2012,2441434-089,"1,042.50",MR S BALL.
Children and Young Peoples Services,CYPS - Local Authority,072389,Bowburn Infant,Transport,230007,Contract Hire,01-May-2012,2441455-4732,"2,901.14",OVERLANDER LTD.
Children and Young Peoples Services,CYPS - Local Authority,074092,Greencroft Comprehensive-upper,Transport,230007,Contract Hire,01-May-2012,2441459-013,590.59,PAUL SAVAGE.
Children and Young Peoples Services,CYPS - Local Authority,085002,Senior Mangt - Children Inc. Agen,Third Party Payments,425020,Rendered by Voluntary Organisations,01-May-2012,2441461-9938,"8,372.00",PERCY HEDLEY FOUNDATION.
Children and Young Peoples Services,CYPS - Local Authority,078401,Other Further Education,Transport,230007,Contract Hire,01-May-2012,2441463-000960,738.20,PHILLIPS TAXIS LTD.
Children and Young Peoples Services,CYPS - Local Authority,085380,Adoption and Fostering Mgt,Employees,080025,Agency Staff,01-May-2012,2441479-1624744,"1,307.95",RANDSTAD CARE LTD.
Children and Young Peoples Services,CYPS - Local Authority,085380,Adoption and Fostering Mgt,Employees,080025,Agency Staff,01-May-2012,2441479-1625449,"1,110.00",RANDSTAD CARE LTD.
Children and Young Peoples Services,CYPS - Local Authority,085100,Children In Need Mangt,Third Party Payments,440056,Other Third Party Payments,01-May-2012,2441481-2445,"2,330.03",REACH OUT CARE SUPPORT SERVICES LTD.
Children and Young Peoples Services,CYPS - Local Authority,074215,Shotton Hall School,Transport,230007,Contract Hire,01-May-2012,2441498-1560,"1,474.00",SNOWDON COACHES.
Children and Young Peoples Services,CYPS - Local Authority,072536,Shotton Primary,Transport,230007,Contract Hire,01-May-2012,2441498-1561,"3,608.00",SNOWDON COACHES.
Children and Young Peoples Services,CYPS - Local Authority,074693,St Bedes RC VA Comp Peterlee,Transport,230007,Contract Hire,01-May-2012,2441498-1562,"1,364.00",SNOWDON COACHES.
Children and Young Peoples Services,CYPS - Local Authority,074280,Easington Community School,Transport,230007,Contract Hire,01-May-2012,2441498-1563,"5,175.00",SNOWDON COACHES.
Children and Young Peoples Services,CYPS - Local Authority,089720,Recruitment Scheme Provision,Summary reporting level,720246,Fees and Charges,01-May-2012,2441503-R,923.53,STAINDROP ACADEMY SCHOOL.
Children and Young Peoples Services,CYPS - Local Authority,077014,Walworth School,Transport,230007,Contract Hire,01-May-2012,2441507-E046AMAR12,504.00,STEPHEN COXON.
Children and Young Peoples Services,CYPS - Local Authority,074174,Teesdale School,Transport,230007,Contract Hire,01-May-2012,2441512-000939,969.76,TALLENTIRES LTD.
Children and Young Peoples Services,CYPS - Local Authority,073303,Bowes Hutchinson Endowed CE Primary,Transport,230007,Contract Hire,01-May-2012,2441512-000940,"1,929.84",TALLENTIRES LTD.
Children and Young Peoples Services,CYPS - Local Authority,074174,Teesdale School,Transport,230007,Contract Hire,01-May-2012,2441512-000941,"1,614.36",TALLENTIRES LTD.
Children and Young Peoples Services,CYPS - Local Authority,074174,Teesdale School,Transport,230007,Contract Hire,01-May-2012,2441512-000942,938.96,TALLENTIRES LTD.
Children and Young Peoples Services,CYPS - Local Authority,078418,14+ Foundation Learning,Supplies and Services,384906,Miscellaneous Expenses,01-May-2012,2441515-P2-I2,"1,000.00",THE ACADEMY AT SHOTTON HALL.
Children and Young Peoples Services,CYPS - Local Authority,089720,Recruitment Scheme Provision,Employees,040001,"Recruitment, Instruction and Training",01-May-2012,2441521-100000892148,552.00,TMP (UK) LTD (RECRUITMENT).
Children and Young Peoples Services,CYPS - Local Authority,074110,Consett Moorside Comprehensive,Transport,230007,Contract Hire,01-May-2012,2441525-898,953.81,TRAPPA`S TRAVEL.
Children and Young Peoples Services,CYPS - Local Authority,074110,Consett Moorside Comprehensive,Transport,230007,Contract Hire,01-May-2012,2441525-908,"1,467.40",TRAPPA`S TRAVEL.
Children and Young Peoples Services,CYPS - Local Authority,074110,Consett Moorside Comprehensive,Transport,230007,Contract Hire,01-May-2012,2441525-914,"1,173.92",TRAPPA`S TRAVEL.
Children and Young Peoples Services,CYPS - Local Authority,074092,Greencroft Comprehensive-upper,Transport,230007,Contract Hire,01-May-2012,2441530-900,594.00,WE CONNOR.
Children and Young Peoples Services,CYPS - Local Authority,074139,Wolsingham School and Comm College,Transport,230007,Contract Hire,01-May-2012,2441531-4072,"1,013.65",WEARDALE PRIVATE HIRE.
Children and Young Peoples Services,CYPS - Local Authority,074699,Secondary Schools General-LA,Transport,230007,Contract Hire,01-May-2012,2441531-4073,"1,716.00",WEARDALE PRIVATE HIRE.
Children and Young Peoples Services,CYPS - Local Authority,078401,Other Further Education,Transport,230007,Contract Hire,01-May-2012,2441531-4075,748.00,WEARDALE PRIVATE HIRE.
Children and Young Peoples Services,Dedicated Schools Grant,071100,Pupil Referral Unit,Transport,230007,Contract Hire,01-May-2012,2441375-002,768.00,IAN SOULSBY.
Children and Young Peoples Services,Dedicated Schools Grant,071100,Pupil Referral Unit,Transport,230007,Contract Hire,01-May-2012,2441408-2678,"1,606.00",LINCAB TAXIS.
Children and Young Peoples Services,Dedicated Schools Grant,071100,Pupil Referral Unit,Transport,230007,Contract Hire,01-May-2012,2441433-0013,"1,995.00",MR P CAHILL.
Children and Young Peoples Services,Dedicated Schools Grant,079095,Children In Public Care - Revenue,Supplies and Services,340001,Postages,01-May-2012,2441440-189611,"2,100.00",NEOPOST LTD CREDIFON RCB ACCOUNT.
Corporate Resources,Financing- Resources,065101,Management,Supplies and Services,332047,"Printing, Stationery and Gen Off Exps",01-May-2012,2441509-4945372,756.66,SUPPLIES TEAM LTD.
Corporate Resources,ICT Services incl. Design and Print,065487,ICT Telephony Recharges,Supplies and Services,344033,Telephones,01-May-2012,2441301-VP64934570Q00401AO,"9,616.81",BRITISH TELECOMMUNICATIONS PLC.
Corporate Resources,ICT Services incl. Design and Print,065447,External Applications Group - Corporate Applications,Supplies and Services,338027,Services,01-May-2012,2441448-I2132349,959.00,NORTHGATE INFORMATION SOLUTIONS UK LTD.
Corporate Resources,ICT Services incl. Design and Print,070204,ICT School Services - Systems and Repairs Team,Stock,926900,Stock in hand-Inventory system,01-May-2012,2441464-OP/I662500,"3,981.17",PHOENIX SOFTWARE LTD.
Corporate Resources,Legal & Democratic Services,067910,Democratic Representation,Supplies and Services,344014,Telephones,01-May-2012,2441452-36229860,537.33,O2 (UK) LTD.
Neighbourhood Services,Corporate Director + PA,010895,Corporate Director + PA,Supplies and Services,384956,Miscellaneous Expenses,01-May-2012,2441517-449868,"22,774.65",THE COPYRIGHT LICENSING AGENCY LTD.
Neighbourhood Services,Direct Services,010547,Fleet Holding Account-Durham,Transport,230710,Contract Hire,01-May-2012,2441285-AR/12/449389,"3,500.00",ASSET ADVANTAGE LTD.
Neighbourhood Services,Direct Services,020065,Contracts NE,Third Party Payments,430100,Rendered by Private Contractors,01-May-2012,2441288-27253,"1,376.00",AYCLIFFE FABRICATIONS LTD.
Neighbourhood Services,Direct Services,010561,Fleet Holding Account-Derwentside,Transport,230005,Contract Hire,01-May-2012,2441294-277910,"1,080.00",BICKFORD TRUCK HIRE LTD.
Neighbourhood Services,Direct Services,020074,Mechanical - (R&M),Supplies and Services,304221,Equipment and Materials,01-May-2012,2441295-B83549,787.10,BIDDLE AIR SYSTEMS LTD.
Neighbourhood Services,Direct Services,010864,Fleet Holding Account-Easington,Transport,230005,Contract Hire,01-May-2012,2441319-23629,500.00,COLLETT TRANSPORT SERVICES LTD.
Neighbourhood Services,Direct Services,010547,Fleet Holding Account-Durham,Transport,230005,Contract Hire,01-May-2012,2441319-23636,500.00,COLLETT TRANSPORT SERVICES LTD.
Neighbourhood Services,Direct Services,010551,Fleet Holding Account-Sedgefield,Transport,230005,Contract Hire,01-May-2012,2441330-069320,"1,998.81",DAWSONRENTALS/SWEEPERS.
Neighbourhood Services,Direct Services,010900,Central Fleet (Meadowfield Workshop),Third Party Payments,430100,Rendered by Private Contractors,01-May-2012,2441347-17288,613.62,ENTERPRISE ACCIDENT REPAIR CENTRE LTD.
Neighbourhood Services,Direct Services,010449,Street Scene Area East - Refuse Collection,Construction Work,908105,Construction work,01-May-2012,2441348-6686115,"2,033.04",ESE LTD (ENVIRONMENTAL SYSTEMS EXPERTISE)..
Neighbourhood Services,Direct Services,010449,Street Scene Area East - Refuse Collection,"Vehicles, Equipment, Furniture and Fittings",912529,Purchase-equipment,01-May-2012,2441348-6686545,"42,079.89",ESE LTD (ENVIRONMENTAL SYSTEMS EXPERTISE)..
Neighbourhood Services,Direct Services,017104,Meadowfield Depot,Stock,926900,Stock in hand-Inventory system,01-May-2012,2441351-OP/I258336,"2,402.65",FLEMING & CO (MACHINERY) LTD.
Neighbourhood Services,Direct Services,017104,Meadowfield Depot,Stock,926900,Stock in hand-Inventory system,01-May-2012,2441365-06/408565,560.62,GREENHAM TRADING LTD.
Neighbourhood Services,Direct Services,020076,Flooring,Supplies and Services,304221,Equipment and Materials,01-May-2012,2441368-4374833,729.30,HEADLAM (FLOORCOVERING DISTRIBUTORS) LTD.
Neighbourhood Services,Direct Services,020076,Flooring,Supplies and Services,304221,Equipment and Materials,01-May-2012,2441368-4374836,658.11,HEADLAM (FLOORCOVERING DISTRIBUTORS) LTD.
Neighbourhood Services,Direct Services,010900,Central Fleet (Meadowfield Workshop),Third Party Payments,430100,Rendered by Private Contractors,01-May-2012,2441407-120340,598.33,LIFTING & COOLING LTD.
Neighbourhood Services,Direct Services,010561,Fleet Holding Account-Derwentside,Transport,230005,Contract Hire,01-May-2012,2441411-84730,"1,870.00",LONDONDERRY GARAGE LTD.
Neighbourhood Services,Direct Services,020061,Building R&M,Third Party Payments,430100,Rendered by Private Contractors,01-May-2012,2441427-CWW/TLS/LTODD,956.50,MOLLHANN CONSTRUCTION LTD.
Neighbourhood Services,Direct Services,010328,Street Scene Area North - Refuse Collection,Transport,230005,Contract Hire,01-May-2012,2441449-SL01075891INV,550.00,NORTHGATE VEHICLE HIRE LTD.
Neighbourhood Services,Direct Services,010911,Housing Maintenance (Durham City Homes),Supplies and Services,304221,Equipment and Materials,01-May-2012,2441468-4120/132124,831.61,PLUMBING TRADE SUPPLIES LTD.
Neighbourhood Services,Direct Services,010911,Housing Maintenance (Durham City Homes),Supplies and Services,304221,Equipment and Materials,01-May-2012,2441469-4120/131900,737.21,PLUMBING TRADE SUPPLIES LTD.
Neighbourhood Services,Direct Services,010911,Housing Maintenance (Durham City Homes),Supplies and Services,304221,Equipment and Materials,01-May-2012,2441469-4120/132033,855.61,PLUMBING TRADE SUPPLIES LTD.
Neighbourhood Services,Direct Services,017104,Meadowfield Depot,Stock,926900,Stock in hand-Inventory system,01-May-2012,2441472-220938,977.50,PRISM MEDICAL UK WESTHOLME DIVISION.
Neighbourhood Services,Direct Services,020051,Building General,Supplies and Services,384167,Miscellaneous Expenses,01-May-2012,2441495-WWB1014364,"2,269.70",SGS UNITED KINGDOM LTD.
Neighbourhood Services,Direct Services,020051,Building General,Supplies and Services,384167,Miscellaneous Expenses,01-May-2012,2441495-WWB1019298,529.95,SGS UNITED KINGDOM LTD.
Neighbourhood Services,Direct Services,020090,Asbestos,Third Party Payments,430100,Rendered by Private Contractors,01-May-2012,2441501-7005966400,769.00,SPEEDY HIRE (SCOTLAND) LTD.
Neighbourhood Services,Direct Services,010561,Fleet Holding Account-Derwentside,Transport,230005,Contract Hire,01-May-2012,2441505-47453,814.00,STENNETTS LTD.
Neighbourhood Services,Direct Services,020090,Asbestos,Third Party Payments,430100,Rendered by Private Contractors,01-May-2012,2441524-107023,"8,041.50",TRADESLINK ASBESTOS SERVICES LTD.
Neighbourhood Services,Direct Services,020090,Asbestos,Third Party Payments,430100,Rendered by Private Contractors,01-May-2012,2441524-107054,"9,489.00",TRADESLINK ASBESTOS SERVICES LTD.
Neighbourhood Services,Direct Services,017104,Meadowfield Depot,Stock,926900,Stock in hand-Inventory system,01-May-2012,2441528-INV007394,"68,083.01",URBIS LIGHTING LTD.
Neighbourhood Services,Direct Services,017104,Meadowfield Depot,Stock,926900,Stock in hand-Inventory system,01-May-2012,2441529-10848,638.88,WARD TIMBER LTD.
Neighbourhood Services,Direct Services,017104,Meadowfield Depot,Stock,926900,Stock in hand-Inventory system,01-May-2012,2441535-72465985,"2,163.28",WOLSELEY UK LTD.
Neighbourhood Services,Direct Services,017104,Meadowfield Depot,Stock,926900,Stock in hand-Inventory system,01-May-2012,2441535-72466073,"2,512.64",WOLSELEY UK LTD.
Neighbourhood Services,Direct Services,017104,Meadowfield Depot,Stock,926900,Stock in hand-Inventory system,01-May-2012,2441535-72466137,"2,633.14",WOLSELEY UK LTD.
Neighbourhood Services,Direct Services,017104,Meadowfield Depot,Stock,926900,Stock in hand-Inventory system,01-May-2012,2441535-72514179,"2,525.97",WOLSELEY UK LTD.
Neighbourhood Services,Direct Services,020074,Mechanical - (R&M),Supplies and Services,304221,Equipment and Materials,01-May-2012,2441535-72779869,"1,417.89",WOLSELEY UK LTD.
Neighbourhood Services,Projects and Business services,010832,Business Support,Supplies and Services,340001,Postages,01-May-2012,2441485-9038306398,"1,576.83",ROYAL MAIL GROUP PLC.
Neighbourhood Services,Sport & Leisure,010670,Event-Open Sea Angling Competition,Supplies and Services,304221,Equipment and Materials,01-May-2012,2441349-650554,"1,800.00",EVE TRAKWAY LTD.
Neighbourhood Services,Sport & Leisure,010661,Meadowfield Leisure Centre,Supplies and Services,304221,Equipment and Materials,01-May-2012,2441460-2114,770.00,PEAKBODY FITNESS EQUIPMENT LTD.
Neighbourhood Services,Technical Services,018400,018400 Highways Operations - West,Supplies and Services,304221,Equipment and Materials,01-May-2012,2441274-LLI247140,"1,152.00",A THOMPSON & SONS LTD.
Neighbourhood Services,Technical Services,018400,018400 Highways Operations - West,Supplies and Services,304221,Equipment and Materials,01-May-2012,2441279-16142930,"1,225.12",AGGREGATE INDUSTRIES UK LTD.
Neighbourhood Services,Technical Services,018300,Highways Operations - East,Supplies and Services,304221,Equipment and Materials,01-May-2012,2441280-16104717,735.46,AGGREGATE INDUSTRIES UK LTD.
Neighbourhood Services,Technical Services,018400,018400 Highways Operations - West,Supplies and Services,304221,Equipment and Materials,01-May-2012,2441280-16153003,"1,289.60",AGGREGATE INDUSTRIES UK LTD.
Neighbourhood Services,Technical Services,018400,018400 Highways Operations - West,Supplies and Services,304221,Equipment and Materials,01-May-2012,2441280-16153868,"1,175.17",AGGREGATE INDUSTRIES UK LTD.
Neighbourhood Services,Technical Services,018400,018400 Highways Operations - West,Supplies and Services,304221,Equipment and Materials,01-May-2012,2441280-16160453,"1,676.48",AGGREGATE INDUSTRIES UK LTD.
Neighbourhood Services,Technical Services,018400,018400 Highways Operations - West,Supplies and Services,304221,Equipment and Materials,01-May-2012,2441280-16167564,"1,289.60",AGGREGATE INDUSTRIES UK LTD.
Neighbourhood Services,Technical Services,018400,018400 Highways Operations - West,Supplies and Services,304221,Equipment and Materials,01-May-2012,2441280-16174314,"1,289.60",AGGREGATE INDUSTRIES UK LTD.
Neighbourhood Services,Technical Services,018400,018400 Highways Operations - West,Supplies and Services,304221,Equipment and Materials,01-May-2012,2441280-16196835,610.95,AGGREGATE INDUSTRIES UK LTD.
Neighbourhood Services,Technical Services,018400,018400 Highways Operations - West,Supplies and Services,304221,Equipment and Materials,01-May-2012,2441280-16204402,618.13,AGGREGATE INDUSTRIES UK LTD.
Neighbourhood Services,Technical Services,018400,018400 Highways Operations - West,Supplies and Services,304221,Equipment and Materials,01-May-2012,2441280-16212157,610.95,AGGREGATE INDUSTRIES UK LTD.
Neighbourhood Services,Technical Services,018400,018400 Highways Operations - West,Supplies and Services,304221,Equipment and Materials,01-May-2012,2441280-16219693,510.42,AGGREGATE INDUSTRIES UK LTD.
Neighbourhood Services,Technical Services,018300,Highways Operations - East,Supplies and Services,304221,Equipment and Materials,01-May-2012,2441280-16219697,"1,516.00",AGGREGATE INDUSTRIES UK LTD.
Neighbourhood Services,Technical Services,018400,018400 Highways Operations - West,Supplies and Services,304221,Equipment and Materials,01-May-2012,2441280-16229887,975.49,AGGREGATE INDUSTRIES UK LTD.
Neighbourhood Services,Technical Services,018500,Highways Operations Countywide,Supplies and Services,304221,Equipment and Materials,01-May-2012,2441280-16290598,934.49,AGGREGATE INDUSTRIES UK LTD.
Neighbourhood Services,Technical Services,018400,018400 Highways Operations - West,Supplies and Services,304221,Equipment and Materials,01-May-2012,2441280-16305600,"1,636.97",AGGREGATE INDUSTRIES UK LTD.
Neighbourhood Services,Technical Services,018300,Highways Operations - East,Supplies and Services,304221,Equipment and Materials,01-May-2012,2441280-16311851,646.20,AGGREGATE INDUSTRIES UK LTD.
Neighbourhood Services,Technical Services,018400,018400 Highways Operations - West,Supplies and Services,304221,Equipment and Materials,01-May-2012,2441280-16311852,600.91,AGGREGATE INDUSTRIES UK LTD.
Neighbourhood Services,Technical Services,010821,Design Services,Supplies and Services,384167,Miscellaneous Expenses,01-May-2012,2441303-400356900,584.00,BSI MANAGEMENT SYSTEMS.
Neighbourhood Services,Technical Services,011036,Highway Capitalised Maintenance - Carriageway A Class Roads,Construction Work,908105,Construction work,01-May-2012,2441323-14462,"4,058.43",COUPE LINE LTD.
Neighbourhood Services,Technical Services,018400,018400 Highways Operations - West,Supplies and Services,304221,Equipment and Materials,01-May-2012,2441364-15803,866.00,GRAB & DELIVER LTD.
Neighbourhood Services,Technical Services,018901,Plant Hire,Supplies and Services,304358,Equipment and Materials,01-May-2012,2441376-70,"7,422.60",IAN WILSON.
Neighbourhood Services,Technical Services,018901,Plant Hire,Supplies and Services,304358,Equipment and Materials,01-May-2012,2441386-434,"4,524.40",JOHN DOBSON PLANT HIRE LTD.
Neighbourhood Services,Technical Services,018901,Plant Hire,Supplies and Services,304358,Equipment and Materials,01-May-2012,2441387-11671,988.52,JOHN R BUTTERFIELD LTD.
Neighbourhood Services,Technical Services,018901,Plant Hire,Supplies and Services,304358,Equipment and Materials,01-May-2012,2441387-11723,"1,378.58",JOHN R BUTTERFIELD LTD.
Neighbourhood Services,Technical Services,018901,Plant Hire,Supplies and Services,304358,Equipment and Materials,01-May-2012,2441387-11758,"1,093.46",JOHN R BUTTERFIELD LTD.
Neighbourhood Services,Technical Services,018300,Highways Operations - East,Supplies and Services,304221,Equipment and Materials,01-May-2012,2441496-562487,648.62,SHERBURN STONE CO LTD.
Neighbourhood Services,Technical Services,018400,018400 Highways Operations - West,Supplies and Services,304221,Equipment and Materials,01-May-2012,2441497-195468,822.70,SIGNPOST SOLUTIONS LTD.
Neighbourhood Services,Technical Services,018901,Plant Hire,Supplies and Services,304357,Equipment and Materials,01-May-2012,2441532-28033,603.58,WERNICK HIRE LTD.
Neighbourhood Services,Technical Services,018901,Plant Hire,Supplies and Services,304358,Equipment and Materials,01-May-2012,2441537-2507,580.00,YOULL CONSTRUCTION LTD.
Neighbourhood Services,Technical Services,018901,Plant Hire,Supplies and Services,304358,Equipment and Materials,01-May-2012,2441537-2512,580.00,YOULL CONSTRUCTION LTD.
RED HRA,Housing Revenue Account,034054,Decent Homes,Supplies and Services,332047,"Printing, Stationery and Gen Off Exps",01-May-2012,2441441-ID118133,717.00,NESS FURNITURE LTD.
RED HRA,Housing Revenue Account,034054,Decent Homes,Supplies and Services,338027,Services,01-May-2012,2441493-CTS251148,"1,650.00",SAVILLS (L&P) LTD.
RED HRA,HRA Capital,039845,Medical Aid Adaptations,Construction Work,908105,Construction work,01-May-2012,2441341-8276,909.68,EASIBATHE LTD.
RED HRA,HRA Capital,039845,Medical Aid Adaptations,Construction Work,908105,Construction work,01-May-2012,2441341-8353,"2,788.57",EASIBATHE LTD.
RED HRA,HRA Capital,039845,Medical Aid Adaptations,Construction Work,908105,Construction work,01-May-2012,2441341-8445,"3,414.93",EASIBATHE LTD.
RED HRA,HRA Capital,039847,Asbestos Manaement,Construction Work,908105,Construction work,01-May-2012,2441425-CON51888,647.00,MIS ENVIRONMENTAL LTD.
RED HRA,HRA Capital,035024,DCH Heating,Construction Work,908105,Construction work,01-May-2012,2441450-912621214,590.00,NORTHUMBRIAN WATER LTD.
Regeneration & Economic Development,Economic Development and Housing,031573,Temp Accom - B& B - Area Team 2 Durham City,Third Party Payments,479111,Purchase of Care,01-May-2012,2441334-207,"1,865.58",DURHAM ACTION ON SINGLE HOUSING.
Regeneration & Economic Development,Economic Development and Housing,031592,Choice Based Lettings,Third Party Payments,440999,Other Third Party Payments,01-May-2012,2441398-85030708405,"41,480.00",KIRKLEES METROPOLITAN COUNCIL.
Regeneration & Economic Development,Economic Development and Housing,030745,Apprenticeship & Employment Subsidy,Supplies and Services,384700,Miscellaneous Expenses,01-May-2012,2441409-RWOOD-YR1CONT,"1,165.60",LINDY JAZZ.
Regeneration & Economic Development,Economic Development and Housing,030599,Netpark Incubator 2,Construction Work,908105,Construction work,01-May-2012,2441511-C706A/MW/KM,"1,541.38",T MANNERS & SONS LTD.
Regeneration & Economic Development,Housing General Fund,039834,Disabled Facility Grants Mand,Cap Exp on Grants & Other Financial Assistance (REFCUS),918401,Capital grants,01-May-2012,2441341-8182,"4,418.50",EASIBATHE LTD.
Regeneration & Economic Development,"Spatial Policy, Planning, Assets & Environment",039975,AWAY from G,Fees,901002,Professional Fees,01-May-2012,2441308-470001358,"6,040.00",CARBON TRUST CERTIFICATION LTD.
Regeneration & Economic Development,"Spatial Policy, Planning, Assets & Environment",031150,Groundwork North East,Work In Progress,928002,Rechargeable works,01-May-2012,2441354-INS6-JP,"19,930.91",G & B CIVIL ENGINEERING LTD.
Regeneration & Economic Development,Strategy Programmes and Performance,030567,RDPE East Durham Local Action Group,Supplies and Services,384899,Miscellaneous Expenses,01-May-2012,2441336-EDDCC001A/05,"3,244.77",DURHAM RURAL COMMUNITY COUNCIL.
Regeneration & Economic Development,Strategy Programmes and Performance,030568,RDPE North Pennine Dales Local Action  Group,Supplies and Services,384899,Miscellaneous Expenses,01-May-2012,2441336-NPD120/5,"1,322.15",DURHAM RURAL COMMUNITY COUNCIL.
Regeneration & Economic Development,Strategy Programmes and Performance,030567,RDPE East Durham Local Action Group,Supplies and Services,384899,Miscellaneous Expenses,01-May-2012,2441342-ED052/2,"2,362.69",EAST DURHAM BUSINESS SERVICE.
Regeneration & Economic Development,Strategy Programmes and Performance,030568,RDPE North Pennine Dales Local Action  Group,Supplies and Services,384899,Miscellaneous Expenses,01-May-2012,2441516-NPD147/2,"1,075.00",THE BILTONG MAN.
Regeneration & Economic Development,Transport,032158,Rural Bus Services-Grant Aided,Third Party Payments,430106,Rendered by Private Contractors,01-May-2012,2441313-71ETCM-F-4/3/12-31/3/12,"4,860.15",CENTRAL COACHES.
Regeneration & Economic Development,Transport,032153,Public Transport - Bus Contracts,Third Party Payments,430106,Rendered by Private Contractors,01-May-2012,2441392-PPT2974-4/3-31/3/12,"2,637.00",KEITH HAMMOND.
Regeneration & Economic Development,Transport,032155,Public Trnsprt - Info Services,Supplies and Services,384540,Miscellaneous Expenses,01-May-2012,2441445-G/13/12,685.46,NORTH EAST TRANSPORT INFORMATION SERVICE LTD.
Regeneration & Economic Development,Transport,032153,Public Transport - Bus Contracts,Third Party Payments,430106,Rendered by Private Contractors,01-May-2012,2441473-266,"10,543.68",R COOPER T/A DC TAXIS.
Regeneration & Economic Development,Transport,032221,Health ECR,Third Party Payments,430100,Rendered by Private Contractors,01-May-2012,2441502-1200005512,770.00,ST JOHN AMBULANCE.
Adults Wellbeing and Health,Commissioning inc Supporting People,054812,Gala Theatre - Catering etc,Supplies and Services,324117,Provisions,02-May-2012,2441696-22/2874289,641.19,PALMER & HARVEY MCLEAN LTD.
Adults Wellbeing and Health,Head of Adults,051622,OP/PD Integrated Team - Bishop Auckland,Transfer Payments,515201,Social Services Clients,02-May-2012,206417-1236602H,737.76,REDACTED - PAYMENT TO INDIVIDUAL
Adults Wellbeing and Health,Head of Adults,052760,OP Management,Supplies and Services,338045,Services,02-May-2012,206483-CB/0223-167076,630.00,MISS VICTORIA BUTLER COLE.
Adults Wellbeing and Health,Head of Adults,052750,Learning Disability Management,Summary reporting level,720044,Fees and Charges,02-May-2012,206489-R-CA,949.76,REDACTED - PAYMENT TO INDIVIDUAL
Adults Wellbeing and Health,Head of Adults,052354,West Locality LD Team,Third Party Payments,478101,Purchase of Care,02-May-2012,206503-2029182,"1,346.70",REDACTED - PAYMENT TO INDIVIDUAL
Adults Wellbeing and Health,Head of Adults,052354,West Locality LD Team,Third Party Payments,478101,Purchase of Care,02-May-2012,206503-2029183,"1,346.70",REDACTED - PAYMENT TO INDIVIDUAL
Adults Wellbeing and Health,Head of Adults,052554,East Locality LD Team,Third Party Payments,478101,Purchase of Care,02-May-2012,206509-2030683,"1,199.55",REDACTED - PAYMENT TO INDIVIDUAL
Adults Wellbeing and Health,Head of Adults,051602,OP/PD Integrated Team - Derwentside East,Transfer Payments,515201,Social Services Clients,02-May-2012,206538-1233409H,587.46,REDACTED - PAYMENT TO INDIVIDUAL
Adults Wellbeing and Health,Head of Adults,052354,West Locality LD Team,Third Party Payments,473111,Purchase of Care,02-May-2012,2441596-0002JAN12,"1,760.00",DEACONSTAR LTD.
Adults Wellbeing and Health,Head of Adults,053745,Cheveley House Residential Home,Supplies and Services,324117,Provisions,02-May-2012,2441645-K83495,"1,293.29",JR HOLLAND FOOD SERVICES LTD.
Adults Wellbeing and Health,Head of Adults,052128,Affective Disorders MH (CIT) Area 1,Employees,080025,Agency Staff,02-May-2012,2441738-430021904,813.75,TEES ESK & WEAR VALLEY NHS FOUNDATION TRUST.
Adults Wellbeing and Health,Head of Adults,052227,Psychosis Community Intervention Team Area 2,Employees,080025,Agency Staff,02-May-2012,2441738-430021905,"1,627.42",TEES ESK & WEAR VALLEY NHS FOUNDATION TRUST.
Adults Wellbeing and Health,Head of Adults,052228,Affective Disorders MH (CIT) Area 2,Employees,080025,Agency Staff,02-May-2012,2441738-430021906,"1,627.42",TEES ESK & WEAR VALLEY NHS FOUNDATION TRUST.
Adults Wellbeing and Health,Head of Adults,051633,OP/PD Occupational Therapy - Team East,Supplies and Services,338365,Services,02-May-2012,2441748-OP/I052545,695.00,TOTAL HYGIENE LTD.
Adults Wellbeing and Health,Planning and Performance,052951,Training - Integrated Professional,Employees,040149,"Recruitment, Instruction and Training",02-May-2012,2441771-10150,"2,715.00",ZINE UK LTD.
Adults Wellbeing and Health,Social Inclusion,056804,LSC-Deprived Neighbourhoods,Supplies and Services,384199,Miscellaneous Expenses,02-May-2012,2441561-4APRIL2012,"7,352.60",BRIDGE TRAINING OPPORTUNITIES FOR WOMEN.
Adults Wellbeing and Health,Social Inclusion,056653,LMAP - SNU - Area 6,Supplies and Services,384199,Miscellaneous Expenses,02-May-2012,2441606-18753,714.29,ELECTRONIC SECURITY SOLUTIONS LTD.
Adults Wellbeing and Health,Social Inclusion,056804,LSC-Deprived Neighbourhoods,Supplies and Services,384199,Miscellaneous Expenses,02-May-2012,2441720-2167,"4,875.31",ST MARGARETS CENTRE.
Adults Wellbeing and Health,Social Inclusion,056805,Business Development,Supplies and Services,384540,Miscellaneous Expenses,02-May-2012,2441744-100000888238,"1,932.00",TMP (UK) LTD (RECRUITMENT).
Assistant Chief Executive,Partnerships & Community Engagement Div.,060660,Members Initiative Fund,Supplies and Services,384085,Miscellaneous Expenses,02-May-2012,206352-STEW02-12SHIA02-12,500.00,1ST LEADGATE SCOUTS.
Assistant Chief Executive,Partnerships & Community Engagement Div.,060660,Members Initiative Fund,Supplies and Services,384085,Miscellaneous Expenses,02-May-2012,206393-ALDB02-12,500.00,DERWENTSIDE DISTRICT SCOUTS.
Assistant Chief Executive,Partnerships & Community Engagement Div.,060660,Members Initiative Fund,Supplies and Services,384085,Miscellaneous Expenses,02-May-2012,206399-STOD01-12,500.00,DURHAM CHRISTIAN PARTNERSHIP.
Assistant Chief Executive,Partnerships & Community Engagement Div.,060660,Members Initiative Fund,Supplies and Services,384085,Miscellaneous Expenses,02-May-2012,206399-STOD02-12,500.00,DURHAM CHRISTIAN PARTNERSHIP.
Assistant Chief Executive,Partnerships & Community Engagement Div.,060660,Members Initiative Fund,Supplies and Services,384085,Miscellaneous Expenses,02-May-2012,206420-WLKM04-12CROR02-12,"2,000.00",FRAMWELLGATE MOOR & NEWTON HALL CARNIVAL GROUP.
Assistant Chief Executive,Partnerships & Community Engagement Div.,060660,Members Initiative Fund,Supplies and Services,384085,Miscellaneous Expenses,02-May-2012,206557-RICG02-12ROWJ02-12,500.00,STAINDROP PARISH COUNCIL.
Assistant Chief Executive,Partnerships & Community Engagement Div.,060660,Members Initiative Fund,Supplies and Services,384085,Miscellaneous Expenses,02-May-2012,206560-STOD03-12,500.00,STUDENT COMMUNITY ACTION.
Assistant Chief Executive,Partnerships & Community Engagement Div.,060660,Members Initiative Fund,Supplies and Services,384085,Miscellaneous Expenses,02-May-2012,206572-STOD04-12,500.00,VISION IMPAIRMENT PROBLEM SOLVING IN CO DURHAM.
Assistant Chief Executive,Partnerships & Community Engagement Div.,060661,Members Neighbourhood Fund,Cap Exp on Grants & Other Financial Assistance (REFCUS),918004,Contributions to other bodies,02-May-2012,206576-STAN031-NB11,"3,000.00",WHITE LE HEAD BOWLING CLUB.
Assistant Chief Executive,Policy & Communications Division,060280,County Durham News,Supplies and Services,332029,"Printing, Stationery and Gen Off Exps",02-May-2012,2441544-0000041704,"19,100.42",ACORN WEB OFFSET LTD.
Assistant Chief Executive,Policy & Communications Division,060270,Media Relations,Supplies and Services,372009,Subscriptions,02-May-2012,2441686-Q310668,"3,404.18",NEWSPAPER LICENSING AGENCY LTD.
Children and Young Peoples Services,CYPS - Local Authority,079579,EPS-Publications,Supplies and Services,352001,Conference Expenses,02-May-2012,206354-623/12,"1,152.00",ACTION DYSLEXIA.
Children and Young Peoples Services,CYPS - Local Authority,085100,Children In Need Mangt,Supplies and Services,338045,Services,02-May-2012,206397-1117,615.69,DR ALISON WESTMAN.
Children and Young Peoples Services,CYPS - Local Authority,085100,Children In Need Mangt,Supplies and Services,338045,Services,02-May-2012,206436-ND11C00022,"2,600.00",HMCTS.
Children and Young Peoples Services,CYPS - Local Authority,085121,Children In Need Team 1 Stanley,Supplies and Services,338045,Services,02-May-2012,206533-10810,"1,723.14",NICHOLSON MARTIN LEGGE & MILLER.
Children and Young Peoples Services,CYPS - Local Authority,077800,Special Schools General-LA,Transport,230007,Contract Hire,02-May-2012,206558-000830,"1,290.00",STATION TAXIS (SUNDERLAND).
Children and Young Peoples Services,CYPS - Local Authority,078401,Other Further Education,Transport,230007,Contract Hire,02-May-2012,206558-001153,"1,160.00",STATION TAXIS (SUNDERLAND).
Children and Young Peoples Services,CYPS - Local Authority,077800,Special Schools General-LA,Transport,230007,Contract Hire,02-May-2012,206558-001154,"1,677.00",STATION TAXIS (SUNDERLAND).
Children and Young Peoples Services,CYPS - Local Authority,078100,Curric and Professional Development,Supplies and Services,338027,Services,02-May-2012,2441554-151,750.00,AT CONSULTANTS FOR CHANGE LTD.
Children and Young Peoples Services,CYPS - Local Authority,085380,Adoption and Fostering Mgt,Supplies and Services,336005,Advertising,02-May-2012,2441556-816688,"1,140.00",BAUER MEDIA GROUP LTD.
Children and Young Peoples Services,CYPS - Local Authority,071737,Family Development,Employees,080025,Agency Staff,02-May-2012,2441575-3135654,"53,667.63",CO DURHAM & DARLINGTON NHS FOUNDATION TRUST.
Children and Young Peoples Services,CYPS - Local Authority,071737,Family Development,Employees,080025,Agency Staff,02-May-2012,2441575-3136470,"31,021.48",CO DURHAM & DARLINGTON NHS FOUNDATION TRUST.
Children and Young Peoples Services,CYPS - Local Authority,085380,Adoption and Fostering Mgt,Employees,080025,Agency Staff,02-May-2012,2441581-515415,"195,653.44",COMENSURA LTD.
Children and Young Peoples Services,CYPS - Local Authority,078100,Curric and Professional Development,Supplies and Services,338027,Services,02-May-2012,2441605-00087,500.00,EDUPEDIA LTD.
Children and Young Peoples Services,CYPS - Local Authority,085002,Senior Mangt - Children Inc. Agen,Third Party Payments,425040,Rendered by Voluntary Organisations,02-May-2012,2441612-1988,"3,128.40",FOSTER CARE SOLUTIONS LTD.
Children and Young Peoples Services,CYPS - Local Authority,085002,Senior Mangt - Children Inc. Agen,Third Party Payments,425040,Rendered by Voluntary Organisations,02-May-2012,2441612-1995,"2,914.20",FOSTER CARE SOLUTIONS LTD.
Children and Young Peoples Services,CYPS - Local Authority,085002,Senior Mangt - Children Inc. Agen,Third Party Payments,425040,Rendered by Voluntary Organisations,02-May-2012,2441612-1996,"3,000.00",FOSTER CARE SOLUTIONS LTD.
Children and Young Peoples Services,CYPS - Local Authority,085002,Senior Mangt - Children Inc. Agen,Third Party Payments,425040,Rendered by Voluntary Organisations,02-May-2012,2441613-FC010041,980.00,FOSTER CARES LTD.
Children and Young Peoples Services,CYPS - Local Authority,085002,Senior Mangt - Children Inc. Agen,Third Party Payments,425040,Rendered by Voluntary Organisations,02-May-2012,2441613-FC010060,980.00,FOSTER CARES LTD.
Children and Young Peoples Services,CYPS - Local Authority,085002,Senior Mangt - Children Inc. Agen,Third Party Payments,425040,Rendered by Voluntary Organisations,02-May-2012,2441617-20876,"3,232.99",FUTURES FOR CHILDREN LTD.
Children and Young Peoples Services,CYPS - Local Authority,085002,Senior Mangt - Children Inc. Agen,Third Party Payments,425040,Rendered by Voluntary Organisations,02-May-2012,2441617-21164,"2,502.96",FUTURES FOR CHILDREN LTD.
Children and Young Peoples Services,CYPS - Local Authority,085002,Senior Mangt - Children Inc. Agen,Third Party Payments,425040,Rendered by Voluntary Organisations,02-May-2012,2441617-21173,"3,128.70",FUTURES FOR CHILDREN LTD.
Children and Young Peoples Services,CYPS - Local Authority,085002,Senior Mangt - Children Inc. Agen,Third Party Payments,425040,Rendered by Voluntary Organisations,02-May-2012,2441617-21174,"3,128.70",FUTURES FOR CHILDREN LTD.
Children and Young Peoples Services,CYPS - Local Authority,085002,Senior Mangt - Children Inc. Agen,Third Party Payments,425040,Rendered by Voluntary Organisations,02-May-2012,2441617-21176,"3,128.70",FUTURES FOR CHILDREN LTD.
Children and Young Peoples Services,CYPS - Local Authority,085002,Senior Mangt - Children Inc. Agen,Third Party Payments,425040,Rendered by Voluntary Organisations,02-May-2012,2441617-21177,"3,128.70",FUTURES FOR CHILDREN LTD.
Children and Young Peoples Services,CYPS - Local Authority,085002,Senior Mangt - Children Inc. Agen,Third Party Payments,425040,Rendered by Voluntary Organisations,02-May-2012,2441617-21309,"3,000.00",FUTURES FOR CHILDREN LTD.
Children and Young Peoples Services,CYPS - Local Authority,071630,"Play, Learning and Childcare",Supplies and Services,384491,Miscellaneous Expenses,02-May-2012,2441620-242,600.00,GIANT STEPS LTD.
Children and Young Peoples Services,CYPS - Local Authority,079012,Lang Unit-Cheveley Pk-Transport,Transport,230007,Contract Hire,02-May-2012,2441627-05/2012,944.68,HARRY DICKSON.
Children and Young Peoples Services,CYPS - Local Authority,071947,SSEYCG - D Catch,Transfer Payments,510026,School Children,02-May-2012,2441631-AB-APR21-MAY12,"1,033.60",HOWLETCH & SHOTTON CHILDCARE LTD.
Children and Young Peoples Services,CYPS - Local Authority,071947,SSEYCG - D Catch,Transfer Payments,510026,School Children,02-May-2012,2441631-BEB-APR12-MAY12,"1,149.12",HOWLETCH & SHOTTON CHILDCARE LTD.
Children and Young Peoples Services,CYPS - Local Authority,085163,Children in Need Team Easington,Employees,080025,Agency Staff,02-May-2012,2441634-A054,"1,018.60",IMPROVEMENT FOCUS LTD.
Children and Young Peoples Services,CYPS - Local Authority,073489,St Josephs RC VA Primary Durham,Transport,230007,Contract Hire,02-May-2012,2441644-STJOSEPHS46,798.27,JOVIAL PRIVATE HIRE.
Children and Young Peoples Services,CYPS - Local Authority,077032,Trinity SEN Centre,Transport,230007,Contract Hire,02-May-2012,2441644-TRINITY14,803.00,JOVIAL PRIVATE HIRE.
Children and Young Peoples Services,CYPS - Local Authority,074215,Shotton Hall School,"Vehicles, Equipment, Furniture and Fittings",912701,Computer equipment,02-May-2012,2441649-KODSI50009,"3,451.04",KODIT DATABASE LTD.
Children and Young Peoples Services,CYPS - Local Authority,074218,Wellfield School,Transport,230007,Contract Hire,02-May-2012,2441651-15463,"3,732.96",LEES COACHES.
Children and Young Peoples Services,CYPS - Local Authority,074681,St Johns RC VA Comp Bp Auck,Transport,230007,Contract Hire,02-May-2012,2441651-15465,"2,739.00",LEES COACHES.
Children and Young Peoples Services,CYPS - Local Authority,074681,St Johns RC VA Comp Bp Auck,Transport,230007,Contract Hire,02-May-2012,2441652-2675,"2,298.34",LINCAB TAXIS.
Children and Young Peoples Services,CYPS - Local Authority,085161,Children In Need Team Seaham,Employees,080025,Agency Staff,02-May-2012,2441653-37405,"1,159.80",LIQUID PERSONNEL LTD.
Children and Young Peoples Services,CYPS - Local Authority,085161,Children In Need Team Seaham,Employees,080025,Agency Staff,02-May-2012,2441653-38179,"1,101.40",LIQUID PERSONNEL LTD.
Children and Young Peoples Services,CYPS - Local Authority,071903,EYDCP-Sustainability EDS,Supplies and Services,338027,Services,02-May-2012,2441677-03-2012,630.00,REDACTED - PAYMENT TO INDIVIDUAL
Children and Young Peoples Services,CYPS - Local Authority,085122,Children In Need Team 2 Stanley,Supplies and Services,384507,Miscellaneous Expenses,02-May-2012,2441679-AA,509.92,REDACTED - PAYMENT TO INDIVIDUAL
Children and Young Peoples Services,CYPS - Local Authority,085002,Senior Mangt - Children Inc. Agen,Third Party Payments,425040,Rendered by Voluntary Organisations,02-May-2012,2441681-NFA58899,"3,232.99",NATIONAL FOSTERING AGENCY LTD.
Children and Young Peoples Services,CYPS - Local Authority,085002,Senior Mangt - Children Inc. Agen,Third Party Payments,425040,Rendered by Voluntary Organisations,02-May-2012,2441681-NFA58900,"3,232.99",NATIONAL FOSTERING AGENCY LTD.
Children and Young Peoples Services,CYPS - Local Authority,085002,Senior Mangt - Children Inc. Agen,Third Party Payments,425040,Rendered by Voluntary Organisations,02-May-2012,2441681-NFA58901,"3,100.00",NATIONAL FOSTERING AGENCY LTD.
Children and Young Peoples Services,CYPS - Local Authority,085002,Senior Mangt - Children Inc. Agen,Third Party Payments,425040,Rendered by Voluntary Organisations,02-May-2012,2441681-NFA58902,"3,100.00",NATIONAL FOSTERING AGENCY LTD.
Children and Young Peoples Services,CYPS - Local Authority,085002,Senior Mangt - Children Inc. Agen,Third Party Payments,425040,Rendered by Voluntary Organisations,02-May-2012,2441681-NFA58903,582.84,NATIONAL FOSTERING AGENCY LTD.
Children and Young Peoples Services,CYPS - Local Authority,085002,Senior Mangt - Children Inc. Agen,Third Party Payments,425040,Rendered by Voluntary Organisations,02-May-2012,2441681-NFA58904,582.84,NATIONAL FOSTERING AGENCY LTD.
Children and Young Peoples Services,CYPS - Local Authority,071903,EYDCP-Sustainability EDS,Supplies and Services,338027,Services,02-May-2012,2441695-1201,"1,660.00",OUTDOOR LEARNING IN NORTHUMBERLAND LTD.
Children and Young Peoples Services,CYPS - Local Authority,071947,SSEYCG - D Catch,Transfer Payments,510026,School Children,02-May-2012,2441727-7548,558.00,SUNSHINE DAY NURSERY.
Children and Young Peoples Services,CYPS - Local Authority,071947,SSEYCG - D Catch,Transfer Payments,510026,School Children,02-May-2012,2441729-7547,"1,860.00",SUNSHINE DAY NURSERY.
Children and Young Peoples Services,CYPS - Local Authority,085002,Senior Mangt - Children Inc. Agen,Third Party Payments,425040,Rendered by Voluntary Organisations,02-May-2012,2441732-105840,811.00,SWIIS (UK) LTD.
Children and Young Peoples Services,CYPS - Local Authority,085002,Senior Mangt - Children Inc. Agen,Third Party Payments,425040,Rendered by Voluntary Organisations,02-May-2012,2441732-110481,902.00,SWIIS (UK) LTD.
Children and Young Peoples Services,CYPS - Local Authority,085002,Senior Mangt - Children Inc. Agen,Third Party Payments,425040,Rendered by Voluntary Organisations,02-May-2012,2441732-110823,902.00,SWIIS (UK) LTD.
Children and Young Peoples Services,CYPS - Local Authority,085002,Senior Mangt - Children Inc. Agen,Third Party Payments,425040,Rendered by Voluntary Organisations,02-May-2012,2441732-111257,902.00,SWIIS (UK) LTD.
Children and Young Peoples Services,CYPS - Local Authority,085002,Senior Mangt - Children Inc. Agen,Third Party Payments,425040,Rendered by Voluntary Organisations,02-May-2012,2441732-111534,"1,342.00",SWIIS (UK) LTD.
Children and Young Peoples Services,CYPS - Local Authority,085002,Senior Mangt - Children Inc. Agen,Third Party Payments,425040,Rendered by Voluntary Organisations,02-May-2012,2441732-111535,902.00,SWIIS (UK) LTD.
Children and Young Peoples Services,CYPS - Local Authority,073501,St Josephs RC VA Primary Murton,Cap Exp on Grants & Other Financial Assistance (REFCUS),918501,Exp assets not owned by authority,02-May-2012,2441734-INS5-SJ,"12,871.96",T MANNERS & SONS LTD.
Children and Young Peoples Services,CYPS - Local Authority,085002,Senior Mangt - Children Inc. Agen,Third Party Payments,425040,Rendered by Voluntary Organisations,02-May-2012,2441736-15730,"6,771.30",TEAM FOSTERING.
Children and Young Peoples Services,CYPS - Local Authority,085002,Senior Mangt - Children Inc. Agen,Third Party Payments,425040,Rendered by Voluntary Organisations,02-May-2012,2441736-15731,"6,977.01",TEAM FOSTERING.
Children and Young Peoples Services,CYPS - Local Authority,085002,Senior Mangt - Children Inc. Agen,Third Party Payments,425040,Rendered by Voluntary Organisations,02-May-2012,2441736-16216,"5,924.12",TEAM FOSTERING.
Children and Young Peoples Services,CYPS - Local Authority,085002,Senior Mangt - Children Inc. Agen,Third Party Payments,425040,Rendered by Voluntary Organisations,02-May-2012,2441736-16651,"5,914.20",TEAM FOSTERING.
Children and Young Peoples Services,CYPS - Local Authority,085002,Senior Mangt - Children Inc. Agen,Third Party Payments,425040,Rendered by Voluntary Organisations,02-May-2012,2441736-16653,"3,128.40",TEAM FOSTERING.
Children and Young Peoples Services,CYPS - Local Authority,085002,Senior Mangt - Children Inc. Agen,Third Party Payments,425040,Rendered by Voluntary Organisations,02-May-2012,2441736-16663,"9,642.60",TEAM FOSTERING.
Children and Young Peoples Services,CYPS - Local Authority,085002,Senior Mangt - Children Inc. Agen,Third Party Payments,425040,Rendered by Voluntary Organisations,02-May-2012,2441736-16676,"3,128.40",TEAM FOSTERING.
Children and Young Peoples Services,CYPS - Local Authority,085002,Senior Mangt - Children Inc. Agen,Third Party Payments,425040,Rendered by Voluntary Organisations,02-May-2012,2441736-16691,"3,128.40",TEAM FOSTERING.
Children and Young Peoples Services,CYPS - Local Authority,085002,Senior Mangt - Children Inc. Agen,Third Party Payments,425040,Rendered by Voluntary Organisations,02-May-2012,2441736-16692,"3,128.40",TEAM FOSTERING.
Children and Young Peoples Services,CYPS - Local Authority,085002,Senior Mangt - Children Inc. Agen,Third Party Payments,425040,Rendered by Voluntary Organisations,02-May-2012,2441736-16695,"3,128.40",TEAM FOSTERING.
Children and Young Peoples Services,CYPS - Local Authority,085537,Full Circle,Employees,080025,Agency Staff,02-May-2012,2441738-430021886,"6,953.25",TEES ESK & WEAR VALLEY NHS FOUNDATION TRUST.
Children and Young Peoples Services,CYPS - Local Authority,071442,Durham One Point Hub,Supplies and Services,304421,Equipment and Materials,02-May-2012,2441755-394307,630.51,UNITED CARLTON OFFICE SYSTEMS LTD.
Children and Young Peoples Services,CYPS - Local Authority,076026,Middleton-in-Teesdale FSC,Supplies and Services,304083,Equipment and Materials,02-May-2012,2441756-1756,"3,189.93",UPNORTH FOODSERVICE EQUIPMENT LTD.
Children and Young Peoples Services,CYPS - Local Authority,071799,Sure Start - General,Supplies and Services,384199,Miscellaneous Expenses,02-May-2012,2441763-708657,"1,980.00",WICKSTEED LEISURE LTD.
Children and Young Peoples Services,CYPS - Local Authority,085002,Senior Mangt - Children Inc. Agen,Third Party Payments,425040,Rendered by Voluntary Organisations,02-May-2012,2441770-4652,"3,232.86",YOUNG FOUNDATIONS LTD.
Children and Young Peoples Services,Dedicated Schools Grant,077099,Special General,Supplies and Services,304259,Equipment and Materials,02-May-2012,2441656-1431,894.99,LYNCH HEALTHCARE LTD.
Children and Young Peoples Services,Dedicated Schools Grant,079040,SENSS-HQ,Supplies and Services,332047,"Printing, Stationery and Gen Off Exps",02-May-2012,2441731-4945050,731.23,SUPPLIES TEAM LTD.
Corporate Resources,Financing- Resources,065124,Benefits (inc Admin Grant),Employees,080025,Agency Staff,02-May-2012,2441671-90097909,"30,210.00",MOUCHEL BUSINESS SERVICES LTD.
Corporate Resources,Financing- Resources,065101,Management,Supplies and Services,340001,Postages,02-May-2012,2441710-9038372831,"1,353.89",ROYAL MAIL GROUP PLC.
Corporate Resources,Financing- Resources,065124,Benefits (inc Admin Grant),Employees,080025,Agency Staff,02-May-2012,2441725-90286752,"13,351.30",STOCKPORT MBC.
Corporate Resources,Human Resources Total,065113,Payroll,Supplies and Services,372009,Subscriptions,02-May-2012,2441555-B0801920120405,"1,400.00",BACS PAYMENT SCHEMES LTD.
Corporate Resources,Human Resources Total,065113,Payroll,Supplies and Services,332047,"Printing, Stationery and Gen Off Exps",02-May-2012,2441690-I2131105,988.00,NORTHGATE ARINSO UK LTD.
Corporate Resources,ICT Services incl. Design and Print,065433,Spatial Technologies,Supplies and Services,342051,Computers and Communications,02-May-2012,206423-106642,"3,733.20",GGP SYSTEMS LTD.
Corporate Resources,ICT Services incl. Design and Print,065487,ICT Telephony Recharges,Supplies and Services,344033,Telephones,02-May-2012,2441563-VP16860270Q08101,"230,170.88",BRITISH TELECOMMUNICATIONS PLC.
Corporate Resources,ICT Services incl. Design and Print,065431,Applications and Development,Employees,080025,Agency Staff,02-May-2012,2441572-C/RB108344,950.00,CIVICA UK LTD.
Corporate Resources,ICT Services incl. Design and Print,070204,ICT School Services - Systems and Repairs Team,Stock,926900,Stock in hand-Inventory system,02-May-2012,2441731-4945209,506.32,SUPPLIES TEAM LTD.
Corporate Resources,ICT Services incl. Design and Print,065481,Technical Services,Supplies and Services,342033,Computers and Communications,02-May-2012,2441750-DL037681,820.00,TSG ENTERPRISE SOLUTIONS.
Corporate Resources,ICT Services incl. Design and Print,065487,ICT Telephony Recharges,Supplies and Services,344014,Telephones,02-May-2012,2441757-62373222,959.13,VODAFONE CORPORATE LTD.
Corporate Resources,ICT Services incl. Design and Print,065487,ICT Telephony Recharges,Supplies and Services,344014,Telephones,02-May-2012,2441757-62704057,"4,438.05",VODAFONE CORPORATE LTD.
Corporate Resources,ICT Services incl. Design and Print,065487,ICT Telephony Recharges,Supplies and Services,344014,Telephones,02-May-2012,2441757-63079043,994.07,VODAFONE CORPORATE LTD.
Corporate Resources,ICT Services incl. Design and Print,065487,ICT Telephony Recharges,Supplies and Services,344014,Telephones,02-May-2012,2441757-63079241,"20,910.63",VODAFONE CORPORATE LTD.
Corporate Resources,ICT Services incl. Design and Print,065487,ICT Telephony Recharges,Supplies and Services,344014,Telephones,02-May-2012,2441757-63079771,"20,332.44",VODAFONE CORPORATE LTD.
Corporate Resources,ICT Services incl. Design and Print,065487,ICT Telephony Recharges,Supplies and Services,344014,Telephones,02-May-2012,2441757-63083429,"1,254.39",VODAFONE CORPORATE LTD.
Corporate Resources,ICT Services incl. Design and Print,065487,ICT Telephony Recharges,Supplies and Services,344014,Telephones,02-May-2012,2441757-83083417,"1,084.26",VODAFONE CORPORATE LTD.
Corporate Resources,ICT Services incl. Design and Print,065481,Technical Services,Supplies and Services,344014,Telephones,02-May-2012,2441758-63040492,"1,050.00",VODAFONE LTD.
Corporate Resources,ICT Services incl. Design and Print,065487,ICT Telephony Recharges,Supplies and Services,344014,Telephones,02-May-2012,2441758-63079016,"27,603.41",VODAFONE LTD.
Corporate Resources,ICT Services incl. Design and Print,065487,ICT Telephony Recharges,Supplies and Services,344014,Telephones,02-May-2012,2441758-63079383,"20,983.79",VODAFONE LTD.
Corporate Resources,ICT Services incl. Design and Print,065487,ICT Telephony Recharges,Supplies and Services,344014,Telephones,02-May-2012,2441758-63083423,"7,732.63",VODAFONE LTD.
Corporate Resources,ICT Services incl. Design and Print,065487,ICT Telephony Recharges,Supplies and Services,344014,Telephones,02-May-2012,2441758-63083427,"1,079.04",VODAFONE LTD.
Corporate Resources,ICT Services incl. Design and Print,070204,ICT School Services - Systems and Repairs Team,Supplies and Services,304303,Equipment and Materials,02-May-2012,2441769-R427039,"2,548.00",XMA LTD.
Corporate Resources,Legal & Democratic Services,067843,Registrars-Barnard Castle,Premises,125009,Rents,02-May-2012,206363-R-J-D,"3,000.00",BARNARD CASTLE & TEASDALE FMR AUC MART CO LTD.
Neighbourhood Services,Direct Services,010547,Fleet Holding Account-Durham,Transport,230710,Contract Hire,02-May-2012,2441552-AR/12/449493,"3,550.00",ASSET ADVANTAGE LTD.
Neighbourhood Services,Direct Services,010314,Street Scene Area - Churchyards & Cemeteries,Premises,108099,Service Repairs and Maintenance,02-May-2012,2441553-B-V-R,"1,080.00",ASTBURY CONTRACTS.
Neighbourhood Services,Direct Services,021311,Catering - Police HQ,Supplies and Services,324117,Provisions,02-May-2012,2441558-22268885,756.66,BRAKE BROS FOODSERVICE LTD.
Neighbourhood Services,Direct Services,021311,Catering - Police HQ,Supplies and Services,324117,Provisions,02-May-2012,2441558-9080626065,608.13,BRAKE BROS FOODSERVICE LTD.
Neighbourhood Services,Direct Services,021242,Catering - County Hall Restaurant,Supplies and Services,324117,Provisions,02-May-2012,2441559-5800036,623.14,BRAMBLES FOODS LTD.
Neighbourhood Services,Direct Services,021311,Catering - Police HQ,Supplies and Services,324117,Provisions,02-May-2012,2441565-MB30752,627.89,CAFFE VINCI.
Neighbourhood Services,Direct Services,010900,Central Fleet (Meadowfield Workshop),Stock,926004,Stock,02-May-2012,2441567-264356,650.50,CARRS BILLINGTON AGRICULTURE.
Neighbourhood Services,Direct Services,010402,Street Scene Area South - Dry Recycling,Transport,230005,Contract Hire,02-May-2012,2441579-5751,863.57,COLIN BUTLER FREIGHT.
Neighbourhood Services,Direct Services,010547,Fleet Holding Account-Durham,Transport,230005,Contract Hire,02-May-2012,2441580-23891,550.00,COLLETT TRANSPORT SERVICES LTD.
Neighbourhood Services,Direct Services,010864,Fleet Holding Account-Easington,Transport,230005,Contract Hire,02-May-2012,2441580-23893,550.00,COLLETT TRANSPORT SERVICES LTD.
Neighbourhood Services,Direct Services,010367,Street Scene Area South - Grounds Maintenance,Supplies and Services,304221,Equipment and Materials,02-May-2012,2441610-28625,"1,540.00",EVEREDGE.
Neighbourhood Services,Direct Services,021242,Catering - County Hall Restaurant,Supplies and Services,324117,Provisions,02-May-2012,2441645-K83493,"2,394.99",JR HOLLAND FOOD SERVICES LTD.
Neighbourhood Services,Direct Services,010525,Catering - Green Lane Canteen,Supplies and Services,324117,Provisions,02-May-2012,2441645-K83512,705.64,JR HOLLAND FOOD SERVICES LTD.
Neighbourhood Services,Direct Services,010314,Street Scene Area - Churchyards & Cemeteries,Supplies and Services,304259,Equipment and Materials,02-May-2012,2441680-128123,704.00,MTS BOBCAT.
Neighbourhood Services,Direct Services,020067,Contracts SE,Third Party Payments,430100,Rendered by Private Contractors,02-May-2012,2441687-10019041,"19,522.10",NORSTEAD.
Neighbourhood Services,Direct Services,017104,Meadowfield Depot,Stock,926900,Stock in hand-Inventory system,02-May-2012,2441708-219234,822.40,RITHERDON & CO LTD.
Neighbourhood Services,Direct Services,020061,Building R&M,Third Party Payments,430100,Rendered by Private Contractors,02-May-2012,2441734-J0505/TL/EP,"4,347.94",T MANNERS & SONS LTD.
Neighbourhood Services,Direct Services,010367,Street Scene Area South - Grounds Maintenance,Supplies and Services,304221,Equipment and Materials,02-May-2012,2441752-92226,660.45,TUDOR ENVIRONMENTAL.
Neighbourhood Services,Direct Services,010907,Street Scene Area East - Technical Support,Supplies and Services,304421,Equipment and Materials,02-May-2012,2441755-394256,593.66,UNITED CARLTON OFFICE SYSTEMS LTD.
Neighbourhood Services,Direct Services,010904,Street Scene Area North - Technical Support,Supplies and Services,304421,Equipment and Materials,02-May-2012,2441755-394263,827.27,UNITED CARLTON OFFICE SYSTEMS LTD.
Neighbourhood Services,Direct Services,020069,Northumberland Contract,Third Party Payments,430100,Rendered by Private Contractors,02-May-2012,2441768-4855,"1,692.40",WS CONTROLS.
Neighbourhood Services,"Environment,Health & Consumer Protection",010984,Training and Development,Employees,040149,"Recruitment, Instruction and Training",02-May-2012,206437-1651,600.00,HSF TRAINING LTD.
Neighbourhood Services,"Environment,Health & Consumer Protection",010829,Environment Protection,Supplies and Services,384999,Miscellaneous Expenses,02-May-2012,206495-191347,"1,000.00",MR PAUL CURRER.
Neighbourhood Services,"Environment,Health & Consumer Protection",010984,Training and Development,Employees,040149,"Recruitment, Instruction and Training",02-May-2012,2441570-802330611,561.00,CITY & GUILDS OF LONDON INSTITUTE.
Neighbourhood Services,Projects and Business services,022801,Waste Project,Supplies and Services,338027,Services,02-May-2012,2441639-B1682500/007/SAA,"5,820.58",JACOBS ENGINEERING UK LTD.
Neighbourhood Services,Sport & Leisure,011056,AAP Funding - Sport & Leisure,Supplies and Services,304221,Equipment and Materials,02-May-2012,206457-3748,"1,220.00",KIELDER FOREST PRODUCTS LTD.
Neighbourhood Services,Sport & Leisure,011026,Localities - Dales,Supplies and Services,338099,Services,02-May-2012,206575-C,500.00,WEAR VALLEY CRICKET DEVELOPMENT GROUP.
Neighbourhood Services,Sport & Leisure,010691,Riverside Park,Supplies and Services,324117,Provisions,02-May-2012,2441558-21925659,"1,276.42",BRAKE BROS FOODSERVICE LTD.
Neighbourhood Services,Sport & Leisure,011028,Localities - Sedgefield,Supplies and Services,304221,Equipment and Materials,02-May-2012,2441573-1058,"1,150.00",CJ SPORTS LTD.
Neighbourhood Services,Sport & Leisure,011031,County Wide Sport,Employees,080030,Agency Staff,02-May-2012,2441597-DGA/2211/02,"1,960.00",DEERNESS GYMNASTICS ACADEMY.
Neighbourhood Services,Sport & Leisure,011062,Future Leisure in Coxhoe,Summary reporting level,720810,Fees and Charges,02-May-2012,2441616-APRIL1,"7,304.97",FUTURE LEISURE IN COXHOE (FLIC).
Neighbourhood Services,Sport & Leisure,010870,Facilities Management - Chester-le-Street Leisure Centre (North),Supplies and Services,384540,Miscellaneous Expenses,02-May-2012,2441744-100000885946,947.00,TMP (UK) LTD (RECRUITMENT).
Neighbourhood Services,Technical Services,018300,Highways Operations - East,Supplies and Services,304221,Equipment and Materials,02-May-2012,206359-12270,"4,989.30",APOLLO PRODUCTS LTD.
Neighbourhood Services,Technical Services,011039,Highway Capitalised Maintenance - Carriageway UNC Class Roads,Construction Work,908105,Construction work,02-May-2012,206571-19240,"31,495.00",VAISALA LTD.
Neighbourhood Services,Technical Services,018901,Plant Hire,Supplies and Services,304357,Equipment and Materials,02-May-2012,206578-N65820,"1,637.30",WILLIAMSON CONSTRUCTION EQUIPMENT LTD.
Neighbourhood Services,Technical Services,018400,018400 Highways Operations - West,Supplies and Services,304221,Equipment and Materials,02-May-2012,2441542-LLI245550,"1,031.18",A THOMPSON & SONS LTD.
Neighbourhood Services,Technical Services,018500,Highways Operations Countywide,Supplies and Services,304221,Equipment and Materials,02-May-2012,2441547-16305599,"1,221.85",AGGREGATE INDUSTRIES UK LTD.
Neighbourhood Services,Technical Services,018500,Highways Operations Countywide,Supplies and Services,304221,Equipment and Materials,02-May-2012,2441547-16311850,530.49,AGGREGATE INDUSTRIES UK LTD.
Neighbourhood Services,Technical Services,018500,Highways Operations Countywide,Supplies and Services,304221,Equipment and Materials,02-May-2012,2441547-16335379,528.31,AGGREGATE INDUSTRIES UK LTD.
Neighbourhood Services,Technical Services,018500,Highways Operations Countywide,Supplies and Services,304221,Equipment and Materials,02-May-2012,2441547-16335380,860.35,AGGREGATE INDUSTRIES UK LTD.
Neighbourhood Services,Technical Services,018500,Highways Operations Countywide,Supplies and Services,304221,Equipment and Materials,02-May-2012,2441547-16335381,"1,032.37",AGGREGATE INDUSTRIES UK LTD.
Neighbourhood Services,Technical Services,018500,Highways Operations Countywide,Supplies and Services,304221,Equipment and Materials,02-May-2012,2441547-16341534,540.34,AGGREGATE INDUSTRIES UK LTD.
Neighbourhood Services,Technical Services,018500,Highways Operations Countywide,Supplies and Services,304221,Equipment and Materials,02-May-2012,2441547-16341535,531.99,AGGREGATE INDUSTRIES UK LTD.
Neighbourhood Services,Technical Services,018500,Highways Operations Countywide,Supplies and Services,304221,Equipment and Materials,02-May-2012,2441547-16348472,"1,159.42",AGGREGATE INDUSTRIES UK LTD.
Neighbourhood Services,Technical Services,018901,Plant Hire,Supplies and Services,304357,Equipment and Materials,02-May-2012,2441560-53045123,512.31,BRANDON HIRE PLC.
Neighbourhood Services,Technical Services,010932,Design Services - Buildings,Employees,080025,Agency Staff,02-May-2012,2441581-515608,"204,540.03",COMENSURA LTD.
Neighbourhood Services,Technical Services,018400,018400 Highways Operations - West,Third Party Payments,430100,Rendered by Private Contractors,02-May-2012,2441586-14616,"5,142.25",COUPE LINE LTD.
Neighbourhood Services,Technical Services,018300,Highways Operations - East,Third Party Payments,430100,Rendered by Private Contractors,02-May-2012,2441586-14618,"1,020.12",COUPE LINE LTD.
Neighbourhood Services,Technical Services,025121,Strategic Highways - Drainage and Coast Protection,Supplies and Services,384956,Miscellaneous Expenses,02-May-2012,2441665-17041,"3,212.42",MICRO DRAINAGE LTD.
Neighbourhood Services,Technical Services,018400,018400 Highways Operations - West,Supplies and Services,304221,Equipment and Materials,02-May-2012,2441702-045492,949.49,PREMIER WASTE MANAGEMENT LTD.
Neighbourhood Services,Technical Services,018500,Highways Operations Countywide,Supplies and Services,304221,Equipment and Materials,02-May-2012,2441702-045493,"1,004.60",PREMIER WASTE MANAGEMENT LTD.
Neighbourhood Services,Technical Services,018400,018400 Highways Operations - West,Third Party Payments,430100,Rendered by Private Contractors,02-May-2012,2441706-2513,"1,224.00",RINGLAND SCAFFOLDING.
Neighbourhood Services,Technical Services,018901,Plant Hire,Supplies and Services,304357,Equipment and Materials,02-May-2012,2441714-031,"2,364.00",SHIREHAVEN LTD.
Neighbourhood Services,Technical Services,018901,Plant Hire,Supplies and Services,304357,Equipment and Materials,02-May-2012,2441714-032,"1,664.00",SHIREHAVEN LTD.
Neighbourhood Services,Technical Services,018901,Plant Hire,Supplies and Services,304358,Equipment and Materials,02-May-2012,2441714-2012050,660.00,SHIREHAVEN LTD.
Neighbourhood Services,Technical Services,018400,018400 Highways Operations - West,Supplies and Services,304221,Equipment and Materials,02-May-2012,2441764-114,500.00,WILF HUSBAND PLANT HIRE.
RED HRA,Dale & Valley Homes - HRA Rent Control Account,034999,Dale & Valley Homes - HRA Rent Control Account,Creditors,952191,Creditor-HRA-rents-refunds,02-May-2012,206498-RR,"1,248.86",REDACTED - PAYMENT TO INDIVIDUAL
RED HRA,Dale & Valley Homes - HRA Rent Control Account,034999,Dale & Valley Homes - HRA Rent Control Account,Creditors,952191,Creditor-HRA-rents-refunds,02-May-2012,2441657-RR,"1,113.01",REDACTED - PAYMENT TO INDIVIDUAL
RED HRA,East Durham Homes - HRA Rent Control Account,034998,East Durham Homes - HRA Rent Control Account,Supplies and Services,384999,Miscellaneous Expenses,02-May-2012,206519-RR-1049649,"1,352.36",REDACTED - PAYMENT TO INDIVIDUAL
RED HRA,East Durham Homes - HRA Rent Control Account,034998,East Durham Homes - HRA Rent Control Account,Supplies and Services,384999,Miscellaneous Expenses,02-May-2012,206528-1027666000,616.41,REDACTED - PAYMENT TO INDIVIDUAL
RED HRA,Housing Revenue Account,034054,Decent Homes,Supplies and Services,338029,Services,02-May-2012,2441676-D33/201,"2,250.00",MRS J BLENKINSHIP.
RED HRA,HRA Capital,039856,Decent Homes Schemes,Construction Work,908105,Construction work,02-May-2012,2441648-11100013,"51,180.35",KIER SERVICES LTD.
RED HRA,HRA Capital,039847,Asbestos Manaement,Construction Work,908105,Construction work,02-May-2012,2441666-CON52170,925.50,MIS ENVIRONMENTAL LTD.
RED HRA,HRA Capital,039847,Asbestos Manaement,Construction Work,908105,Construction work,02-May-2012,2441666-CON52193,565.50,MIS ENVIRONMENTAL LTD.
RED HRA,HRA Capital,039847,Asbestos Manaement,Construction Work,908105,Construction work,02-May-2012,2441666-CON52217,951.00,MIS ENVIRONMENTAL LTD.
Regeneration & Economic Development,Economic Development and Housing,031581,Prevention Fund - Area Team 1,Supplies and Services,384999,Miscellaneous Expenses,02-May-2012,2441568-35ET,530.00,CASTLEDENE PROPERTY MANAGEMENT LTD.
Regeneration & Economic Development,Economic Development and Housing,039615,Consett - Shop Fronts,Cap Exp on Grants & Other Financial Assistance (REFCUS),918401,Capital grants,02-May-2012,2441577-TBIG,"6,444.13",CO-OPERATIVE PHARMACY.
Regeneration & Economic Development,Economic Development and Housing,030653,Derwentside Business Centre - EBC,Premises,120021,Energy Costs,02-May-2012,2441584-07138212,552.82,CORONA ENERGY RETAIL 2 LTD.
Regeneration & Economic Development,Economic Development and Housing,030653,Derwentside Business Centre - EBC,Premises,120021,Energy Costs,02-May-2012,2441584-07138216,744.05,CORONA ENERGY RETAIL 2 LTD.
Regeneration & Economic Development,Economic Development and Housing,039615,Consett - Shop Fronts,Cap Exp on Grants & Other Financial Assistance (REFCUS),918401,Capital grants,02-May-2012,2441647-TBIG,"3,000.00",KENNETH ATKINSON & JANE ATKINSON.
Regeneration & Economic Development,Economic Development and Housing,039615,Consett - Shop Fronts,Cap Exp on Grants & Other Financial Assistance (REFCUS),918401,Capital grants,02-May-2012,2441647-TBIG2,"3,730.00",KENNETH ATKINSON & JANE ATKINSON.
Regeneration & Economic Development,Economic Development and Housing,039603,BCV - Shop Fronts,"Vehicles, Equipment, Furniture and Fittings",912521,Purchase-furniture and fittings,02-May-2012,2441670-92023410,"1,076.00",MORPLAN LTD.
Regeneration & Economic Development,Economic Development and Housing,039603,BCV - Shop Fronts,"Vehicles, Equipment, Furniture and Fittings",912521,Purchase-furniture and fittings,02-May-2012,2441670-92023411,610.00,MORPLAN LTD.
Regeneration & Economic Development,Economic Development and Housing,039830,Masterplan-Property Aqcuis-Chilton,Acquisition Of Land And Buildings,905009,Acquisition of land and buildings,02-May-2012,2441672-HLP,"4,520.25",REDACTED - PAYMENT TO INDIVIDUAL
Regeneration & Economic Development,Economic Development and Housing,039830,Masterplan-Property Aqcuis-Chilton,Acquisition Of Land And Buildings,905009,Acquisition of land and buildings,02-May-2012,2441724-HLP,"5,037.00",REDACTED - PAYMENT TO INDIVIDUAL
Regeneration & Economic Development,Housing General Fund,039834,Disabled Facility Grants Mand,Cap Exp on Grants & Other Financial Assistance (REFCUS),918401,Capital grants,02-May-2012,2441587-084,"1,630.00",CRAIG PATTERSON T/A LET ME GET YOU WET.
Regeneration & Economic Development,Housing General Fund,039614,Wembley Phase 2 (John & Thomas Street),Construction Work,908105,Construction work,02-May-2012,2441614-120116,"172,315.88",FRANK HASLAM MILAN & CO LTD.
Regeneration & Economic Development,Housing General Fund,039679,Group Repair - Dawdon Ph 9,Construction Work,908105,Construction work,02-May-2012,2441734-C602,"20,335.00",T MANNERS & SONS LTD.
Regeneration & Economic Development,Housing General Fund,039834,Disabled Facility Grants Mand,Fees,901001,Internal fees,02-May-2012,2441743-SITRH/0004267,580.00,THREE RIVERS HOUSING ASSOCIATION LTD.
Regeneration & Economic Development,"Spatial Policy, Planning, Assets & Environment",031036,Planning Appeals & Enquiries,Supplies and Services,338045,Services,02-May-2012,206481-184088-A19,"2,475.00",MISS NICOLA ALLAN.
Regeneration & Economic Development,"Spatial Policy, Planning, Assets & Environment",031080,Limestone Landscape,Supplies and Services,304421,Equipment and Materials,02-May-2012,2441755-394321,726.81,UNITED CARLTON OFFICE SYSTEMS LTD.
Regeneration & Economic Development,Transport,032199,Bus Shelters,Premises,106099,Centrally Controlled Rep and Maint,02-May-2012,206544-924976,"4,116.00",PETERLEE GLASS CO LTD.
Regeneration & Economic Development,Transport,032201,LTP - Bus Stop Infrastructure QBP,Construction Work,908105,Construction work,02-May-2012,2441586-INS14612-B-S,"1,196.60",COUPE LINE LTD.
Regeneration & Economic Development,Transport,032201,LTP - Bus Stop Infrastructure QBP,Construction Work,908105,Construction work,02-May-2012,2441586-INS14638-B-S,"3,040.71",COUPE LINE LTD.
Adults Wellbeing and Health,Commissioning inc Supporting People,052113,Comm.-Older People SLAs,Third Party Payments,473111,Purchase of Care,03-May-2012,2441789-DCA-J,"24,288.00",ALL SAINTS DAY CENTRE.
Adults Wellbeing and Health,Commissioning inc Supporting People,054751,DLI Museum - LLC,Supplies and Services,384199,Miscellaneous Expenses,03-May-2012,2441794-PNT/312,"2,000.00",APOLLO PAVILION COMMUNITY ASSOCIATION.
Adults Wellbeing and Health,Commissioning inc Supporting People,054747,SF Killhope Musuem - Generation 2012,Supplies and Services,304259,Equipment and Materials,03-May-2012,2441806-K,"1,199.55",BARNARD CASTLE DISTRICT GUIDES.
Adults Wellbeing and Health,Commissioning inc Supporting People,052115,Commissioning - Carers SLCs,Third Party Payments,479101,Purchase of Care,03-May-2012,2441848-14362,"11,333.32",FAMILY ACTION.
Adults Wellbeing and Health,Commissioning inc Supporting People,054819,Gala Theatre - Theatre Productions,Supplies and Services,338047,Services,03-May-2012,2441849-134,"5,588.14",FELIX KNIGHT LTD.
Adults Wellbeing and Health,Commissioning inc Supporting People,054813,Gala Theatre - Theatre,Third Party Payments,410037,Rendered by Other Local Authorities,03-May-2012,2441910-0259,600.00,OAKWOOD AV.
Adults Wellbeing and Health,Commissioning inc Supporting People,054814,Gala Theatre - Cinema,Supplies and Services,338047,Services,03-May-2012,2441944-926221-1,"3,292.92",SONY PICTURES RELEASING.
Adults Wellbeing and Health,Financing-Adult Services,059999,Financing-Adult Services,Creditors,952035,Creditor-housing benefit-eqpt,03-May-2012,2441779-21616,"1,685.00",ACF FLOORING LTD.
Adults Wellbeing and Health,Head of Adults,052733,Sensory Support - County Wide,Supplies and Services,338365,Services,03-May-2012,2441780-SIN400679,"1,278.99",ACTION ON HEARING LOSS.
Adults Wellbeing and Health,Head of Adults,053745,Cheveley House Residential Home,Supplies and Services,304259,Equipment and Materials,03-May-2012,2441917-58423723,741.96,PHS GROUP PLC.
Adults Wellbeing and Health,Head of Adults,052733,Sensory Support - County Wide,Supplies and Services,338365,Services,03-May-2012,2441934-OP/I165825,"3,156.89",ROYAL NATIONAL INSTITUTE FOR THE BLIND.
Adults Wellbeing and Health,Planning and Performance,054630,Promotions and Marketing - LLC,Supplies and Services,384540,Miscellaneous Expenses,03-May-2012,2441913-7073,898.00,PA PROMOTIONS LTD.
Adults Wellbeing and Health,Social Inclusion,056804,LSC-Deprived Neighbourhoods,Supplies and Services,384199,Miscellaneous Expenses,03-May-2012,2441791-MAR/APR2012,795.00,ANN AHMED.
Adults Wellbeing and Health,Social Inclusion,056648,LMAP - SNU - Area 1,Supplies and Services,384199,Miscellaneous Expenses,03-May-2012,2441859-30/01/2012,550.00,GROUNDWORK NORTH EAST.
Adults Wellbeing and Health,Social Inclusion,056804,LSC-Deprived Neighbourhoods,Supplies and Services,384199,Miscellaneous Expenses,03-May-2012,2441871-255,"2,200.00",J & K TRAINING LTD.
Children and Young Peoples Services,CYPS - Local Authority,077028,Villa Real School,Transport,230007,Contract Hire,03-May-2012,2441772-18,"1,000.00",A & P TAXI.
Children and Young Peoples Services,CYPS - Local Authority,077014,Walworth School,Transport,230007,Contract Hire,03-May-2012,2441773-426,825.00,A BARKER.
Children and Young Peoples Services,CYPS - Local Authority,077014,Walworth School,Transport,230007,Contract Hire,03-May-2012,2441773-427,550.00,A BARKER.
Children and Young Peoples Services,CYPS - Local Authority,077014,Walworth School,Transport,230007,Contract Hire,03-May-2012,2441773-428,825.00,A BARKER.
Children and Young Peoples Services,CYPS - Local Authority,077033,The Oaks School,Transport,230007,Contract Hire,03-May-2012,2441825-505,"1,367.40",CLIVE HUBERY.
Children and Young Peoples Services,CYPS - Local Authority,077033,The Oaks School,Transport,230007,Contract Hire,03-May-2012,2441825-506,"1,157.70",CLIVE HUBERY.
Children and Young Peoples Services,CYPS - Local Authority,074699,Secondary Schools General-LA,Transport,230007,Contract Hire,03-May-2012,2441825-507,"1,000.00",CLIVE HUBERY.
Children and Young Peoples Services,CYPS - Local Authority,071913,SSEYCG - Integrated Training,Employees,040149,"Recruitment, Instruction and Training",03-May-2012,2441830-WUNI0112,650.00,DAYPARK LTD.
Children and Young Peoples Services,CYPS - Local Authority,071913,SSEYCG - Integrated Training,Employees,040149,"Recruitment, Instruction and Training",03-May-2012,2441830-WUNI0212,650.00,DAYPARK LTD.
Children and Young Peoples Services,CYPS - Local Authority,071927,GSSG-Two Year Old Nursery Pilot,Transfer Payments,510032,School Children,03-May-2012,2441844-12/6/2YRPC,752.00,EMERALD NURSERY.
Children and Young Peoples Services,CYPS - Local Authority,078401,Other Further Education,Transport,230007,Contract Hire,03-May-2012,2441845-009APR12/F472,750.00,EMMA`S CABS.
Children and Young Peoples Services,CYPS - Local Authority,085002,Senior Mangt - Children Inc. Agen,Third Party Payments,425040,Rendered by Voluntary Organisations,03-May-2012,2441852-630033293,805.68,FOSTER CARE ASSOCIATES LTD.
Children and Young Peoples Services,CYPS - Local Authority,085002,Senior Mangt - Children Inc. Agen,Third Party Payments,425040,Rendered by Voluntary Organisations,03-May-2012,2441852-630033303,"4,028.40",FOSTER CARE ASSOCIATES LTD.
Children and Young Peoples Services,CYPS - Local Authority,085002,Senior Mangt - Children Inc. Agen,Third Party Payments,425040,Rendered by Voluntary Organisations,03-May-2012,2441852-630033607,"4,180.58",FOSTER CARE ASSOCIATES LTD.
Children and Young Peoples Services,CYPS - Local Authority,085002,Senior Mangt - Children Inc. Agen,Third Party Payments,425040,Rendered by Voluntary Organisations,03-May-2012,2441852-630033608,"6,367.65",FOSTER CARE ASSOCIATES LTD.
Children and Young Peoples Services,CYPS - Local Authority,085002,Senior Mangt - Children Inc. Agen,Third Party Payments,425040,Rendered by Voluntary Organisations,03-May-2012,2441852-630033744,"4,507.71",FOSTER CARE ASSOCIATES LTD.
Children and Young Peoples Services,CYPS - Local Authority,085002,Senior Mangt - Children Inc. Agen,Third Party Payments,425040,Rendered by Voluntary Organisations,03-May-2012,2441852-630033868,"4,181.44",FOSTER CARE ASSOCIATES LTD.
Children and Young Peoples Services,CYPS - Local Authority,085002,Senior Mangt - Children Inc. Agen,Third Party Payments,425040,Rendered by Voluntary Organisations,03-May-2012,2441852-630033972,"4,181.44",FOSTER CARE ASSOCIATES LTD.
Children and Young Peoples Services,CYPS - Local Authority,085002,Senior Mangt - Children Inc. Agen,Third Party Payments,425040,Rendered by Voluntary Organisations,03-May-2012,2441852-630034120,"4,292.26",FOSTER CARE ASSOCIATES LTD.
Children and Young Peoples Services,CYPS - Local Authority,085002,Senior Mangt - Children Inc. Agen,Third Party Payments,425040,Rendered by Voluntary Organisations,03-May-2012,2441852-630034139,"3,374.35",FOSTER CARE ASSOCIATES LTD.
Children and Young Peoples Services,CYPS - Local Authority,085002,Senior Mangt - Children Inc. Agen,Third Party Payments,425040,Rendered by Voluntary Organisations,03-May-2012,2441852-630034140,"3,374.35",FOSTER CARE ASSOCIATES LTD.
Children and Young Peoples Services,CYPS - Local Authority,085002,Senior Mangt - Children Inc. Agen,Third Party Payments,425040,Rendered by Voluntary Organisations,03-May-2012,2441852-630034185,"4,225.86",FOSTER CARE ASSOCIATES LTD.
Children and Young Peoples Services,CYPS - Local Authority,085002,Senior Mangt - Children Inc. Agen,Third Party Payments,425040,Rendered by Voluntary Organisations,03-May-2012,2441852-630034214,"4,312.10",FOSTER CARE ASSOCIATES LTD.
Children and Young Peoples Services,CYPS - Local Authority,085002,Senior Mangt - Children Inc. Agen,Third Party Payments,425040,Rendered by Voluntary Organisations,03-May-2012,2441852-630034295,"3,148.05",FOSTER CARE ASSOCIATES LTD.
Children and Young Peoples Services,CYPS - Local Authority,085002,Senior Mangt - Children Inc. Agen,Third Party Payments,425040,Rendered by Voluntary Organisations,03-May-2012,2441852-630034873,"4,079.43",FOSTER CARE ASSOCIATES LTD.
Children and Young Peoples Services,CYPS - Local Authority,085002,Senior Mangt - Children Inc. Agen,Third Party Payments,425040,Rendered by Voluntary Organisations,03-May-2012,2441852-630034897,"4,079.43",FOSTER CARE ASSOCIATES LTD.
Children and Young Peoples Services,CYPS - Local Authority,085002,Senior Mangt - Children Inc. Agen,Third Party Payments,425040,Rendered by Voluntary Organisations,03-May-2012,2441852-630034898,"4,079.43",FOSTER CARE ASSOCIATES LTD.
Children and Young Peoples Services,CYPS - Local Authority,085002,Senior Mangt - Children Inc. Agen,Third Party Payments,425040,Rendered by Voluntary Organisations,03-May-2012,2441852-630034921,"4,079.43",FOSTER CARE ASSOCIATES LTD.
Children and Young Peoples Services,CYPS - Local Authority,085002,Senior Mangt - Children Inc. Agen,Third Party Payments,425040,Rendered by Voluntary Organisations,03-May-2012,2441852-630034954,"4,079.43",FOSTER CARE ASSOCIATES LTD.
Children and Young Peoples Services,CYPS - Local Authority,085002,Senior Mangt - Children Inc. Agen,Third Party Payments,425040,Rendered by Voluntary Organisations,03-May-2012,2441852-630035076,"4,079.43",FOSTER CARE ASSOCIATES LTD.
Children and Young Peoples Services,CYPS - Local Authority,085002,Senior Mangt - Children Inc. Agen,Third Party Payments,425040,Rendered by Voluntary Organisations,03-May-2012,2441852-630035212,"4,162.68",FOSTER CARE ASSOCIATES LTD.
Children and Young Peoples Services,CYPS - Local Authority,085002,Senior Mangt - Children Inc. Agen,Third Party Payments,425040,Rendered by Voluntary Organisations,03-May-2012,2441853-1989,"3,128.40",FOSTER CARE SOLUTIONS LTD.
Children and Young Peoples Services,CYPS - Local Authority,085002,Senior Mangt - Children Inc. Agen,Third Party Payments,425040,Rendered by Voluntary Organisations,03-May-2012,2441853-1990,"3,257.10",FOSTER CARE SOLUTIONS LTD.
Children and Young Peoples Services,CYPS - Local Authority,085002,Senior Mangt - Children Inc. Agen,Third Party Payments,425040,Rendered by Voluntary Organisations,03-May-2012,2441853-1991,"3,000.00",FOSTER CARE SOLUTIONS LTD.
Children and Young Peoples Services,CYPS - Local Authority,085002,Senior Mangt - Children Inc. Agen,Third Party Payments,425040,Rendered by Voluntary Organisations,03-May-2012,2441853-1992,"3,128.40",FOSTER CARE SOLUTIONS LTD.
Children and Young Peoples Services,CYPS - Local Authority,085002,Senior Mangt - Children Inc. Agen,Third Party Payments,425040,Rendered by Voluntary Organisations,03-May-2012,2441853-1993,"3,000.00",FOSTER CARE SOLUTIONS LTD.
Children and Young Peoples Services,CYPS - Local Authority,085002,Senior Mangt - Children Inc. Agen,Third Party Payments,425040,Rendered by Voluntary Organisations,03-May-2012,2441853-1994,"3,000.00",FOSTER CARE SOLUTIONS LTD.
Children and Young Peoples Services,CYPS - Local Authority,085002,Senior Mangt - Children Inc. Agen,Third Party Payments,425040,Rendered by Voluntary Organisations,03-May-2012,2441853-1997,"3,128.40",FOSTER CARE SOLUTIONS LTD.
Children and Young Peoples Services,CYPS - Local Authority,085163,Children in Need Team Easington,Employees,080025,Agency Staff,03-May-2012,2441867-A055,925.00,IMPROVEMENT FOCUS LTD.
Children and Young Peoples Services,CYPS - Local Authority,074218,Wellfield School,Construction Work,908105,Construction work,03-May-2012,2441869-DURH/0228,"250,249.00",INSPIREDSPACES DURHAM LTD.
Children and Young Peoples Services,CYPS - Local Authority,077800,Special Schools General-LA,Transport,230007,Contract Hire,03-May-2012,2441870-201208,"1,023.77",J & D KELLY.
Children and Young Peoples Services,CYPS - Local Authority,074171,Staindrop Comprehensive,Transport,230007,Contract Hire,03-May-2012,2441872-2012/10,733.30,JM HUMBLE COACH HIRE.
Children and Young Peoples Services,CYPS - Local Authority,077013,Hare Law School,Transport,230007,Contract Hire,03-May-2012,2441875-3,825.00,KD TAXIS.
Children and Young Peoples Services,CYPS - Local Authority,077034,Evergreen School,Transport,230007,Contract Hire,03-May-2012,2441876-850APR12,935.00,KEN CHAMBERS.
Children and Young Peoples Services,CYPS - Local Authority,077028,Villa Real School,Transport,230007,Contract Hire,03-May-2012,2441876-853,825.00,KEN CHAMBERS.
Children and Young Peoples Services,CYPS - Local Authority,077014,Walworth School,Transport,230007,Contract Hire,03-May-2012,2441878-11,660.00,L & R PRIVATE HIRE.
Children and Young Peoples Services,CYPS - Local Authority,078401,Other Further Education,Transport,230007,Contract Hire,03-May-2012,2441880-056,"1,320.00",LD TAXIS.
Children and Young Peoples Services,CYPS - Local Authority,077000,The Meadows School,Transport,230007,Contract Hire,03-May-2012,2441880-057,880.00,LD TAXIS.
Children and Young Peoples Services,CYPS - Local Authority,077029,Glen Dene School,Transport,230007,Contract Hire,03-May-2012,2441881-1096,946.50,LOCAL TRANSPORT LTD.
Children and Young Peoples Services,CYPS - Local Authority,077030,Windlestone Hall School,Transport,230007,Contract Hire,03-May-2012,2441885-920,"1,162.94",MCDONALD TRAVEL.
Children and Young Peoples Services,CYPS - Local Authority,077033,The Oaks School,Transport,230007,Contract Hire,03-May-2012,2441885-921,830.70,MCDONALD TRAVEL.
Children and Young Peoples Services,CYPS - Local Authority,077033,The Oaks School,Transport,230007,Contract Hire,03-May-2012,2441885-922,830.70,MCDONALD TRAVEL.
Children and Young Peoples Services,CYPS - Local Authority,077032,Trinity SEN Centre,Transport,230007,Contract Hire,03-May-2012,2441885-923,"1,142.24",MCDONALD TRAVEL.
Children and Young Peoples Services,CYPS - Local Authority,077033,The Oaks School,Transport,230007,Contract Hire,03-May-2012,2441885-923APR12,830.70,MCDONALD TRAVEL.
Children and Young Peoples Services,CYPS - Local Authority,077032,Trinity SEN Centre,Transport,230007,Contract Hire,03-May-2012,2441888-KDC010412,"1,338.77",MJ TIMNEY.
Children and Young Peoples Services,CYPS - Local Authority,077000,The Meadows School,Transport,230007,Contract Hire,03-May-2012,2441888-KDC020412,"1,588.00",MJ TIMNEY.
Children and Young Peoples Services,CYPS - Local Authority,073131,Gainford CE Controlled Primary,Transport,230007,Contract Hire,03-May-2012,2441890-400,"1,815.00",MR AD HOWARD.
Children and Young Peoples Services,CYPS - Local Authority,077030,Windlestone Hall School,Transport,230007,Contract Hire,03-May-2012,2441893-4A,805.00,MR G FREELAND.
Children and Young Peoples Services,CYPS - Local Authority,077030,Windlestone Hall School,Transport,230007,Contract Hire,03-May-2012,2441896-0016,"1,000.50",MR P CAHILL.
Children and Young Peoples Services,CYPS - Local Authority,077029,Glen Dene School,Transport,230007,Contract Hire,03-May-2012,2441896-0018,"1,711.10",MR P CAHILL.
Children and Young Peoples Services,CYPS - Local Authority,077800,Special Schools General-LA,Transport,230007,Contract Hire,03-May-2012,2441896-0019,"1,713.25",MR P CAHILL.
Children and Young Peoples Services,CYPS - Local Authority,077800,Special Schools General-LA,Transport,230007,Contract Hire,03-May-2012,2441896-0020,"1,540.00",MR P CAHILL.
Children and Young Peoples Services,CYPS - Local Authority,078401,Other Further Education,Transport,230007,Contract Hire,03-May-2012,2441897-09/F413AAPR12,504.00,MR RAYMOND RENWICK.
Children and Young Peoples Services,CYPS - Local Authority,070264,LEA Init-Spennymoor Premises,Supplies and Services,340001,Postages,03-May-2012,2441903-000000410902013082,"5,000.00",NEOPOST LTD CREDIFON RCB ACCOUNT.
Children and Young Peoples Services,CYPS - Local Authority,077032,Trinity SEN Centre,Transport,230007,Contract Hire,03-May-2012,2441916-ST18/12,906.84,PB PRIVATE HIRE.
Children and Young Peoples Services,CYPS - Local Authority,085550,Manager-Children Disability Service,Cap Exp on Grants & Other Financial Assistance (REFCUS),918401,Capital grants,03-May-2012,2441929-2461,"2,095.00",REACH OUT CARE SUPPORT SERVICES LTD.
Children and Young Peoples Services,CYPS - Local Authority,085550,Manager-Children Disability Service,Cap Exp on Grants & Other Financial Assistance (REFCUS),918401,Capital grants,03-May-2012,2441929-2462,"1,662.50",REACH OUT CARE SUPPORT SERVICES LTD.
Children and Young Peoples Services,CYPS - Local Authority,074218,Wellfield School,Transport,230007,Contract Hire,03-May-2012,2441931-6155,"7,058.70",ROBERTS OF WINGATE.
Children and Young Peoples Services,CYPS - Local Authority,074218,Wellfield School,Transport,230007,Contract Hire,03-May-2012,2441931-6156,"1,798.94",ROBERTS OF WINGATE.
Children and Young Peoples Services,CYPS - Local Authority,074693,St Bedes RC VA Comp Peterlee,Transport,230007,Contract Hire,03-May-2012,2441931-6158,"2,080.76",ROBERTS OF WINGATE.
Children and Young Peoples Services,CYPS - Local Authority,074699,Secondary Schools General-LA,Transport,230007,Contract Hire,03-May-2012,2441932-1514,706.10,RONS TAXIS.
Children and Young Peoples Services,CYPS - Local Authority,077034,Evergreen School,Transport,230007,Contract Hire,03-May-2012,2441932-1516,"1,023.77",RONS TAXIS.
Children and Young Peoples Services,CYPS - Local Authority,077014,Walworth School,Transport,230007,Contract Hire,03-May-2012,2441932-1517,"1,100.00",RONS TAXIS.
Children and Young Peoples Services,CYPS - Local Authority,074699,Secondary Schools General-LA,Transport,230007,Contract Hire,03-May-2012,2441939-4209,"1,766.49",SAFARI TRAVEL.
Children and Young Peoples Services,CYPS - Local Authority,077030,Windlestone Hall School,Transport,230007,Contract Hire,03-May-2012,2441941-33APR12,"1,330.00",SJ MACKENZIE T/A SCOTTS TAXIS.
Children and Young Peoples Services,CYPS - Local Authority,077030,Windlestone Hall School,Transport,230007,Contract Hire,03-May-2012,2441941-34,"1,527.40",SJ MACKENZIE T/A SCOTTS TAXIS.
Children and Young Peoples Services,CYPS - Local Authority,077800,Special Schools General-LA,Transport,230007,Contract Hire,03-May-2012,2441945-20,"1,191.68",SOUTH HETTON PRIVATE HIRE.
Children and Young Peoples Services,CYPS - Local Authority,085952,Secure Education,Supplies and Services,304259,Equipment and Materials,03-May-2012,2441946-I793083,533.03,SPECIALIST CRAFTS LTD.
Children and Young Peoples Services,CYPS - Local Authority,071947,SSEYCG - D Catch,Transfer Payments,510026,School Children,03-May-2012,2441950-7549,558.00,SUNSHINE DAY NURSERY.
Children and Young Peoples Services,CYPS - Local Authority,085002,Senior Mangt - Children Inc. Agen,Third Party Payments,425040,Rendered by Voluntary Organisations,03-May-2012,2441951-110477,901.00,SWIIS FOSTER CARE LTD.
Children and Young Peoples Services,CYPS - Local Authority,085002,Senior Mangt - Children Inc. Agen,Third Party Payments,425040,Rendered by Voluntary Organisations,03-May-2012,2441951-110478,"1,069.00",SWIIS FOSTER CARE LTD.
Children and Young Peoples Services,CYPS - Local Authority,085002,Senior Mangt - Children Inc. Agen,Third Party Payments,425040,Rendered by Voluntary Organisations,03-May-2012,2441951-110819,901.00,SWIIS FOSTER CARE LTD.
Children and Young Peoples Services,CYPS - Local Authority,085002,Senior Mangt - Children Inc. Agen,Third Party Payments,425040,Rendered by Voluntary Organisations,03-May-2012,2441951-110820,"1,069.00",SWIIS FOSTER CARE LTD.
Children and Young Peoples Services,CYPS - Local Authority,085002,Senior Mangt - Children Inc. Agen,Third Party Payments,425040,Rendered by Voluntary Organisations,03-May-2012,2441951-111255,"1,069.00",SWIIS FOSTER CARE LTD.
Children and Young Peoples Services,CYPS - Local Authority,085002,Senior Mangt - Children Inc. Agen,Third Party Payments,425040,Rendered by Voluntary Organisations,03-May-2012,2441951-111532,901.00,SWIIS FOSTER CARE LTD.
Children and Young Peoples Services,CYPS - Local Authority,085002,Senior Mangt - Children Inc. Agen,Third Party Payments,425040,Rendered by Voluntary Organisations,03-May-2012,2441951-111533,"1,069.00",SWIIS FOSTER CARE LTD.
Children and Young Peoples Services,CYPS - Local Authority,074174,Teesdale School,Transport,230007,Contract Hire,03-May-2012,2441954-036/3188,"1,032.35",TA TRAVEL.
Children and Young Peoples Services,CYPS - Local Authority,077034,Evergreen School,Transport,230007,Contract Hire,03-May-2012,2441954-036/W012,924.00,TA TRAVEL.
Children and Young Peoples Services,CYPS - Local Authority,077034,Evergreen School,Transport,230007,Contract Hire,03-May-2012,2441954-036/W023,759.00,TA TRAVEL.
Children and Young Peoples Services,CYPS - Local Authority,077030,Windlestone Hall School,Transport,230007,Contract Hire,03-May-2012,2441954-036/W055,"1,316.00",TA TRAVEL.
Children and Young Peoples Services,CYPS - Local Authority,077033,The Oaks School,Transport,230007,Contract Hire,03-May-2012,2441954-036/W062,"1,700.00",TA TRAVEL.
Children and Young Peoples Services,CYPS - Local Authority,077034,Evergreen School,Transport,230007,Contract Hire,03-May-2012,2441954-036/W078,777.00,TA TRAVEL.
Children and Young Peoples Services,CYPS - Local Authority,077014,Walworth School,Transport,230007,Contract Hire,03-May-2012,2441954-036/W084,"1,612.00",TA TRAVEL.
Children and Young Peoples Services,CYPS - Local Authority,074185,Belmont Comprehensive,Transport,230007,Contract Hire,03-May-2012,2441956-04/2012/037,682.00,TARN`S TAXIS.
Children and Young Peoples Services,CYPS - Local Authority,077030,Windlestone Hall School,Transport,230007,Contract Hire,03-May-2012,2441956-04/2012/039,973.50,TARN`S TAXIS.
Children and Young Peoples Services,CYPS - Local Authority,074231,Sedgefield Community College,Transport,230007,Contract Hire,03-May-2012,2441956-04/2012/042,571.12,TARN`S TAXIS.
Children and Young Peoples Services,CYPS - Local Authority,074042,Pelton Roseberry Comprehensive,Transport,230007,Contract Hire,03-May-2012,2441958-004/12,715.00,TL TAXIS.
Children and Young Peoples Services,CYPS - Local Authority,078100,Curric and Professional Development,Supplies and Services,372009,Subscriptions,03-May-2012,2441962-SI0002937,600.00,UNICEF UK.
Children and Young Peoples Services,CYPS - Local Authority,071913,SSEYCG - Integrated Training,Employees,040149,"Recruitment, Instruction and Training",03-May-2012,2441964-09123218-003,"1,260.00",UNIVERSITY OF TEESSIDE.
Children and Young Peoples Services,CYPS - Local Authority,071616,Seaham House,Supplies and Services,340001,Postages,03-May-2012,2441971-275292MARCH2012,500.00,NEOPOST LTD CREDIFON RCB ACCOUNT.
Children and Young Peoples Services,Dedicated Schools Grant,071100,Pupil Referral Unit,Transport,230007,Contract Hire,03-May-2012,2441893-4C,770.00,MR G FREELAND.
Corporate Resources,ICT Services incl. Design and Print,065481,Technical Services,"Vehicles, Equipment, Furniture and Fittings",912701,Computer equipment,03-May-2012,2441802-14037712,"80,336.00",AZZURRI COMMUNICATIONS LTD.
Corporate Resources,ICT Services incl. Design and Print,065481,Technical Services,Supplies and Services,342033,Computers and Communications,03-May-2012,2441822-HR12-5541,"90,168.31",CELERITY LTD.
Neighbourhood Services,Direct Services,011011,SSAE - Schools Grounds Maintenance,Supplies and Services,304221,Equipment and Materials,03-May-2012,2441774-000755,527.20,A HILL & SONS LTD.
Neighbourhood Services,Direct Services,020061,Building R&M,Supplies and Services,304221,Equipment and Materials,03-May-2012,2441775-LLI247509,666.24,A THOMPSON & SONS LTD.
Neighbourhood Services,Direct Services,017104,Meadowfield Depot,Stock,926900,Stock in hand-Inventory system,03-May-2012,2441775-LLI249171,599.20,A THOMPSON & SONS LTD.
Neighbourhood Services,Direct Services,017104,Meadowfield Depot,Stock,926900,Stock in hand-Inventory system,03-May-2012,2441776-LLI248464,916.06,A THOMPSON & SONS LTD.
Neighbourhood Services,Direct Services,020067,Contracts SE,Third Party Payments,430100,Rendered by Private Contractors,03-May-2012,2441781-21126599-61,"3,537.00",ADT FIRE & SECURITY PLC.
Neighbourhood Services,Direct Services,017104,Meadowfield Depot,Stock,926900,Stock in hand-Inventory system,03-May-2012,2441797-916471373,"2,097.48",ARCO LTD.
Neighbourhood Services,Direct Services,017104,Meadowfield Depot,Stock,926900,Stock in hand-Inventory system,03-May-2012,2441797-916471374,566.50,ARCO LTD.
Neighbourhood Services,Direct Services,017104,Meadowfield Depot,Stock,926900,Stock in hand-Inventory system,03-May-2012,2441797-916501090,"1,545.34",ARCO LTD.
Neighbourhood Services,Direct Services,010900,Central Fleet (Meadowfield Workshop),Supplies and Services,372009,Subscriptions,03-May-2012,2441801-UKAD104746-APRIL2012,834.00,AUTODATA LTD.
Neighbourhood Services,Direct Services,020082,Lifts,Supplies and Services,304221,Equipment and Materials,03-May-2012,2441815-0000053379,740.00,BROOKS STAIRLIFTS LTD.
Neighbourhood Services,Direct Services,010913,Building Services - Construction Management,Supplies and Services,304221,Equipment and Materials,03-May-2012,2441816-1650/0655821,910.50,BSS GROUP PLC.
Neighbourhood Services,Direct Services,020079,Electrical Small Works,Third Party Payments,430100,Rendered by Private Contractors,03-May-2012,2441820-12346,"1,678.42",CATHEDRAL LOCK & SAFE SERVICES LTD.
Neighbourhood Services,Direct Services,020079,Electrical Small Works,Third Party Payments,430100,Rendered by Private Contractors,03-May-2012,2441820-12382,640.09,CATHEDRAL LOCK & SAFE SERVICES LTD.
Neighbourhood Services,Direct Services,020079,Electrical Small Works,Third Party Payments,430100,Rendered by Private Contractors,03-May-2012,2441820-12409,"2,478.84",CATHEDRAL LOCK & SAFE SERVICES LTD.
Neighbourhood Services,Direct Services,020075,Painting,Third Party Payments,430100,Rendered by Private Contractors,03-May-2012,2441835-01574,"4,247.00",DUNNINGHAM DECORATORS LTD.
Neighbourhood Services,Direct Services,020075,Painting,Supplies and Services,304221,Equipment and Materials,03-May-2012,2441835-ND/KP/7969,"4,156.00",DUNNINGHAM DECORATORS LTD.
Neighbourhood Services,Direct Services,020075,Painting,Third Party Payments,430100,Rendered by Private Contractors,03-May-2012,2441835-ND/KP/7969-28/3/12,"1,263.00",DUNNINGHAM DECORATORS LTD.
Neighbourhood Services,Direct Services,020075,Painting,Third Party Payments,430100,Rendered by Private Contractors,03-May-2012,2441835-ND/KP/7969-M,"3,321.00",DUNNINGHAM DECORATORS LTD.
Neighbourhood Services,Direct Services,010449,Street Scene Area East - Refuse Collection,"Vehicles, Equipment, Furniture and Fittings",912529,Purchase-equipment,03-May-2012,2441847-6687978,"10,735.31",ESE LTD (ENVIRONMENTAL SYSTEMS EXPERTISE)..
Neighbourhood Services,Direct Services,017104,Meadowfield Depot,Stock,926900,Stock in hand-Inventory system,03-May-2012,2441851-OP/I258498,689.34,FLEMING & CO (MACHINERY) LTD.
Neighbourhood Services,Direct Services,010561,Fleet Holding Account-Derwentside,Stock,926004,Stock,03-May-2012,2441855-7595844.,"1,974.56",GB OILS T/A BRETT FUELS.
Neighbourhood Services,Direct Services,020070,Heating North,Third Party Payments,430100,Rendered by Private Contractors,03-May-2012,2441856-100507,"10,626.33",GIACOMINI UK LTD.
Neighbourhood Services,Direct Services,020076,Flooring,Supplies and Services,304221,Equipment and Materials,03-May-2012,2441862-4375552,"1,985.18",HEADLAM (FLOORCOVERING DISTRIBUTORS) LTD.
Neighbourhood Services,Direct Services,010911,Housing Maintenance (Durham City Homes),Supplies and Services,304221,Equipment and Materials,03-May-2012,2441919-4120/131950,855.61,PLUMBING TRADE SUPPLIES LTD.
Neighbourhood Services,Direct Services,020080,Electrical North,Third Party Payments,430100,Rendered by Private Contractors,03-May-2012,2441921-INV183928,888.52,POINTER LTD.
Neighbourhood Services,Direct Services,010367,Street Scene Area South - Grounds Maintenance,Premises,125009,Rents,03-May-2012,2441942-0424-035110,750.00,SMITHS GORE.
Neighbourhood Services,Direct Services,010367,Street Scene Area South - Grounds Maintenance,Premises,125009,Rents,03-May-2012,2441942-0424-037477,750.00,SMITHS GORE.
Neighbourhood Services,Direct Services,010367,Street Scene Area South - Grounds Maintenance,Premises,125009,Rents,03-May-2012,2441942-0424-040214,750.00,SMITHS GORE.
Neighbourhood Services,Direct Services,010367,Street Scene Area South - Grounds Maintenance,Premises,125009,Rents,03-May-2012,2441942-0424-041891,750.00,SMITHS GORE.
Neighbourhood Services,Direct Services,010367,Street Scene Area South - Grounds Maintenance,Premises,125009,Rents,03-May-2012,2441942-0424-044444,750.00,SMITHS GORE.
Neighbourhood Services,Direct Services,010367,Street Scene Area South - Grounds Maintenance,Premises,125009,Rents,03-May-2012,2441942-0424-046556,750.00,SMITHS GORE.
Neighbourhood Services,Direct Services,020070,Heating North,Supplies and Services,304221,Equipment and Materials,03-May-2012,2441953-0256357,"2,171.51",T CROSSLING & CO LTD.
Neighbourhood Services,"Environment,Health & Consumer Protection",010827,Health Protection,Supplies and Services,344033,Telephones,03-May-2012,2441778-3687,"2,672.19",ACCELERO DIRECT.
Neighbourhood Services,Projects and Business services,022901,Administration,Third Party Payments,430105,Rendered by Private Contractors,03-May-2012,2441924-SDIN/00006515,"6,180.26",PREMIER WASTE MANAGEMENT LTD.
Neighbourhood Services,Projects and Business services,022901,Administration,Third Party Payments,430105,Rendered by Private Contractors,03-May-2012,2441924-SDIN/00006516,"7,228.82",PREMIER WASTE MANAGEMENT LTD.
Neighbourhood Services,Projects and Business services,022901,Administration,Third Party Payments,430105,Rendered by Private Contractors,03-May-2012,2441924-SDIN/00006524,"37,870.15",PREMIER WASTE MANAGEMENT LTD.
Neighbourhood Services,Projects and Business services,022901,Administration,Third Party Payments,430105,Rendered by Private Contractors,03-May-2012,2441924-SDIN/00006529,"14,075.46",PREMIER WASTE MANAGEMENT LTD.
Neighbourhood Services,Projects and Business services,022901,Administration,Third Party Payments,430105,Rendered by Private Contractors,03-May-2012,2441924-SDIN/00006531,600.00,PREMIER WASTE MANAGEMENT LTD.
Neighbourhood Services,Projects and Business services,022901,Administration,Third Party Payments,430105,Rendered by Private Contractors,03-May-2012,2441924-SDIN/00006532,"1,210.41",PREMIER WASTE MANAGEMENT LTD.
Neighbourhood Services,Projects and Business services,022901,Administration,Third Party Payments,430105,Rendered by Private Contractors,03-May-2012,2441924-SDIN/00006537,"21,792.37",PREMIER WASTE MANAGEMENT LTD.
Neighbourhood Services,Projects and Business services,022901,Administration,Third Party Payments,430105,Rendered by Private Contractors,03-May-2012,2441924-SDIN/00006538,"11,473.57",PREMIER WASTE MANAGEMENT LTD.
Neighbourhood Services,Sport & Leisure,010870,Facilities Management - Chester-le-Street Leisure Centre (North),Supplies and Services,304221,Equipment and Materials,03-May-2012,2441793-118701,597.76,APEKS MARINE EQUIPMENT LTD (AQUA SPHERE).
Neighbourhood Services,Sport & Leisure,010601,Spennymoor Leisure Cr - General,Premises,145023,Cleaning and Domestic Supplies,03-May-2012,2441940-255231,880.40,SIS CHEMICALS.
Neighbourhood Services,Technical Services,018500,Highways Operations Countywide,Supplies and Services,304221,Equipment and Materials,03-May-2012,2441775-LLI249297,527.40,A THOMPSON & SONS LTD.
Neighbourhood Services,Technical Services,018500,Highways Operations Countywide,Supplies and Services,304221,Equipment and Materials,03-May-2012,2441775-LLI249308,608.70,A THOMPSON & SONS LTD.
Neighbourhood Services,Technical Services,018500,Highways Operations Countywide,Supplies and Services,304221,Equipment and Materials,03-May-2012,2441775-LLI249398,913.50,A THOMPSON & SONS LTD.
Neighbourhood Services,Technical Services,018500,Highways Operations Countywide,Supplies and Services,304221,Equipment and Materials,03-May-2012,2441776-LLI249309,537.20,A THOMPSON & SONS LTD.
Neighbourhood Services,Technical Services,024942,Footbridges,Construction Work,908114,Capital - Bridge Strengthening,03-May-2012,2441783-60216682-52,921.00,AECOM LTD.
Neighbourhood Services,Technical Services,018500,Highways Operations Countywide,Supplies and Services,304221,Equipment and Materials,03-May-2012,2441786-16355618,652.79,AGGREGATE INDUSTRIES UK LTD.
Neighbourhood Services,Technical Services,018901,Plant Hire,Supplies and Services,304358,Equipment and Materials,03-May-2012,2441790-2712,"2,200.00",ANDREW HARDY CONSTRUCTION.
Neighbourhood Services,Technical Services,018300,Highways Operations - East,Supplies and Services,304221,Equipment and Materials,03-May-2012,2441966-13177,"1,285.20",WARD TIMBER LTD.
RED HRA,Dale & Valley Homes - HRA Rent Control Account,034999,Dale & Valley Homes - HRA Rent Control Account,Creditors,952191,Creditor-HRA-rents-refunds,03-May-2012,2441899-RR,"1,088.12",REDACTED - PAYMENT TO INDIVIDUAL
RED HRA,Housing Revenue Account,034055,Housing Management,Debtors,930106,Debtor-furnished tenancy scheme,03-May-2012,2441905-1800005902075,"41,448.15",NEWCASTLE UPON TYNE CITY COUNCIL.
RED HRA,HRA Capital,039895,Capital Overheads,Fees,901001,Internal fees,03-May-2012,2441843-SINV/00002752,"103,154.17",EAST DURHAM HOMES.
RED HRA,HRA Capital,039744,Council Houses New Build,Construction Work,908105,Construction work,03-May-2012,2441854-114326,"94,483.21",FRANK HASLAM MILAN & CO LTD.
RED HRA,HRA Capital,035019,DCH Esh Winning 12-13,Construction Work,908105,Construction work,03-May-2012,2441895-4100282243,975.00,MR KARL WALKER T/A KEPIER ENERGY CONNECTIONS.
Regeneration & Economic Development,Econ Dev and Regen Financing,039999,Econ Dev and Regen Financing,Debtors,930017,Debtor-gas contract holding account,03-May-2012,2441827-GASMARCH2012,"426,850.27",CORONA ENERGY RETAIL 2 LTD.
Regeneration & Economic Development,Economic Development and Housing,039830,Masterplan-Property Aqcuis-Chilton,Acquisition Of Land And Buildings,905009,Acquisition of land and buildings,03-May-2012,206584-HL1,"4,700.00",REDACTED - PAYMENT TO INDIVIDUAL
Regeneration & Economic Development,Economic Development and Housing,030608,Tanfield Lea-Site,Premises,106099,Centrally Controlled Rep and Maint,03-May-2012,2441782-4022/12640,"1,708.33",AE ROBB & ASSOCIATES.
Regeneration & Economic Development,Economic Development and Housing,034510,Housing Supervision & Management - General,Third Party Payments,430100,Rendered by Private Contractors,03-May-2012,2441843-SINV/00002751,"979,583.33",EAST DURHAM HOMES.
Regeneration & Economic Development,Economic Development and Housing,030654,Derwentside Business Centre - NBC,Premises,120009,Energy Costs,03-May-2012,2441909-NNO69LQV,"1,666.59",NPOWER.
Regeneration & Economic Development,Economic Development and Housing,030608,Tanfield Lea-Site,Premises,120009,Energy Costs,03-May-2012,2441909-NNO69LQW,"1,091.73",NPOWER.
Regeneration & Economic Development,Economic Development and Housing,030571,Marketing and Promotion,Supplies and Services,336005,Advertising,03-May-2012,2441949-98531,"1,225.00",STAR RADIO.
Regeneration & Economic Development,Housing General Fund,039834,Disabled Facility Grants Mand,Cap Exp on Grants & Other Financial Assistance (REFCUS),918401,Capital grants,03-May-2012,2441882-2012/480,"5,568.97",M & R DEVELOPMENTS & CONTRACTORS LTD..
Regeneration & Economic Development,"Spatial Policy, Planning, Assets & Environment",031007,Local Development Framework,Supplies and Services,338027,Services,03-May-2012,2441783-60216682-50,"1,248.00",AECOM LTD.
Regeneration & Economic Development,"Spatial Policy, Planning, Assets & Environment",031219,North Pennines - Wildwatch,Supplies and Services,384199,Miscellaneous Expenses,03-May-2012,2441787-V526933,"3,266.64",ALANA ECOLOGY LTD.
Adults Wellbeing and Health,Commissioning inc Supporting People,054753,Durham Brass Festival - LLC,Supplies and Services,384199,Miscellaneous Expenses,04-May-2012,2442037-2,"1,770.00",CAROLINE COLLINGE T/A CABINET OF CURIOSITY.
Adults Wellbeing and Health,Commissioning inc Supporting People,054811,Gala Theatre - general,Premises,106099,Centrally Controlled Rep and Maint,04-May-2012,2442108-9888153849,"12,437.72",DORMA UK LTD.
Adults Wellbeing and Health,Commissioning inc Supporting People,052115,Commissioning - Carers SLCs,Third Party Payments,479101,Purchase of Care,04-May-2012,2442143-14303,"1,218.56",FAMILY ACTION.
Adults Wellbeing and Health,Commissioning inc Supporting People,054814,Gala Theatre - Cinema,Supplies and Services,338047,Services,04-May-2012,2442392-927831-1,862.12,SONY PICTURES RELEASING.
Adults Wellbeing and Health,Commissioning inc Supporting People,054818,Gala Theatre - Box Office,Supplies and Services,304040,Equipment and Materials,04-May-2012,2442443-SLS087059,"4,924.99",TICKETSCOM LTD.
Adults Wellbeing and Health,Commissioning inc Supporting People,054814,Gala Theatre - Cinema,Supplies and Services,338047,Services,04-May-2012,2442470-IN12007906,"1,089.80",UNIVERSAL PICTURES INTERNATIONAL UK & EIRE LTD.
Adults Wellbeing and Health,Commissioning inc Supporting People,054813,Gala Theatre - Theatre,Supplies and Services,304245,Equipment and Materials,04-May-2012,2442476-4642,"1,188.00",VORTEX LIGHTING LTD.
Adults Wellbeing and Health,Head of Adults,052554,East Locality LD Team,Transport,230005,Contract Hire,04-May-2012,2441977-CLS041APR12,950.00,ABA LOCAL TAXIS LTD.
Adults Wellbeing and Health,Head of Adults,051604,OP/PD Integrated Team - Durham City West,Transport,230005,Contract Hire,04-May-2012,2442017-0039,"1,700.00",BOBBY DOVE.
Adults Wellbeing and Health,Head of Adults,051614,OP/PD Integrated Team - Easington North,Transport,230005,Contract Hire,04-May-2012,2442017-0040,"1,260.00",BOBBY DOVE.
Adults Wellbeing and Health,Head of Adults,055846,Empower 2 LD Day Care,Premises,106099,Centrally Controlled Rep and Maint,04-May-2012,2442044-110437,569.00,CDS SECURITY LTD.
Adults Wellbeing and Health,Head of Adults,055846,Empower 2 LD Day Care,Supplies and Services,338094,Services,04-May-2012,2442052-11-521,945.00,CHESTER LE STREET & DISTRICT CVS & VB.
Adults Wellbeing and Health,Head of Adults,052554,East Locality LD Team,Transport,230005,Contract Hire,04-May-2012,2442069-8APR12/DW092,820.00,COLIN E GLEAVE.
Adults Wellbeing and Health,Head of Adults,052354,West Locality LD Team,Transport,230005,Contract Hire,04-May-2012,2442070-175,760.00,COLIN HOLMES.
Adults Wellbeing and Health,Head of Adults,051603,OP/PD Integrated Team - Durham City East,Transport,230005,Contract Hire,04-May-2012,2442074-026,693.76,CONNORS MINI BUSES.
Adults Wellbeing and Health,Head of Adults,051605,OP/PD Integrated Team - Chester-le-Street,Transport,230005,Contract Hire,04-May-2012,2442074-028,956.00,CONNORS MINI BUSES.
Adults Wellbeing and Health,Head of Adults,052554,East Locality LD Team,Transport,230005,Contract Hire,04-May-2012,2442175-7914,513.50,GREENCROFT MINI COACHES.
Adults Wellbeing and Health,Head of Adults,051621,OP/PD Integrated Team - Shildon & Newton Aycliffe,Transport,230007,Contract Hire,04-May-2012,2442214-2012/11,"1,215.00",JM HUMBLE COACH HIRE.
Adults Wellbeing and Health,Head of Adults,051605,OP/PD Integrated Team - Chester-le-Street,Transport,230005,Contract Hire,04-May-2012,2442271-145,530.00,REDACTED - PAYMENT TO INDIVIDUAL
Adults Wellbeing and Health,Head of Adults,052554,East Locality LD Team,Transport,230005,Contract Hire,04-May-2012,2442335-120413,"1,166.92",PRATTS TAXIS.
Adults Wellbeing and Health,Head of Adults,052554,East Locality LD Team,Transport,230005,Contract Hire,04-May-2012,2442436-10,570.00,THE TAXI CO.
Adults Wellbeing and Health,Head of Adults,051611,OP/PD Integrated Team - Ferryhill & Spennymoor,Transport,230005,Contract Hire,04-May-2012,2442481-603,855.00,WAYNE`S TAXIS.
Adults Wellbeing and Health,Head of Adults,052354,West Locality LD Team,Transport,230005,Contract Hire,04-May-2012,2442481-605,950.00,WAYNE`S TAXIS.
Adults Wellbeing and Health,Head of Adults,052354,West Locality LD Team,Transport,230005,Contract Hire,04-May-2012,2442481-606,"1,590.00",WAYNE`S TAXIS.
Adults Wellbeing and Health,Head of Adults,051611,OP/PD Integrated Team - Ferryhill & Spennymoor,Transport,230005,Contract Hire,04-May-2012,2442481-610,805.00,WAYNE`S TAXIS.
Adults Wellbeing and Health,Head of Adults,051611,OP/PD Integrated Team - Ferryhill & Spennymoor,Transport,230005,Contract Hire,04-May-2012,2442481-611,"1,431.00",WAYNE`S TAXIS.
Adults Wellbeing and Health,Head of Adults,051612,OP/PD Integrated Team - Trimdon & Easington South,Transport,230005,Contract Hire,04-May-2012,2442481-612,"1,465.00",WAYNE`S TAXIS.
Adults Wellbeing and Health,Head of Adults,051612,OP/PD Integrated Team - Trimdon & Easington South,Transport,230005,Contract Hire,04-May-2012,2442481-613,875.00,WAYNE`S TAXIS.
Adults Wellbeing and Health,Head of Adults,051623,OP/PD Integrated Team - Teesdale,Transport,230005,Contract Hire,04-May-2012,2442483-4082,"1,308.00",WEARDALE PRIVATE HIRE.
Adults Wellbeing and Health,Head of Adults,051624,OP/PD Integrated Team - Willington & Crook,Transport,230005,Contract Hire,04-May-2012,2442483-4083,"2,046.18",WEARDALE PRIVATE HIRE.
Adults Wellbeing and Health,Planning and Performance,052953,Training - Social Work,Supplies and Services,352001,Conference Expenses,04-May-2012,2442140-TR/143,"3,800.00",ESPA.
Adults Wellbeing and Health,Planning and Performance,052953,Training - Social Work,Supplies and Services,352001,Conference Expenses,04-May-2012,2442216-260,645.00,JOHN BIDDULPH T/A OUTREACH.
Adults Wellbeing and Health,Planning and Performance,054630,Promotions and Marketing - LLC,Supplies and Services,384540,Miscellaneous Expenses,04-May-2012,2442401-98522,"1,200.00",STAR RADIO.
Adults Wellbeing and Health,Social Inclusion,056653,LMAP - SNU - Area 6,Supplies and Services,384199,Miscellaneous Expenses,04-May-2012,2442114-20009210,"4,094.53",DURHAM POLICE AUTHORITY.
Adults Wellbeing and Health,Social Inclusion,056807,Learning Delivery - East,Supplies and Services,304259,Equipment and Materials,04-May-2012,2442300-15404,680.00,OCN NORTH EAST REGION.
Children and Young Peoples Services,CYPS - Local Authority,077800,Special Schools General-LA,Transport,230007,Contract Hire,04-May-2012,2441987-13,990.00,AJ ADAMSON (TONY`S TAXIS).
Children and Young Peoples Services,CYPS - Local Authority,071447,Peterlee One Point Hub,Premises,106099,Centrally Controlled Rep and Maint,04-May-2012,2442041-12394,"1,598.37",CATHEDRAL LOCK & SAFE SERVICES LTD.
Children and Young Peoples Services,CYPS - Local Authority,071516,Craghead Nursery,Premises,108099,Service Repairs and Maintenance,04-May-2012,2442044-110419,574.00,CDS SECURITY LTD.
Children and Young Peoples Services,CYPS - Local Authority,088764,Horden Youth Centre,Premises,106099,Centrally Controlled Rep and Maint,04-May-2012,2442044-110458,504.40,CDS SECURITY LTD.
Children and Young Peoples Services,CYPS - Local Authority,071419,Middlestone Moor Childrens Centre,Premises,108099,Service Repairs and Maintenance,04-May-2012,2442044-110480,590.00,CDS SECURITY LTD.
Children and Young Peoples Services,CYPS - Local Authority,088773,Seaham Youth Centre,Premises,106099,Centrally Controlled Rep and Maint,04-May-2012,2442044-110494,612.00,CDS SECURITY LTD.
Children and Young Peoples Services,CYPS - Local Authority,071742,Dean Bank Childrens Centre,Premises,108099,Service Repairs and Maintenance,04-May-2012,2442044-110502,575.00,CDS SECURITY LTD.
Children and Young Peoples Services,CYPS - Local Authority,071407,Wingate Childrens Centre,Premises,108099,Service Repairs and Maintenance,04-May-2012,2442044-110517,653.00,CDS SECURITY LTD.
Children and Young Peoples Services,CYPS - Local Authority,071415,Wheatley Hill Childrens Centre,Premises,108099,Service Repairs and Maintenance,04-May-2012,2442044-110529,669.00,CDS SECURITY LTD.
Children and Young Peoples Services,CYPS - Local Authority,071630,"Play, Learning and Childcare",Employees,080025,Agency Staff,04-May-2012,2442068-3136475,"8,495.97",CO DURHAM & DARLINGTON NHS FOUNDATION TRUST.
Children and Young Peoples Services,CYPS - Local Authority,071500,Outreach and Home Visiting,Third Party Payments,479101,Purchase of Care,04-May-2012,2442082-3939264,"6,553.60",COUNTY DURHAM & DARLINGTON COMMUNITY HLTH SERV.
Children and Young Peoples Services,CYPS - Local Authority,085002,Senior Mangt - Children Inc. Agen,Third Party Payments,425040,Rendered by Voluntary Organisations,04-May-2012,2442158-21308,600.00,FUTURES FOR CHILDREN LTD.
Children and Young Peoples Services,CYPS - Local Authority,077030,Windlestone Hall School,Transport,230007,Contract Hire,04-May-2012,2442270-NU-4-12,720.00,MR J AGAR T/A PARK TAXIS.
Children and Young Peoples Services,CYPS - Local Authority,071903,EYDCP-Sustainability EDS,Supplies and Services,304040,Equipment and Materials,04-May-2012,2442306-3804,"10,995.00",OPEN OBJECTS SOFTWARE LTD.
Children and Young Peoples Services,CYPS - Local Authority,077029,Glen Dene School,Transport,230007,Contract Hire,04-May-2012,2442320-199,825.00,PETERLEE EXECUTIVE CARS.
Children and Young Peoples Services,CYPS - Local Authority,077006,Elemore Hall School,Transport,230007,Contract Hire,04-May-2012,2442320-200,650.00,PETERLEE EXECUTIVE CARS.
Children and Young Peoples Services,CYPS - Local Authority,077029,Glen Dene School,Transport,230007,Contract Hire,04-May-2012,2442320-203,660.00,PETERLEE EXECUTIVE CARS.
Children and Young Peoples Services,CYPS - Local Authority,077032,Trinity SEN Centre,Transport,230007,Contract Hire,04-May-2012,2442335-120403,861.30,PRATTS TAXIS.
Children and Young Peoples Services,CYPS - Local Authority,077032,Trinity SEN Centre,Transport,230007,Contract Hire,04-May-2012,2442335-120404,715.30,PRATTS TAXIS.
Children and Young Peoples Services,CYPS - Local Authority,077800,Special Schools General-LA,Transport,230007,Contract Hire,04-May-2012,2442335-120405,"1,654.95",PRATTS TAXIS.
Children and Young Peoples Services,CYPS - Local Authority,077006,Elemore Hall School,Transport,230007,Contract Hire,04-May-2012,2442335-120409,770.00,PRATTS TAXIS.
Children and Young Peoples Services,CYPS - Local Authority,074691,St Leonards RC VA Comp Durham,Transport,230007,Contract Hire,04-May-2012,2442346-013,"1,370.60",RAYNERS COACHES.
Children and Young Peoples Services,CYPS - Local Authority,074099,Tanfield Comprehensive,Transport,230007,Contract Hire,04-May-2012,2442355-2064,522.94,RICHIES TAXIS.
Children and Young Peoples Services,CYPS - Local Authority,077033,The Oaks School,Transport,230007,Contract Hire,04-May-2012,2442370-SO10/47,880.70,S & S TRAVEL LTD.
Children and Young Peoples Services,CYPS - Local Authority,077033,The Oaks School,Transport,230007,Contract Hire,04-May-2012,2442370-W026/47,878.70,S & S TRAVEL LTD.
Children and Young Peoples Services,CYPS - Local Authority,077033,The Oaks School,Transport,230007,Contract Hire,04-May-2012,2442370-W042/47,830.70,S & S TRAVEL LTD.
Children and Young Peoples Services,CYPS - Local Authority,074218,Wellfield School,Transport,230007,Contract Hire,04-May-2012,2442408-STYL4074,"2,284.26",STYLE TRAVEL.
Children and Young Peoples Services,CYPS - Local Authority,077000,The Meadows School,Transport,230007,Contract Hire,04-May-2012,2442421-04/2012/038,"1,076.80",TARN`S TAXIS.
Children and Young Peoples Services,CYPS - Local Authority,074693,St Bedes RC VA Comp Peterlee,Transport,230007,Contract Hire,04-May-2012,2442429-SB002,"1,027.73",TED WILFORD COACHES.
Children and Young Peoples Services,CYPS - Local Authority,074215,Shotton Hall School,Transport,230007,Contract Hire,04-May-2012,2442429-SH002,799.48,TED WILFORD COACHES.
Children and Young Peoples Services,CYPS - Local Authority,073442,St Williams RC VA Primary Trimdon,Transport,230007,Contract Hire,04-May-2012,2442429-TV002,"2,262.50",TED WILFORD COACHES.
Children and Young Peoples Services,CYPS - Local Authority,074691,St Leonards RC VA Comp Durham,Transport,230007,Contract Hire,04-May-2012,2442431-62266,"1,374.45",TGM GROUP LTD T/A CLASSIC COACHES (CONTINENTAL) LTD.
Children and Young Peoples Services,CYPS - Local Authority,077800,Special Schools General-LA,Transport,230007,Contract Hire,04-May-2012,2442436-12,"1,430.00",THE TAXI CO.
Children and Young Peoples Services,CYPS - Local Authority,074185,Belmont Comprehensive,Transport,230007,Contract Hire,04-May-2012,2442444-1758,"1,180.00",TM TRAVEL.
Children and Young Peoples Services,CYPS - Local Authority,074185,Belmont Comprehensive,Transport,230007,Contract Hire,04-May-2012,2442444-1759,"2,424.00",TM TRAVEL.
Children and Young Peoples Services,CYPS - Local Authority,085380,Adoption and Fostering Mgt,Supplies and Services,336005,Advertising,04-May-2012,2442445-100000892953,"2,300.00",TMP (UK) LTD (RECRUITMENT).
Children and Young Peoples Services,CYPS - Local Authority,077000,The Meadows School,Transport,230007,Contract Hire,04-May-2012,2442459-2,770.00,TT TAXIS.
Children and Young Peoples Services,CYPS - Local Authority,074911,BSF - Project Co-ordination,Supplies and Services,332029,"Printing, Stationery and Gen Off Exps",04-May-2012,2442469-395698,"3,094.30",UNITED CARLTON OFFICE SYSTEMS LTD.
Children and Young Peoples Services,Dedicated Schools Grant,071102,PRU KS4 Provision,Transport,230005,Contract Hire,04-May-2012,2442436-9,700.00,THE TAXI CO.
Corporate Resources,Asset Management,069290,Accommodation Review,Supplies and Services,384199,Miscellaneous Expenses,04-May-2012,2442171-026722,780.00,GODFREY SYRETT LTD.
Corporate Resources,Human Resources Total,066820,Occupational Health Service,Supplies and Services,384150,Miscellaneous Expenses,04-May-2012,2442168-6751226,"1,143.00",GLAXO SMITHKLINE UK LTD.
Corporate Resources,ICT Services incl. Design and Print,070209,ICT School Services - Administration Team,Premises,106099,Centrally Controlled Rep and Maint,04-May-2012,2442044-110510,690.00,CDS SECURITY LTD.
Corporate Resources,ICT Services incl. Design and Print,065201,Computer Section,Stock,926900,Stock in hand-Inventory system,04-May-2012,2442046-105789M,"12,990.00",CENTERPRISE INTERNATIONAL LTD.
Corporate Resources,ICT Services incl. Design and Print,065306,Design & Print - Outside Work,Supplies and Services,332029,"Printing, Stationery and Gen Off Exps",04-May-2012,2442136-77522,"4,342.50",ENCORE ENVELOPES LTD.
Corporate Resources,ICT Services incl. Design and Print,065481,Technical Services,Supplies and Services,342053,Computers and Communications,04-May-2012,2442202-INV1502192,"1,107.20",INFO TECHNOLOGY SUPPLY LTD.
Corporate Resources,ICT Services incl. Design and Print,065432,Web Development Group,Supplies and Services,342053,Computers and Communications,04-May-2012,2442391-29412,"3,577.84",SITEIMPROVE LTD.
Neighbourhood Services,Direct Services,020065,Contracts NE,Supplies and Services,304221,Equipment and Materials,04-May-2012,2441974-LLI248290,518.10,A THOMPSON & SONS LTD.
Neighbourhood Services,Direct Services,017104,Meadowfield Depot,Stock,926900,Stock in hand-Inventory system,04-May-2012,2441974-LLI249606,957.20,A THOMPSON & SONS LTD.
Neighbourhood Services,Direct Services,011003,FM - County Hall,Premises,106099,Centrally Controlled Rep and Maint,04-May-2012,2441980-11842,676.00,ACROL AIR CONDITIONING CO LTD.
Neighbourhood Services,Direct Services,017104,Meadowfield Depot,Stock,926900,Stock in hand-Inventory system,04-May-2012,2442011-DUR/123680,792.00,BEMCO LTD.
Neighbourhood Services,Direct Services,011003,FM - County Hall,Transport,230005,Contract Hire,04-May-2012,2442029-NEW8089929,594.00,BURNT TREE GROUP LTD.
Neighbourhood Services,Direct Services,020079,Electrical Small Works,Third Party Payments,430100,Rendered by Private Contractors,04-May-2012,2442041-12399,"1,357.66",CATHEDRAL LOCK & SAFE SERVICES LTD.
Neighbourhood Services,Direct Services,015036,FERRYHIILL CLEVEFERYE HOUSE,Premises,106099,Centrally Controlled Rep and Maint,04-May-2012,2442044-110454,609.00,CDS SECURITY LTD.
Neighbourhood Services,Direct Services,010301,Street Scene Area North - Grounds Maintenance,Supplies and Services,304999,Equipment and Materials,04-May-2012,2442100-167681,"1,825.00",DAVID DIXON GARDEN MACHINERY CENTRE.
Neighbourhood Services,Direct Services,020079,Electrical Small Works,Supplies and Services,304221,Equipment and Materials,04-May-2012,2442127-059-095470,"3,847.43",EDMUNDSON ELECTRICAL LTD.
Neighbourhood Services,Direct Services,020080,Electrical North,Supplies and Services,304221,Equipment and Materials,04-May-2012,2442127-059-095990,"1,196.14",EDMUNDSON ELECTRICAL LTD.
Neighbourhood Services,Direct Services,020081,Electrical South,Supplies and Services,304221,Equipment and Materials,04-May-2012,2442127-059-096086,796.32,EDMUNDSON ELECTRICAL LTD.
Neighbourhood Services,Direct Services,020081,Electrical South,Supplies and Services,304221,Equipment and Materials,04-May-2012,2442127-059-096328,"2,799.07",EDMUNDSON ELECTRICAL LTD.
Neighbourhood Services,Direct Services,020081,Electrical South,Supplies and Services,304221,Equipment and Materials,04-May-2012,2442127-059-096384,513.92,EDMUNDSON ELECTRICAL LTD.
Neighbourhood Services,Direct Services,020090,Asbestos,Supplies and Services,304221,Equipment and Materials,04-May-2012,2442127-059-096471,600.90,EDMUNDSON ELECTRICAL LTD.
Neighbourhood Services,Direct Services,020079,Electrical Small Works,Supplies and Services,304221,Equipment and Materials,04-May-2012,2442127-059-096516,592.38,EDMUNDSON ELECTRICAL LTD.
Neighbourhood Services,Direct Services,020070,Heating North,Supplies and Services,304221,Equipment and Materials,04-May-2012,2442127-059-096674,621.50,EDMUNDSON ELECTRICAL LTD.
Neighbourhood Services,Direct Services,020081,Electrical South,Supplies and Services,304221,Equipment and Materials,04-May-2012,2442127-059-096763,"1,141.50",EDMUNDSON ELECTRICAL LTD.
Neighbourhood Services,Direct Services,010449,Street Scene Area East - Refuse Collection,"Vehicles, Equipment, Furniture and Fittings",912529,Purchase-equipment,04-May-2012,2442139-6686932,"11,016.00",ESE LTD (ENVIRONMENTAL SYSTEMS EXPERTISE)..
Neighbourhood Services,Direct Services,017104,Meadowfield Depot,Stock,926900,Stock in hand-Inventory system,04-May-2012,2442149-OP/I258396,"1,083.38",FLEMING & CO (MACHINERY) LTD.
Neighbourhood Services,Direct Services,010367,Street Scene Area South - Grounds Maintenance,Supplies and Services,304221,Equipment and Materials,04-May-2012,2442162-7698025,"2,116.14",GB OILS T/A BRETT FUELS.
Neighbourhood Services,Direct Services,020067,Contracts SE,Third Party Payments,430100,Rendered by Private Contractors,04-May-2012,2442165-333765,"79,914.00",GEMCO EQUIPMENT LTD.
Neighbourhood Services,Direct Services,010911,Housing Maintenance (Durham City Homes),Supplies and Services,304221,Equipment and Materials,04-May-2012,2442188-0000297594,570.00,HEATING COMPONENTS & EQUIPMENT LTD.
Neighbourhood Services,Direct Services,010864,Fleet Holding Account-Easington,Third Party Payments,430101,Rendered by Private Contractors,04-May-2012,2442192-INV08795922,642.96,HI Q TYRESERVICES.
Neighbourhood Services,Direct Services,010907,Street Scene Area East - Technical Support,Supplies and Services,338027,Services,04-May-2012,2442206-077-12,"1,365.30",INTEGRATED SKILLS LTD.
Neighbourhood Services,Direct Services,017104,Meadowfield Depot,Stock,926900,Stock in hand-Inventory system,04-May-2012,2442219-00000330,"1,100.00",JP MATERIALS & PLANT HIRE LTD.
Neighbourhood Services,Direct Services,017104,Meadowfield Depot,Stock,926900,Stock in hand-Inventory system,04-May-2012,2442223-SA/1699,"1,509.20",KBRO LTD.
Neighbourhood Services,Direct Services,020082,Lifts,Third Party Payments,430100,Rendered by Private Contractors,04-May-2012,2442244-3942,665.00,LMC ELECTRICAL SERVICES T/A LMC ELECTRICAL & STAIRLIFT SERVICES LTD.
Neighbourhood Services,Direct Services,017104,Meadowfield Depot,Stock,926900,Stock in hand-Inventory system,04-May-2012,2442314-XL055485,"1,178.00",PARK ELECTRICAL DISTRIBUTORS LTD.
Neighbourhood Services,Direct Services,017104,Meadowfield Depot,Stock,926900,Stock in hand-Inventory system,04-May-2012,2442314-XL057067,"1,425.00",PARK ELECTRICAL DISTRIBUTORS LTD.
Neighbourhood Services,Direct Services,010864,Fleet Holding Account-Easington,Third Party Payments,430100,Rendered by Private Contractors,04-May-2012,2442326-TEE115892,630.23,PIRTEK CLEVELAND.
Neighbourhood Services,Direct Services,010911,Housing Maintenance (Durham City Homes),Supplies and Services,304221,Equipment and Materials,04-May-2012,2442331-4120/132265,831.61,PLUMBING TRADE SUPPLIES LTD.
Neighbourhood Services,Direct Services,010911,Housing Maintenance (Durham City Homes),Supplies and Services,304221,Equipment and Materials,04-May-2012,2442331-4120/132267,774.31,PLUMBING TRADE SUPPLIES LTD.
Neighbourhood Services,Direct Services,010911,Housing Maintenance (Durham City Homes),Supplies and Services,304221,Equipment and Materials,04-May-2012,2442332-4120/132175,828.95,PLUMBING TRADE SUPPLIES LTD.
Neighbourhood Services,Direct Services,010911,Housing Maintenance (Durham City Homes),Supplies and Services,304221,Equipment and Materials,04-May-2012,2442332-4120/132182,996.28,PLUMBING TRADE SUPPLIES LTD.
Neighbourhood Services,Direct Services,020061,Building R&M,Third Party Payments,430100,Rendered by Private Contractors,04-May-2012,2442343-21773,"2,245.00",R PARKER WALL & FLOOR TILING CONTRACTOR.
Neighbourhood Services,Direct Services,020061,Building R&M,Third Party Payments,430100,Rendered by Private Contractors,04-May-2012,2442343-21851,"3,349.50",R PARKER WALL & FLOOR TILING CONTRACTOR.
Neighbourhood Services,Direct Services,020061,Building R&M,Third Party Payments,430100,Rendered by Private Contractors,04-May-2012,2442343-21923,940.00,R PARKER WALL & FLOOR TILING CONTRACTOR.
Neighbourhood Services,Direct Services,010301,Street Scene Area North - Grounds Maintenance,Supplies and Services,304999,Equipment and Materials,04-May-2012,2442356-136551,"3,800.00",RICKERBY LTD.
Neighbourhood Services,Direct Services,020061,Building R&M,Third Party Payments,430100,Rendered by Private Contractors,04-May-2012,2442357-2480,"2,200.00",RINGLAND SCAFFOLDING.
Neighbourhood Services,Direct Services,020087,Roofing,Third Party Payments,430100,Rendered by Private Contractors,04-May-2012,2442357-2497,"6,700.00",RINGLAND SCAFFOLDING.
Neighbourhood Services,Direct Services,020067,Contracts SE,Third Party Payments,430100,Rendered by Private Contractors,04-May-2012,2442357-2515,"3,200.00",RINGLAND SCAFFOLDING.
Neighbourhood Services,Direct Services,020087,Roofing,Third Party Payments,430100,Rendered by Private Contractors,04-May-2012,2442357-2532,"1,600.00",RINGLAND SCAFFOLDING.
Neighbourhood Services,Direct Services,020061,Building R&M,Third Party Payments,430100,Rendered by Private Contractors,04-May-2012,2442357-2536,682.00,RINGLAND SCAFFOLDING.
Neighbourhood Services,Direct Services,015014,RIVERGREEN,Premises,125009,Rents,04-May-2012,2442361-4910,576.92,RIVERGREEN DEVELOPMENTS PLC.
Neighbourhood Services,Direct Services,015014,RIVERGREEN,Premises,125009,Rents,04-May-2012,2442361-4911,576.92,RIVERGREEN DEVELOPMENTS PLC.
Neighbourhood Services,Direct Services,015014,RIVERGREEN,Premises,125009,Rents,04-May-2012,2442361-4912,576.92,RIVERGREEN DEVELOPMENTS PLC.
Neighbourhood Services,Direct Services,015014,RIVERGREEN,Premises,125009,Rents,04-May-2012,2442361-4913,"4,982.29",RIVERGREEN DEVELOPMENTS PLC.
Neighbourhood Services,Direct Services,011003,FM - County Hall,Premises,106099,Centrally Controlled Rep and Maint,04-May-2012,2442374-94725516,"1,107.00",SCHNEIDER ELECTRIC LTD.
Neighbourhood Services,Direct Services,020090,Asbestos,Third Party Payments,430100,Rendered by Private Contractors,04-May-2012,2442438-LDS5610,950.00,THERMAC (HIRE) LTD.
Neighbourhood Services,Direct Services,017104,Meadowfield Depot,Stock,926900,Stock in hand-Inventory system,04-May-2012,2442449-91753,951.72,TOMMY WARDLE.
Neighbourhood Services,Direct Services,020065,Contracts NE,Third Party Payments,430100,Rendered by Private Contractors,04-May-2012,2442451-1451,"23,820.73",TOTAL PARTITIONS & CEILINGS LTD.
Neighbourhood Services,Direct Services,020065,Contracts NE,Third Party Payments,430100,Rendered by Private Contractors,04-May-2012,2442451-1453,"5,206.08",TOTAL PARTITIONS & CEILINGS LTD.
Neighbourhood Services,Direct Services,010328,Street Scene Area North - Refuse Collection,Supplies and Services,304357,Equipment and Materials,04-May-2012,2442461-TUC02040,740.00,TUC PLANT HIRE LTD.
Neighbourhood Services,Direct Services,010328,Street Scene Area North - Refuse Collection,Third Party Payments,430100,Rendered by Private Contractors,04-May-2012,2442479-INV59500,928.00,WASTE RECYCLING LTD T/A ALCO WASTE MANAGEMENT.
Neighbourhood Services,Direct Services,017104,Meadowfield Depot,Stock,926900,Stock in hand-Inventory system,04-May-2012,2442488-72668457,"1,086.71",WOLSELEY UK LTD.
Neighbourhood Services,Direct Services,020061,Building R&M,Supplies and Services,304221,Equipment and Materials,04-May-2012,2442488-72902956,567.13,WOLSELEY UK LTD.
Neighbourhood Services,"Environment,Health & Consumer Protection",010984,Training and Development,Employees,040149,"Recruitment, Instruction and Training",04-May-2012,2442179-87338,690.00,H20 CHEMICALS.
Neighbourhood Services,"Environment,Health & Consumer Protection",010984,Training and Development,Employees,040149,"Recruitment, Instruction and Training",04-May-2012,2442184-1070,"1,580.04",HASAN ASSOCIATES LTD.
Neighbourhood Services,"Environment,Health & Consumer Protection",010984,Training and Development,Employees,040149,"Recruitment, Instruction and Training",04-May-2012,2442296-NPC154-DCC,575.00,NPC TRAINING LTD.
Neighbourhood Services,Sport & Leisure,011023,Indoor Facilities Management,Transport,230005,Contract Hire,04-May-2012,2442050-1031004,633.60,CHARTER SELF DRIVE LTD.
Neighbourhood Services,Sport & Leisure,010670,Event-Open Sea Angling Competition,Supplies and Services,304221,Equipment and Materials,04-May-2012,2442083-472,670.50,COUNTY DURHAM EMS.
Neighbourhood Services,Sport & Leisure,011062,Future Leisure in Coxhoe,Summary reporting level,720810,Fees and Charges,04-May-2012,2442157-MAY1,"7,162.83",FUTURE LEISURE IN COXHOE (FLIC).
Neighbourhood Services,Sport & Leisure,010670,Event-Open Sea Angling Competition,Supplies and Services,304221,Equipment and Materials,04-May-2012,2442211-S4028,780.50,JEFF DOBSON MARQUEE HIRE.
Neighbourhood Services,Sport & Leisure,010670,Event-Open Sea Angling Competition,Supplies and Services,384199,Miscellaneous Expenses,04-May-2012,2442211-S4029,"2,455.00",JEFF DOBSON MARQUEE HIRE.
Neighbourhood Services,Sport & Leisure,010670,Event-Open Sea Angling Competition,Supplies and Services,304221,Equipment and Materials,04-May-2012,2442211-S4030,"2,455.00",JEFF DOBSON MARQUEE HIRE.
Neighbourhood Services,Sport & Leisure,010920,Leisure Contracts,Premises,106099,Centrally Controlled Rep and Maint,04-May-2012,2442290-10019733,743.60,NORSTEAD.
Neighbourhood Services,Technical Services,018300,Highways Operations - East,Supplies and Services,304221,Equipment and Materials,04-May-2012,2441974-LLI247718,"1,006.98",A THOMPSON & SONS LTD.
Neighbourhood Services,Technical Services,018300,Highways Operations - East,Supplies and Services,304221,Equipment and Materials,04-May-2012,2442172-039,"4,950.00",GRAEME HOPPER.
Neighbourhood Services,Technical Services,018901,Plant Hire,Supplies and Services,304358,Equipment and Materials,04-May-2012,2442209-5303972,"1,232.00",JA GILSON (AGRICULTURAL CONTRACTORS) LTD.
Neighbourhood Services,Technical Services,018400,018400 Highways Operations - West,Supplies and Services,304221,Equipment and Materials,04-May-2012,2442261-12035,"2,486.95",MEERDINK (UK) LTD.
Neighbourhood Services,Technical Services,018400,018400 Highways Operations - West,Third Party Payments,430100,Rendered by Private Contractors,04-May-2012,2442317-2015,"6,618.39",PELL & BALDWIN FABRICATION LTD.
Neighbourhood Services,Technical Services,018400,018400 Highways Operations - West,Third Party Payments,430100,Rendered by Private Contractors,04-May-2012,2442357-2538,551.00,RINGLAND SCAFFOLDING.
Neighbourhood Services,Technical Services,018400,018400 Highways Operations - West,Third Party Payments,430100,Rendered by Private Contractors,04-May-2012,2442486-30740,"5,528.00",WILLOWCRETE MFG CO LTD.
RED HRA,Housing Revenue Account,034030,Housing Repairs,Premises,105011,HRA Repair & Maintenance,04-May-2012,2442265-CON52120,594.00,MIS ENVIRONMENTAL LTD.
RED HRA,HRA Capital,035011,DCH Energy Works,Construction Work,908105,Construction work,04-May-2012,2442072-10149,"1,003.00",COMMUNITY ENERGY SOLUTIONS CIC.
RED HRA,HRA Capital,039733,DCH Capitalisation of Major Works,Construction Work,908105,Construction work,04-May-2012,2442397-3166,"4,750.00",ST ASTIER LTD.
RED HRA,HRA Capital,035008,Heating DHSI 11-12,Construction Work,908105,Construction work,04-May-2012,2442484-19783,"3,297.57",WHITFIELDS BUILDING SERVICES LTD.
RED HRA,HRA Capital,035010,DCH Communal Hall Conversions,Construction Work,908105,Construction work,04-May-2012,2442493-23979,"2,258.76",YWC GROUP LTD.
RED HRA,HRA Capital,035010,DCH Communal Hall Conversions,Construction Work,908105,Construction work,04-May-2012,2442493-23980,"2,466.46",YWC GROUP LTD.
Regeneration & Economic Development,Economic Development and Housing,030542,Durham Gate,Construction Work,908105,Construction work,04-May-2012,2441984-60155102-77,"4,320.00",AECOM LTD.
Regeneration & Economic Development,Economic Development and Housing,030655,Derwentside Business Centre - TCE,Premises,106099,Centrally Controlled Rep and Maint,04-May-2012,2442290-10019683,"1,195.88",NORSTEAD.
Regeneration & Economic Development,"Spatial Policy, Planning, Assets & Environment",031215,North Pennines - Heritage Landscape Skills,Supplies and Services,384199,Miscellaneous Expenses,04-May-2012,2441989-B/A12,747.76,ALISTAIR LOCKETT.
Regeneration & Economic Development,"Spatial Policy, Planning, Assets & Environment",031202,North Pennines - Peatscapes,Supplies and Services,384199,Miscellaneous Expenses,04-May-2012,2442038-1102,"8,100.00",CARRICK CONTRACTORS LTD.
Regeneration & Economic Development,"Spatial Policy, Planning, Assets & Environment",036400,Surplus Property Management,Supplies and Services,384159,Miscellaneous Expenses,04-May-2012,2442119-98,"6,286.80",EAGLE SECURITY BISHOP AUCKLAND LTD.
Regeneration & Economic Development,"Spatial Policy, Planning, Assets & Environment",031030,Developmental Management - Central/East,Supplies and Services,342051,Computers and Communications,04-May-2012,2442198-042025,"75,991.14",IDOX SOFTWARE LTD / CAPS SOLUTIONS.
Regeneration & Economic Development,"Spatial Policy, Planning, Assets & Environment",036304,Newgate Street Shop Bishop Auckland,Premises,106099,Centrally Controlled Rep and Maint,04-May-2012,2442231-INV00122656,650.00,LANES GROUP PLC.
Regeneration & Economic Development,"Spatial Policy, Planning, Assets & Environment",039965,Renewable Energy Technologies,Fees,901002,Professional Fees,04-May-2012,2442245-41100913,"7,744.10",LOCAL PARTNERSHIPS.
Regeneration & Economic Development,"Spatial Policy, Planning, Assets & Environment",031080,Limestone Landscape,Employees,040149,"Recruitment, Instruction and Training",04-May-2012,2442318-PTSO13718,895.00,PENTAGON IT.
Regeneration & Economic Development,Transport,032061,Traffic,Employees,080025,Agency Staff,04-May-2012,2441984-60216682-43,"3,448.00",AECOM LTD.
Regeneration & Economic Development,Transport,032201,LTP - Bus Stop Infrastructure QBP,Construction Work,908105,Construction work,04-May-2012,2442084-INS14600-W-B-S,"1,338.12",COUPE LINE LTD.
Regeneration & Economic Development,Transport,032095,Local Sustainable Transport Fund,Supplies and Services,336005,Advertising,04-May-2012,2442240-IN518795,535.00,LITEWHITE LTD.
Regeneration & Economic Development,Transport,032054,Parking Services,Supplies and Services,384199,Miscellaneous Expenses,04-May-2012,2442487-233277,"1,452.57",WM SMITH & SONS (BARNARD CASTLE) LTD.
Adults Wellbeing and Health,Commissioning inc Supporting People,052110,Comm.-Learning Disabilities SLAs,Third Party Payments,473111,Purchase of Care,08-May-2012,2443228-1504,"9,970.00",DAYBREAK.
Adults Wellbeing and Health,Commissioning inc Supporting People,052115,Commissioning - Carers SLCs,Third Party Payments,479101,Purchase of Care,08-May-2012,2443278-14218,546.50,FAMILY ACTION.
Adults Wellbeing and Health,Commissioning inc Supporting People,054814,Gala Theatre - Cinema,Supplies and Services,338047,Services,08-May-2012,2443650-22049219,673.88,WARNER BROS ENTERTAINMENT UK LTD.
Adults Wellbeing and Health,Commissioning inc Supporting People,054814,Gala Theatre - Cinema,Supplies and Services,338047,Services,08-May-2012,2443650-22049222,"1,115.33",WARNER BROS ENTERTAINMENT UK LTD.
Adults Wellbeing and Health,Commissioning inc Supporting People,054814,Gala Theatre - Cinema,Supplies and Services,338047,Services,08-May-2012,2443650-22049230,516.83,WARNER BROS ENTERTAINMENT UK LTD.
Adults Wellbeing and Health,Financing-Adult Services,059999,Financing-Adult Services,Creditors,952035,Creditor-housing benefit-eqpt,08-May-2012,2443384-001,"2,258.33",LINTZFORD GARDEN CENTRE.
Adults Wellbeing and Health,Head of Adults,055642,Dene Lodge LD Respite Unit,Premises,125009,Rents,08-May-2012,2443087-1040/001/0001-Q3/2012,"3,630.00",ACCENT FOUNDATION.
Adults Wellbeing and Health,Head of Adults,052354,West Locality LD Team,Transport,230005,Contract Hire,08-May-2012,2443305-7918,"1,813.00",GREENCROFT MINI COACHES.
Adults Wellbeing and Health,Head of Adults,051613,OP/PD Integrated Team - Easington Central,Transport,230005,Contract Hire,08-May-2012,2443481-0182,"1,820.00",PETER`S PRIVATE HIRE/PETER BEST.
Adults Wellbeing and Health,Head of Adults,052554,East Locality LD Team,Third Party Payments,472101,Purchase of Care,08-May-2012,2443508-2441,501.44,REACH OUT CARE SUPPORT SERVICES LTD.
Adults Wellbeing and Health,Head of Adults,052354,West Locality LD Team,Third Party Payments,472101,Purchase of Care,08-May-2012,2443508-2443,"1,997.56",REACH OUT CARE SUPPORT SERVICES LTD.
Adults Wellbeing and Health,Planning and Performance,054630,Promotions and Marketing - LLC,Supplies and Services,332001,"Printing, Stationery and Gen Off Exps",08-May-2012,2443637-530,560.00,ULTIMATE ADMIN SOLUTIONS LTD.
Adults Wellbeing and Health,Service Strategy,052601,Service Strategy-Director,Supplies and Services,384999,Miscellaneous Expenses,08-May-2012,2443186-2821001100,"2,235.00",CITY OF SUNDERLAND.
Adults Wellbeing and Health,Social Inclusion,056653,LMAP - SNU - Area 6,Supplies and Services,384199,Miscellaneous Expenses,08-May-2012,2443258-20009154,"5,000.00",DURHAM POLICE AUTHORITY.
Adults Wellbeing and Health,Social Inclusion,054233,Bp Auckland Town Hall Library,Supplies and Services,384956,Miscellaneous Expenses,08-May-2012,2443482-1570872,838.16,PHONOGRAPHIC PERFORMANCE LTD.
Assistant Chief Executive,Partnerships & Community Engagement Div.,060661,Members Neighbourhood Fund,Cap Exp on Grants & Other Financial Assistance (REFCUS),918004,Contributions to other bodies,08-May-2012,2443177-FLI,"4,331.00",CHESTER LE STREET TOWN FC.
Assistant Chief Executive,Partnerships & Community Engagement Div.,060661,Members Neighbourhood Fund,Supplies and Services,384086,Miscellaneous Expenses,08-May-2012,2443492-EDUR050-NB11,"2,000.00",PRE SCHOOL LEARNING ALLIANCE.
Assistant Chief Executive,Partnerships & Community Engagement Div.,060661,Members Neighbourhood Fund,Supplies and Services,384086,Miscellaneous Expenses,08-May-2012,2443545-EDRC011-NB11,"2,300.00",SEDGEFIELD VILLAGE OLYMPICS.
Assistant Chief Executive,Partnerships & Community Engagement Div.,060661,Members Neighbourhood Fund,Cap Exp on Grants & Other Financial Assistance (REFCUS),918004,Contributions to other bodies,08-May-2012,2443571-WEAR008-N811,"7,500.00",STANHOPE AGRICULTURAL SOCIETY.
Assistant Chief Executive,Policy & Communications Division,060290,Riep - Modern ways of working,Supplies and Services,352001,Conference Expenses,08-May-2012,2443615-SOIN46119,547.50,THE UNIVERSITY OF HULL.
Children and Young Peoples Services,CYPS - Local Authority,085380,Adoption and Fostering Mgt,Third Party Payments,440028,Other Third Party Payments,08-May-2012,2442541-801502,"1,513.35",REDACTED - PAYMENT TO INDIVIDUAL
Children and Young Peoples Services,CYPS - Local Authority,085373,Supporting People 18 to 21 Scheme,Third Party Payments,440031,Other Third Party Payments,08-May-2012,2442702-801140,518.14,REDACTED - PAYMENT TO INDIVIDUAL
Children and Young Peoples Services,CYPS - Local Authority,085380,Adoption and Fostering Mgt,Third Party Payments,440028,Other Third Party Payments,08-May-2012,2442757-801513,605.34,REDACTED - PAYMENT TO INDIVIDUAL
Children and Young Peoples Services,CYPS - Local Authority,085373,Supporting People 18 to 21 Scheme,Third Party Payments,440031,Other Third Party Payments,08-May-2012,2442764-801133,546.92,REDACTED - PAYMENT TO INDIVIDUAL
Children and Young Peoples Services,CYPS - Local Authority,085373,Supporting People 18 to 21 Scheme,Third Party Payments,440031,Other Third Party Payments,08-May-2012,2442944-800993,518.14,REDACTED - PAYMENT TO INDIVIDUAL
Children and Young Peoples Services,CYPS - Local Authority,072313,Stanley (Crook) Primary,Transport,230007,Contract Hire,08-May-2012,2443079-220725APR12,582.56,A MURRAY TRAVEL.
Children and Young Peoples Services,CYPS - Local Authority,072526,Wheatley Hill Community Primary,Transport,230007,Contract Hire,08-May-2012,2443083-C0412,570.00,AABAT TAXIS.
Children and Young Peoples Services,CYPS - Local Authority,077800,Special Schools General-LA,Transport,230007,Contract Hire,08-May-2012,2443083-E0412A,868.34,AABAT TAXIS.
Children and Young Peoples Services,CYPS - Local Authority,077800,Special Schools General-LA,Transport,230007,Contract Hire,08-May-2012,2443083-N0412,"1,180.00",AABAT TAXIS.
Children and Young Peoples Services,CYPS - Local Authority,077032,Trinity SEN Centre,Transport,230007,Contract Hire,08-May-2012,2443083-X0412,660.00,AABAT TAXIS.
Children and Young Peoples Services,CYPS - Local Authority,077014,Walworth School,Transport,230007,Contract Hire,08-May-2012,2443084-04/12,831.71,ABA TAXIS.
Children and Young Peoples Services,CYPS - Local Authority,077033,The Oaks School,Transport,230007,Contract Hire,08-May-2012,2443085-0019,"1,430.00",ABC TAXIS.
Children and Young Peoples Services,CYPS - Local Authority,072747,Gilesgate Primary,Transport,230007,Contract Hire,08-May-2012,2443086-34,880.00,ABLE NOVAK TAXIS.
Children and Young Peoples Services,CYPS - Local Authority,072494,Belmont Infant,Transport,230007,Contract Hire,08-May-2012,2443086-35,506.00,ABLE NOVAK TAXIS.
Children and Young Peoples Services,CYPS - Local Authority,077006,Elemore Hall School,Transport,230007,Contract Hire,08-May-2012,2443097-0234,945.00,AJS PRIVATE HIRE.
Children and Young Peoples Services,CYPS - Local Authority,077028,Villa Real School,Transport,230007,Contract Hire,08-May-2012,2443124-2,633.00,BARRYS TAXIS.
Children and Young Peoples Services,CYPS - Local Authority,085160,Children Services - East Mgt,Employees,080025,Agency Staff,08-May-2012,2443126-APRIL2012,"3,673.30",BB ASSOCIATES LEADERSHIP & MANAGEMENT.
Children and Young Peoples Services,CYPS - Local Authority,077800,Special Schools General-LA,Transport,230007,Contract Hire,08-May-2012,2443137-55,685.30,BL TAXIS.
Children and Young Peoples Services,CYPS - Local Authority,077029,Glen Dene School,Transport,230007,Contract Hire,08-May-2012,2443139-0036,750.00,BOBBY DOVE.
Children and Young Peoples Services,CYPS - Local Authority,077029,Glen Dene School,Transport,230007,Contract Hire,08-May-2012,2443139-0037,934.50,BOBBY DOVE.
Children and Young Peoples Services,CYPS - Local Authority,077029,Glen Dene School,Transport,230007,Contract Hire,08-May-2012,2443140-4,800.00,BOBS TAXIS.
Children and Young Peoples Services,CYPS - Local Authority,077800,Special Schools General-LA,Transport,230007,Contract Hire,08-May-2012,2443145-0412,"1,142.24",BRIAN WAKE.
Children and Young Peoples Services,CYPS - Local Authority,071927,GSSG-Two Year Old Nursery Pilot,Transfer Payments,510032,School Children,08-May-2012,2443155-AP,"2,500.00",BUTTERCUP NURSERIES LTD.
Children and Young Peoples Services,CYPS - Local Authority,075000,YPLA ESF NEET: NE-8205,Supplies and Services,384199,Miscellaneous Expenses,08-May-2012,2443175-INC001324,"8,877.00",CFBT EDUCATIONAL TRUST.
Children and Young Peoples Services,CYPS - Local Authority,077032,Trinity SEN Centre,Transport,230007,Contract Hire,08-May-2012,2443197-176,605.00,COLIN HOLMES.
Children and Young Peoples Services,CYPS - Local Authority,077032,Trinity SEN Centre,Transport,230007,Contract Hire,08-May-2012,2443197-177,550.00,COLIN HOLMES.
Children and Young Peoples Services,CYPS - Local Authority,075000,YPLA ESF NEET: NE-8205,Supplies and Services,384199,Miscellaneous Expenses,08-May-2012,2443238-270/12/1254,"2,811.00",DISC LTD.
Children and Young Peoples Services,CYPS - Local Authority,075000,YPLA ESF NEET: NE-8205,Supplies and Services,384199,Miscellaneous Expenses,08-May-2012,2443238-309/12/1254,"5,061.00",DISC LTD.
Children and Young Peoples Services,CYPS - Local Authority,071927,GSSG-Two Year Old Nursery Pilot,Transfer Payments,510032,School Children,08-May-2012,2443261-AP,"5,100.00",EARLY LEARNERS PRIVATE DAY NURSERY.
Children and Young Peoples Services,CYPS - Local Authority,085372,Young Peoples Services Team 2,Supplies and Services,364352,Grants to Voluntary Organisations,08-May-2012,2443293-SIGN/00028788,687.34,GENTOO CONSTRUCTION LTD.
Children and Young Peoples Services,CYPS - Local Authority,071927,GSSG-Two Year Old Nursery Pilot,Transfer Payments,510032,School Children,08-May-2012,2443327-AP,"3,400.00",HOUSE OF EDEN CHILDRENS NURSERY.
Children and Young Peoples Services,CYPS - Local Authority,085002,Senior Mangt - Children Inc. Agen,Third Party Payments,425040,Rendered by Voluntary Organisations,08-May-2012,2443339-INV-0032,"60,927.83",INTERACT CARE LTD.
Children and Young Peoples Services,CYPS - Local Authority,077006,Elemore Hall School,Transport,230007,Contract Hire,08-May-2012,2443343-201207,"1,282.43",J & D KELLY.
Children and Young Peoples Services,CYPS - Local Authority,071927,GSSG-Two Year Old Nursery Pilot,Transfer Payments,510032,School Children,08-May-2012,2443385-AP,"1,300.00",LITTLE BUNDLES OF MURTON LTD.
Children and Young Peoples Services,CYPS - Local Authority,085387,Adoption Support Team,Supplies and Services,338099,Services,08-May-2012,2443395-PF,638.70,REDACTED - PAYMENT TO INDIVIDUAL
Children and Young Peoples Services,CYPS - Local Authority,075000,YPLA ESF NEET: NE-8205,Supplies and Services,384199,Miscellaneous Expenses,08-May-2012,2443397-AH1675491,625.00,MENCAP.
Children and Young Peoples Services,CYPS - Local Authority,075000,YPLA ESF NEET: NE-8205,Supplies and Services,384199,Miscellaneous Expenses,08-May-2012,2443397-AH1675514,"8,437.50",MENCAP.
Children and Young Peoples Services,CYPS - Local Authority,072749,Benfieldside Primary,Transport,230007,Contract Hire,08-May-2012,2443412-BP-04-12,803.00,MR CT WALKER T/A COLIN`S TAXIS.
Children and Young Peoples Services,CYPS - Local Authority,077030,Windlestone Hall School,Transport,230007,Contract Hire,08-May-2012,2443412-W-04-12,"2,094.12",MR CT WALKER T/A COLIN`S TAXIS.
Children and Young Peoples Services,CYPS - Local Authority,077029,Glen Dene School,Transport,230007,Contract Hire,08-May-2012,2443413-125,"1,090.30",MR D KEMP T/A ACE EXECUTIVE.
Children and Young Peoples Services,CYPS - Local Authority,078100,Curric and Professional Development,Supplies and Services,338027,Services,08-May-2012,2443418-12031,"2,496.00",REDACTED - PAYMENT TO INDIVIDUAL
Children and Young Peoples Services,CYPS - Local Authority,074154,Spennymoor Comprehensive-upper,Transport,230007,Contract Hire,08-May-2012,2443419-088,660.00,MR S BALL.
Children and Young Peoples Services,CYPS - Local Authority,077032,Trinity SEN Centre,Transport,230007,Contract Hire,08-May-2012,2443420-TB19,506.00,MR STEVEN WILSON.
Children and Young Peoples Services,CYPS - Local Authority,071903,EYDCP-Sustainability EDS,Supplies and Services,338027,Services,08-May-2012,2443423-04-2012,"1,091.25",REDACTED - PAYMENT TO INDIVIDUAL
Children and Young Peoples Services,CYPS - Local Authority,074092,Greencroft Comprehensive-upper,Transport,230007,Contract Hire,08-May-2012,2443431-79,805.53,N FORBES.
Children and Young Peoples Services,CYPS - Local Authority,085002,Senior Mangt - Children Inc. Agen,Third Party Payments,486042,Service Level Agreements,08-May-2012,2443434-22070,551.69,NATIONAL YOUTH ADVOCACY SERVICE.
Children and Young Peoples Services,CYPS - Local Authority,085371,Young Peoples Services,Third Party Payments,486044,Service Level Agreements,08-May-2012,2443444-511084,"8,049.13",CO DURHAM PCT .
Children and Young Peoples Services,CYPS - Local Authority,085550,Manager-Children Disability Service,Supplies and Services,384638,Miscellaneous Expenses,08-May-2012,2443446-COM5484,502.00,NORTH EAST AUTISM SOCIETY.
Children and Young Peoples Services,CYPS - Local Authority,085550,Manager-Children Disability Service,Supplies and Services,384638,Miscellaneous Expenses,08-May-2012,2443446-COM5492,753.00,NORTH EAST AUTISM SOCIETY.
Children and Young Peoples Services,CYPS - Local Authority,085550,Manager-Children Disability Service,Supplies and Services,384638,Miscellaneous Expenses,08-May-2012,2443446-COM5494,502.00,NORTH EAST AUTISM SOCIETY.
Children and Young Peoples Services,CYPS - Local Authority,085550,Manager-Children Disability Service,Supplies and Services,384638,Miscellaneous Expenses,08-May-2012,2443446-COM5495,718.00,NORTH EAST AUTISM SOCIETY.
Children and Young Peoples Services,CYPS - Local Authority,085550,Manager-Children Disability Service,Supplies and Services,384638,Miscellaneous Expenses,08-May-2012,2443446-COM5499,502.00,NORTH EAST AUTISM SOCIETY.
Children and Young Peoples Services,CYPS - Local Authority,085550,Manager-Children Disability Service,Supplies and Services,384638,Miscellaneous Expenses,08-May-2012,2443447-COM5479,502.00,NORTH EAST AUTISM SOCIETY.
Children and Young Peoples Services,CYPS - Local Authority,073141,Staindrop CE Primary,Transport,230007,Contract Hire,08-May-2012,2443469-1000,763.62,PAUL WATSON TRAVEL.
Children and Young Peoples Services,CYPS - Local Authority,074174,Teesdale School,Transport,230007,Contract Hire,08-May-2012,2443469-1001,"1,370.60",PAUL WATSON TRAVEL.
Children and Young Peoples Services,CYPS - Local Authority,074174,Teesdale School,Transport,230007,Contract Hire,08-May-2012,2443469-1002,"1,370.60",PAUL WATSON TRAVEL.
Children and Young Peoples Services,CYPS - Local Authority,074171,Staindrop Comprehensive,Transport,230007,Contract Hire,08-May-2012,2443469-1004,770.00,PAUL WATSON TRAVEL.
Children and Young Peoples Services,CYPS - Local Authority,085009,Workforce Development Social Worker Development,Supplies and Services,338089,Services,08-May-2012,2443509-14368,"1,017.00",RECONSTRUCT LTD.
Children and Young Peoples Services,CYPS - Local Authority,085124,Children In Need Team Ch Le St,Transport,230005,Contract Hire,08-May-2012,2443550-41418-APRIL2012,664.00,SHOTTON PRIVATE HIRE.
Children and Young Peoples Services,CYPS - Local Authority,072498,Belmont Cheveley Park Primary,Transport,230007,Contract Hire,08-May-2012,2443572-969,"1,518.00",STANLEY TRAVEL (NORTH EAST) LTD.
Children and Young Peoples Services,CYPS - Local Authority,077028,Villa Real School,Transport,230007,Contract Hire,08-May-2012,2443572-971,"2,310.00",STANLEY TRAVEL (NORTH EAST) LTD.
Children and Young Peoples Services,CYPS - Local Authority,085371,Young Peoples Services,Supplies and Services,364352,Grants to Voluntary Organisations,08-May-2012,2443575-70002743,587.68,STONHAM HOUSING ASSOCIATION LTD.
Children and Young Peoples Services,CYPS - Local Authority,085372,Young Peoples Services Team 2,Supplies and Services,364352,Grants to Voluntary Organisations,08-May-2012,2443576-175,867.52,STONHAM HOUSING ASSOCIATION LTD.
Children and Young Peoples Services,CYPS - Local Authority,071927,GSSG-Two Year Old Nursery Pilot,Transfer Payments,510032,School Children,08-May-2012,2443582-AP2012,"8,800.00",SUNSHINE DAY NURSERY.
Children and Young Peoples Services,CYPS - Local Authority,073526,Greenland Community Primary School,Construction Work,908105,Construction work,08-May-2012,2443586-INS2-GL,"190,646.37",SURGO CONSTRUCTION LTD.
Children and Young Peoples Services,CYPS - Local Authority,078411,16-19 Education & Training,Premises,125009,Rents,08-May-2012,2443616-RFA,"5,838.75",THE WORK PLACE (AYCLIFFE) LTD.
Children and Young Peoples Services,CYPS - Local Authority,075000,YPLA ESF NEET: NE-8205,Supplies and Services,384199,Miscellaneous Expenses,08-May-2012,2443623-TA1467,"14,062.50",TINARTS.
Children and Young Peoples Services,CYPS - Local Authority,085380,Adoption and Fostering Mgt,Supplies and Services,304421,Equipment and Materials,08-May-2012,2443638-394217,580.61,UNITED CARLTON OFFICE SYSTEMS LTD.
Children and Young Peoples Services,CYPS - Local Authority,071994,Early Yrs Dev and Childcare Partner,Supplies and Services,304421,Equipment and Materials,08-May-2012,2443638-394398,708.28,UNITED CARLTON OFFICE SYSTEMS LTD.
Children and Young Peoples Services,CYPS - Local Authority,077033,The Oaks School,Transport,230007,Contract Hire,08-May-2012,2443652-607,850.00,WAYNE`S TAXIS.
Children and Young Peoples Services,CYPS - Local Authority,077033,The Oaks School,Transport,230007,Contract Hire,08-May-2012,2443652-608,956.40,WAYNE`S TAXIS.
Children and Young Peoples Services,CYPS - Local Authority,073442,St Williams RC VA Primary Trimdon,Transport,230007,Contract Hire,08-May-2012,2443652-609,735.00,WAYNE`S TAXIS.
Children and Young Peoples Services,CYPS - Local Authority,079012,Lang Unit-Cheveley Pk-Transport,Transport,230007,Contract Hire,08-May-2012,2443656-201204,520.00,WENDYS` TAXIS.
Children and Young Peoples Services,CYPS - Local Authority,071927,GSSG-Two Year Old Nursery Pilot,Transfer Payments,510032,School Children,08-May-2012,2443666-AP,"1,300.00",YORK HOUSE NURSERY.
Children and Young Peoples Services,Dedicated Schools Grant,071100,Pupil Referral Unit,Transport,230007,Contract Hire,08-May-2012,2443088-007,528.00,ACE TAXIS..
Children and Young Peoples Services,Dedicated Schools Grant,071100,Pupil Referral Unit,Transport,230007,Contract Hire,08-May-2012,2443098-8,610.00,ALAN`S TAXIS.
Children and Young Peoples Services,Dedicated Schools Grant,071102,PRU KS4 Provision,Transport,230005,Contract Hire,08-May-2012,2443129-329,700.00,BEELINE MINI BUSES.
Children and Young Peoples Services,Dedicated Schools Grant,071103,PRU Temporary Cover,Employees,080025,Agency Staff,08-May-2012,2443160-03491110,995.00,CAPITA EDUCATION RESOURCING.
Children and Young Peoples Services,Dedicated Schools Grant,071103,PRU Temporary Cover,Employees,080025,Agency Staff,08-May-2012,2443160-03491111,995.00,CAPITA EDUCATION RESOURCING.
Children and Young Peoples Services,Dedicated Schools Grant,071103,PRU Temporary Cover,Employees,080025,Agency Staff,08-May-2012,2443160-03493663,995.00,CAPITA EDUCATION RESOURCING.
Children and Young Peoples Services,Dedicated Schools Grant,071103,PRU Temporary Cover,Employees,080025,Agency Staff,08-May-2012,2443160-03493664,995.00,CAPITA EDUCATION RESOURCING.
Children and Young Peoples Services,Dedicated Schools Grant,079038,EOTAS-GAP-Revenue,Transport,230005,Contract Hire,08-May-2012,2443252-005,632.50,DUNCAN G CUMMINGS T/A DC TAXIS.
Children and Young Peoples Services,Dedicated Schools Grant,071103,PRU Temporary Cover,Employees,080025,Agency Staff,08-May-2012,2443368-16132,925.00,KEYSTAGE RECRUITMENT LTD.
Children and Young Peoples Services,Dedicated Schools Grant,071103,PRU Temporary Cover,Employees,080025,Agency Staff,08-May-2012,2443368-16173,"1,850.00",KEYSTAGE RECRUITMENT LTD.
Children and Young Peoples Services,Dedicated Schools Grant,071103,PRU Temporary Cover,Employees,040149,"Recruitment, Instruction and Training",08-May-2012,2443528-4157,849.40,S & D TRAINING.
Children and Young Peoples Services,Dedicated Schools Grant,071100,Pupil Referral Unit,Transport,230005,Contract Hire,08-May-2012,2443534-WP0096,540.00,SAVILLES TRAVEL.
Children and Young Peoples Services,Dedicated Schools Grant,071100,Pupil Referral Unit,Transport,230007,Contract Hire,08-May-2012,2443572-977,"1,700.40",STANLEY TRAVEL (NORTH EAST) LTD.
Children and Young Peoples Services,Dedicated Schools Grant,071103,PRU Temporary Cover,Employees,080025,Agency Staff,08-May-2012,2443599-733687,650.00,TEACHING PERSONNEL LTD.
Children and Young Peoples Services,Dedicated Schools Grant,071103,PRU Temporary Cover,Employees,080025,Agency Staff,08-May-2012,2443599-733688,"1,025.00",TEACHING PERSONNEL LTD.
Children and Young Peoples Services,Dedicated Schools Grant,071103,PRU Temporary Cover,Employees,080025,Agency Staff,08-May-2012,2443599-733689,925.00,TEACHING PERSONNEL LTD.
Children and Young Peoples Services,Dedicated Schools Grant,071103,PRU Temporary Cover,Employees,080025,Agency Staff,08-May-2012,2443599-733690,960.00,TEACHING PERSONNEL LTD.
Children and Young Peoples Services,Dedicated Schools Grant,071103,PRU Temporary Cover,Employees,080025,Agency Staff,08-May-2012,2443599-733691,600.00,TEACHING PERSONNEL LTD.
Children and Young Peoples Services,Dedicated Schools Grant,079038,EOTAS-GAP-Revenue,Transport,230005,Contract Hire,08-May-2012,2443630-34,825.00,TRIDENT TAXIS.
Corporate Resources,Financing- Resources,065127,Support and Development,Supplies and Services,342051,Computers and Communications,08-May-2012,2443187-C/R8108999,"5,055.00",CIVICA UK LTD.
Corporate Resources,Financing- Resources,065116,Creditor Payments,Supplies and Services,332047,"Printing, Stationery and Gen Off Exps",08-May-2012,2443496-NS003321,"4,680.00",PROGRESS PRINT LTD.
Corporate Resources,ICT Services incl. Design and Print,065304,Design & Print - Print,Supplies and Services,304245,Equipment and Materials,08-May-2012,2443106-WN1948002,626.05,ANTALIS MCNAUGHTON LTD.
Corporate Resources,ICT Services incl. Design and Print,065487,ICT Telephony Recharges,Supplies and Services,344033,Telephones,08-May-2012,2443148-VP90592270M08301,"1,446.17",BRITISH TELECOMMUNICATIONS PLC.
Corporate Resources,ICT Services incl. Design and Print,065481,Technical Services,"Vehicles, Equipment, Furniture and Fittings",912701,Computer equipment,08-May-2012,2443156-UK10/042012/1227,"2,076.65",CABLE & WIRELESS.
Corporate Resources,ICT Services incl. Design and Print,070204,ICT School Services - Systems and Repairs Team,Stock,926900,Stock in hand-Inventory system,08-May-2012,2443233-7401930404,667.26,DELL COMPUTER CORPORATION LTD.
Corporate Resources,ICT Services incl. Design and Print,065306,Design & Print - Outside Work,Supplies and Services,332029,"Printing, Stationery and Gen Off Exps",08-May-2012,2443320-63367,690.00,HILLPRINT MEDIA LTD.
Corporate Resources,ICT Services incl. Design and Print,065487,ICT Telephony Recharges,Supplies and Services,344014,Telephones,08-May-2012,2443456-SB14411204,970.14,O2 (UK) LTD.
Corporate Resources,ICT Services incl. Design and Print,065487,ICT Telephony Recharges,Supplies and Services,344014,Telephones,08-May-2012,2443456-SB14461204,543.57,O2 (UK) LTD.
Corporate Resources,ICT Services incl. Design and Print,065487,ICT Telephony Recharges,Supplies and Services,344014,Telephones,08-May-2012,2443456-SB14471204,517.17,O2 (UK) LTD.
Corporate Resources,ICT Services incl. Design and Print,065481,Technical Services,Employees,040149,"Recruitment, Instruction and Training",08-May-2012,2443474-1361,"2,550.00",PEOPLE CENTRIC ASSOCIATES LTD.
Corporate Resources,ICT Services incl. Design and Print,065302,Design & Print - Accounts,Supplies and Services,340001,Postages,08-May-2012,2443524-9038002688,"1,525.11",ROYAL MAIL GROUP PLC.
Corporate Resources,ICT Services incl. Design and Print,065201,Computer Section,Stock,926900,Stock in hand-Inventory system,08-May-2012,2443665-R444867,"31,500.00",XMA LTD.
Corporate Resources,Legal & Democratic Services,067811,Registrars-Aykley Heads House,Premises,125009,Rents,08-May-2012,2443142-D09811,"2,600.63",BRADLEY HALL CHARTERED SURVEYORS CLIENT ACCOUNT.
Corporate Resources,Legal & Democratic Services,067811,Registrars-Aykley Heads House,Premises,125009,Rents,08-May-2012,2443142-D09812,588.56,BRADLEY HALL CHARTERED SURVEYORS CLIENT ACCOUNT.
Corporate Resources,Legal & Democratic Services,067811,Registrars-Aykley Heads House,Premises,120021,Energy Costs,08-May-2012,2443142-D09817,944.73,BRADLEY HALL CHARTERED SURVEYORS CLIENT ACCOUNT.
Corporate Resources,Legal & Democratic Services,067951,Coroner - North,Supplies and Services,338025,Services,08-May-2012,2443195-S44954-00526,780.00,CO-OPERATIVE FUNERAL CARE.
Corporate Resources,Legal & Democratic Services,067952,Coroner - South,Supplies and Services,338057,Services,08-May-2012,2443240-412/S,987.20,REDACTED - PAYMENT TO INDIVIDUAL
Corporate Resources,Legal & Democratic Services,067951,Coroner - North,Supplies and Services,338057,Services,08-May-2012,2443241-412/N,774.40,REDACTED - PAYMENT TO INDIVIDUAL
Corporate Resources,Legal & Democratic Services,067952,Coroner - South,Supplies and Services,338057,Services,08-May-2012,2443242-412/S,"1,452.00",REDACTED - PAYMENT TO INDIVIDUAL
Corporate Resources,Legal & Democratic Services,067952,Coroner - South,Supplies and Services,338057,Services,08-May-2012,2443244-412/S,677.60,REDACTED - PAYMENT TO INDIVIDUAL
Corporate Resources,Legal & Democratic Services,067951,Coroner - North,Supplies and Services,338057,Services,08-May-2012,2443245-412/N,"1,161.60",REDACTED - PAYMENT TO INDIVIDUAL
Corporate Resources,Legal & Democratic Services,067951,Coroner - North,Supplies and Services,338057,Services,08-May-2012,2443246-412/N,"1,161.60",REDACTED - PAYMENT TO INDIVIDUAL
Corporate Resources,Legal & Democratic Services,067951,Coroner - North,Supplies and Services,338057,Services,08-May-2012,2443248-412/N,"1,452.00",REDACTED - PAYMENT TO INDIVIDUAL
Corporate Resources,Legal & Democratic Services,067952,Coroner - South,Supplies and Services,338057,Services,08-May-2012,2443249-412/S,774.40,REDACTED - PAYMENT TO INDIVIDUAL
Corporate Resources,Legal & Democratic Services,067951,Coroner - North,Supplies and Services,338057,Services,08-May-2012,2443250-412/N,"1,258.40",REDACTED - PAYMENT TO INDIVIDUAL
Corporate Resources,Legal & Democratic Services,067951,Coroner - North,Supplies and Services,338057,Services,08-May-2012,2443272-1083,677.60,ELYSIAN PATHOLOGY SERVICES LTD.
Corporate Resources,Legal & Democratic Services,067816,Registrars-Peterlee,Supplies and Services,336007,Advertising,08-May-2012,2443394-533,"1,000.00",MARTIN AVERY.
Corporate Resources,Legal & Democratic Services,069556,Electorial Registriation,Supplies and Services,332029,"Printing, Stationery and Gen Off Exps",08-May-2012,2443495-A008393,764.47,PRINT IMAGE NETWORK LTD.
Neighbourhood Services,Direct Services,020065,Contracts NE,Supplies and Services,304221,Equipment and Materials,08-May-2012,2443081-LLI247162,"1,365.00",A THOMPSON & SONS LTD.
Neighbourhood Services,Direct Services,020070,Heating North,Third Party Payments,430100,Rendered by Private Contractors,08-May-2012,2443119-7011,"3,773.00",ASTRAL CONTROL SERVICES LTD.
Neighbourhood Services,Direct Services,010314,Street Scene Area - Churchyards & Cemeteries,Supplies and Services,338066,Services,08-May-2012,2443223-111443HW,"2,030.00",DANIEL ROBINSON & SONS LTD.
Neighbourhood Services,Direct Services,010551,Fleet Holding Account-Sedgefield,Stock,926004,Stock,08-May-2012,2443291-7718008,"2,065.20",GB OILS T/A BRETT FUELS.
Neighbourhood Services,Direct Services,017104,Meadowfield Depot,Stock,926900,Stock in hand-Inventory system,08-May-2012,2443306-06/408956,537.72,GREENHAM TRADING LTD.
Neighbourhood Services,Direct Services,020065,Contracts NE,Supplies and Services,304221,Equipment and Materials,08-May-2012,2443308-J3235,869.20,GROVE REED.
Neighbourhood Services,Direct Services,017104,Meadowfield Depot,Stock,926900,Stock in hand-Inventory system,08-May-2012,2443338-372381,"1,827.84",INSTARMAC GROUP PLC.
Neighbourhood Services,Direct Services,010551,Fleet Holding Account-Sedgefield,Transport,210057,Repair and Maintenance of Vehicles,08-May-2012,2443383-SI5307801,691.60,LINDEN GROUP LTD.
Neighbourhood Services,Direct Services,020061,Building R&M,Third Party Payments,430100,Rendered by Private Contractors,08-May-2012,2443502-2434,"4,858.00",QW SECURITY LTD.
Neighbourhood Services,Direct Services,010900,Central Fleet (Meadowfield Workshop),Third Party Payments,430100,Rendered by Private Contractors,08-May-2012,2443561-L/011/12/17038,"1,050.00",SOCIETE GENERALE EQUIPMENT FINANCE LTD.
Neighbourhood Services,Direct Services,010900,Central Fleet (Meadowfield Workshop),Third Party Payments,430100,Rendered by Private Contractors,08-May-2012,2443561-L/011/12/20061,"2,060.00",SOCIETE GENERALE EQUIPMENT FINANCE LTD.
Neighbourhood Services,Direct Services,017104,Meadowfield Depot,Stock,926900,Stock in hand-Inventory system,08-May-2012,2443659-72706858,"1,860.16",WOLSELEY UK LTD.
Neighbourhood Services,Sport & Leisure,010962,County Durham Sport - Health Projects,Supplies and Services,384700,Miscellaneous Expenses,08-May-2012,2443113-04,"20,500.00",ASA NORTH EAST REGION.
Neighbourhood Services,Sport & Leisure,010959,County Durham Sport - Management,Supplies and Services,384199,Miscellaneous Expenses,08-May-2012,2443257-DCB008,500.00,DURHAM CRICKET BOARD.
Neighbourhood Services,Sport & Leisure,010962,County Durham Sport - Health Projects,Supplies and Services,384700,Miscellaneous Expenses,08-May-2012,2443621-001(CPAL),"7,481.00",THUNDER COMMUNITY TRUST.
Neighbourhood Services,Technical Services,018400,018400 Highways Operations - West,Supplies and Services,304221,Equipment and Materials,08-May-2012,2443081-LLI249470,"1,806.11",A THOMPSON & SONS LTD.
Neighbourhood Services,Technical Services,018400,018400 Highways Operations - West,Supplies and Services,304221,Equipment and Materials,08-May-2012,2443150-INV091058,"1,978.85",BROXAP LTD.
Neighbourhood Services,Technical Services,018300,Highways Operations - East,Supplies and Services,304221,Equipment and Materials,08-May-2012,2443150-INV091358,647.00,BROXAP LTD.
Neighbourhood Services,Technical Services,018300,Highways Operations - East,Supplies and Services,304221,Equipment and Materials,08-May-2012,2443150-INV091484,"1,178.00",BROXAP LTD.
Neighbourhood Services,Technical Services,024941,Road Bridges,Construction Work,908201,Capital - Public Utilities - Electricity Services,08-May-2012,2443452-ENQ5179657,"4,335.01",NORTHERN POWERGRID (NORTHEAST) LTD..
RED HRA,Housing Revenue Account,034010,Housing Supervision & Management - General,Supplies and Services,338027,Services,08-May-2012,2443348-11/019,"1,650.00",JANIS DEAN ASSOCIATES.
RED HRA,Housing Revenue Account,034010,Housing Supervision & Management - General,Supplies and Services,338027,Services,08-May-2012,2443348-11/020,"1,100.00",JANIS DEAN ASSOCIATES.
RED HRA,Housing Revenue Account,034053,Tenancy Involvement,Supplies and Services,372009,Subscriptions,08-May-2012,2443627-10431,"1,550.00",TPAS LTD.
RED HRA,HRA Capital,039853,Utilities,Construction Work,908105,Construction work,08-May-2012,2443369-50333,"70,883.82",KIER SERVICES LTD.
RED HRA,HRA Capital,039853,Utilities,Construction Work,908105,Construction work,08-May-2012,2443369-50336,"80,576.24",KIER SERVICES LTD.
RED HRA,HRA Capital,039856,Decent Homes Schemes,Construction Work,908105,Construction work,08-May-2012,2443369-A50315-2,"433,730.38",KIER SERVICES LTD.
Regeneration & Economic Development,Economic Development and Housing,030542,Durham Gate,Construction Work,908105,Construction work,08-May-2012,2443120-11047035,"14,712.25",ATKINS LTD.
Regeneration & Economic Development,Economic Development and Housing,030542,Durham Gate,Construction Work,908105,Construction work,08-May-2012,2443123-14/5090394,"123,149.16",BALFOUR BEATTY CIVIL ENGINEERING LTD.
Regeneration & Economic Development,Economic Development and Housing,039673,Consett Business Park Final Phase,Fees,901002,Professional Fees,08-May-2012,2443382-2012/19,"1,500.00",LIME4 LTD.
Regeneration & Economic Development,Economic Development and Housing,030641,Plot 8 Netpark,Construction Work,908105,Construction work,08-May-2012,2443658-INS4-SNP.,"9,403.05",WILLMOTT DIXON CONSTRUCTION LTD.
Regeneration & Economic Development,Housing General Fund,039834,Disabled Facility Grants Mand,Cap Exp on Grants & Other Financial Assistance (REFCUS),918401,Capital grants,08-May-2012,2443522-DFG08/12,"4,070.00",RONDEN BUILDERS LTD.
Regeneration & Economic Development,Housing General Fund,039834,Disabled Facility Grants Mand,Cap Exp on Grants & Other Financial Assistance (REFCUS),918401,Capital grants,08-May-2012,2443522-DFG09/12,"4,240.00",RONDEN BUILDERS LTD.
Regeneration & Economic Development,Housing General Fund,039834,Disabled Facility Grants Mand,Cap Exp on Grants & Other Financial Assistance (REFCUS),918401,Capital grants,08-May-2012,2443605-RD2323,"8,726.84",TERRY GROUP LTD.
Regeneration & Economic Development,Housing General Fund,039834,Disabled Facility Grants Mand,Fees,901001,Internal fees,08-May-2012,2443620-SITRH/0004272,"1,228.32",THREE RIVERS HOUSING ASSOCIATION LTD.
Regeneration & Economic Development,Housing General Fund,039834,Disabled Facility Grants Mand,Fees,901001,Internal fees,08-May-2012,2443620-SITRH/0004273,512.80,THREE RIVERS HOUSING ASSOCIATION LTD.
Regeneration & Economic Development,"Spatial Policy, Planning, Assets & Environment",031051,URRI Environment Improvement Schemes,Construction Work,908105,Construction work,08-May-2012,2443150-INV092433,"9,502.15",BROXAP LTD.
Regeneration & Economic Development,"Spatial Policy, Planning, Assets & Environment",031031,Developmental Management - Northern,Supplies and Services,342051,Computers and Communications,08-May-2012,2443453-91197720,"1,931.53",NORTHGATE INFORMATION SOLUTIONS UK LTD.
Regeneration & Economic Development,"Spatial Policy, Planning, Assets & Environment",036000,Asset Management,Supplies and Services,372009,Subscriptions,08-May-2012,2443515-071669,"2,789.00",RICS BOOKS.
Regeneration & Economic Development,"Spatial Policy, Planning, Assets & Environment",031200,North Pennines Tourism Partnership-Core,Supplies and Services,384199,Miscellaneous Expenses,08-May-2012,2443613-CF12/42,"1,140.00",THE NATIONAL ASSOCIATION FOR AONBS.
Regeneration & Economic Development,Strategy Programmes and Performance,030568,RDPE North Pennine Dales Local Action  Group,Supplies and Services,384899,Miscellaneous Expenses,08-May-2012,2443100-NPD143/2,"1,959.94",ALLENHEADS CONTEMPORARY ARTS LTD.
Regeneration & Economic Development,Transport,032153,Public Transport - Bus Contracts,Third Party Payments,430106,Rendered by Private Contractors,08-May-2012,2443101-TX1349,"1,757.60",ALSTON ROAD GARAGE.
Regeneration & Economic Development,Transport,032153,Public Transport - Bus Contracts,Third Party Payments,430106,Rendered by Private Contractors,08-May-2012,2443299-28256,"80,861.20",GO GATESHEAD LTD.
Regeneration & Economic Development,Transport,032158,Rural Bus Services-Grant Aided,Third Party Payments,430106,Rendered by Private Contractors,08-May-2012,2443303-73V,"7,571.22",GRAHAMS MOTOR SERVICES.
Regeneration & Economic Development,Transport,032158,Rural Bus Services-Grant Aided,Third Party Payments,430106,Rendered by Private Contractors,08-May-2012,2443303-74V,"7,539.47",GRAHAMS MOTOR SERVICES.
Regeneration & Economic Development,Transport,032158,Rural Bus Services-Grant Aided,Third Party Payments,430106,Rendered by Private Contractors,08-May-2012,2443303-75V,"7,542.29",GRAHAMS MOTOR SERVICES.
Regeneration & Economic Development,Transport,032153,Public Transport - Bus Contracts,Third Party Payments,430106,Rendered by Private Contractors,08-May-2012,2443323-008113,"3,830.80",HODGSONS COACH OPERATORS LTD.
Regeneration & Economic Development,Transport,032153,Public Transport - Bus Contracts,Third Party Payments,430106,Rendered by Private Contractors,08-May-2012,2443352-2012/06,"2,407.50",JM HUMBLE COACH HIRE.
Regeneration & Economic Development,Transport,032153,Public Transport - Bus Contracts,Third Party Payments,430106,Rendered by Private Contractors,08-May-2012,2443355-DCC0171APR12,"11,848.97",JOHN JAMES BRUNSKILL.
Regeneration & Economic Development,Transport,032153,Public Transport - Bus Contracts,Third Party Payments,430106,Rendered by Private Contractors,08-May-2012,2443358-LINK2INV24,"3,124.95",JOVIAL PRIVATE HIRE.
Regeneration & Economic Development,Transport,032153,Public Transport - Bus Contracts,Third Party Payments,430106,Rendered by Private Contractors,08-May-2012,2443387-890,"5,593.20",LP TRAVEL LTD.
Regeneration & Economic Development,Transport,032158,Rural Bus Services-Grant Aided,Third Party Payments,430106,Rendered by Private Contractors,08-May-2012,2443396-PPT2983&PPT3175-31/3/12,"4,542.90",MAURICE & SONS.
Regeneration & Economic Development,Transport,032207,North East Travel Information Services,Supplies and Services,342051,Computers and Communications,08-May-2012,2443464-91452314,"4,000.00",ORDNANCE SURVEY.
Regeneration & Economic Development,Transport,032054,Parking Services,Supplies and Services,384199,Miscellaneous Expenses,08-May-2012,2443494-119610,695.00,PREMIER TRAFFIC MANAGEMENT LTD.
Regeneration & Economic Development,Transport,032153,Public Transport - Bus Contracts,Third Party Payments,430106,Rendered by Private Contractors,08-May-2012,2443535-60,"6,317.78",SB TRAVEL.
Regeneration & Economic Development,Transport,032153,Public Transport - Bus Contracts,Third Party Payments,430106,Rendered by Private Contractors,08-May-2012,2443607-62094,"3,428.65",TGM GROUP LTD T/A CLASSIC COACHES (CONTINENTAL) LTD.
Regeneration & Economic Development,Transport,031701,Supported Housing � All Localities,Supplies and Services,304245,Equipment and Materials,08-May-2012,2443635-3IN/10197845,"5,613.53",TUNSTALL HEALTHCARE (UK) LTD.
Regeneration & Economic Development,Transport,032158,Rural Bus Services-Grant Aided,Third Party Payments,430106,Rendered by Private Contractors,08-May-2012,2443653-0898,"26,364.89",WEARDALE MOTOR SERVICES LTD.
Adults Wellbeing and Health,Commissioning inc Supporting People,054750,Arts Development - LLC,Supplies and Services,384199,Miscellaneous Expenses,09-May-2012,206638-505,"2,813.00",AUDIENCES NORTH EAST LTD.
Adults Wellbeing and Health,Commissioning inc Supporting People,054819,Gala Theatre - Theatre Productions,Supplies and Services,338047,Services,09-May-2012,206646-415,"4,796.03",BILLY FURY STORY LTD.
Adults Wellbeing and Health,Commissioning inc Supporting People,052110,Comm.-Learning Disabilities SLAs,Third Party Payments,479111,Purchase of Care,09-May-2012,206805-LD280,"6,086.40",THE BEFRIENDER SCHEME.
Adults Wellbeing and Health,Commissioning inc Supporting People,054819,Gala Theatre - Theatre Productions,Supplies and Services,338047,Services,09-May-2012,2443691-SIN003926,"1,725.76",AVALON PROMOTIONS LTD.
Adults Wellbeing and Health,Commissioning inc Supporting People,054812,Gala Theatre - Catering etc,Supplies and Services,324001,Provisions,09-May-2012,2443718-EW52841227,808.54,CARLSBERG UK LTD.
Adults Wellbeing and Health,Commissioning inc Supporting People,054812,Gala Theatre - Catering etc,Supplies and Services,324001,Provisions,09-May-2012,2443729-9100241386,512.44,COCA COLA ENTERPRISES LTD.
Adults Wellbeing and Health,Commissioning inc Supporting People,054819,Gala Theatre - Theatre Productions,Supplies and Services,338047,Services,09-May-2012,2443730-5765/M,"1,702.79",COMEDY STORE MANAGEMENT.
Adults Wellbeing and Health,Commissioning inc Supporting People,054731,Killhope Lead Mining Centre - LLC,Construction Work,908105,Construction work,09-May-2012,2443898-Q101276,779.29,NORTHUMBRIAN WATER LTD.
Adults Wellbeing and Health,Commissioning inc Supporting People,052110,Comm.-Learning Disabilities SLAs,Third Party Payments,479102,Purchase of Care,09-May-2012,2443957-7751,"1,282.72",SAFETY SYSTEMS DISTRIBUTION LTD.
Adults Wellbeing and Health,Commissioning inc Supporting People,052110,Comm.-Learning Disabilities SLAs,Third Party Payments,479101,Purchase of Care,09-May-2012,2443995-430021514,"4,088.33",TEES ESK & WEAR VALLEY NHS FOUNDATION TRUST.
Adults Wellbeing and Health,Head of Adults,057605,LD Supported Housing - Sedgefield,Summary reporting level,720024,Fees and Charges,09-May-2012,206610-UC,790.40,REDACTED - PAYMENT TO INDIVIDUAL
Adults Wellbeing and Health,Head of Adults,052750,Learning Disability Management,Summary reporting level,740299,Other Income,09-May-2012,206610-W/GC,670.00,REDACTED - PAYMENT TO INDIVIDUAL
Adults Wellbeing and Health,Head of Adults,052750,Learning Disability Management,Summary reporting level,740299,Other Income,09-May-2012,206611-W/GC,920.00,REDACTED - PAYMENT TO INDIVIDUAL
Adults Wellbeing and Health,Head of Adults,057601,LD Supported Housing - Derwentside,Summary reporting level,720024,Fees and Charges,09-May-2012,206613-UC,716.04,REDACTED - PAYMENT TO INDIVIDUAL
Adults Wellbeing and Health,Head of Adults,052750,Learning Disability Management,Summary reporting level,740299,Other Income,09-May-2012,206613-W/GC,780.80,REDACTED - PAYMENT TO INDIVIDUAL
Adults Wellbeing and Health,Head of Adults,057601,LD Supported Housing - Derwentside,Summary reporting level,720024,Fees and Charges,09-May-2012,206615-UC,832.00,REDACTED - PAYMENT TO INDIVIDUAL
Adults Wellbeing and Health,Head of Adults,052750,Learning Disability Management,Summary reporting level,740299,Other Income,09-May-2012,206616-W/GC,"1,049.00",REDACTED - PAYMENT TO INDIVIDUAL
Adults Wellbeing and Health,Head of Adults,057601,LD Supported Housing - Derwentside,Summary reporting level,720024,Fees and Charges,09-May-2012,206617-UC,575.64,REDACTED - PAYMENT TO INDIVIDUAL
Adults Wellbeing and Health,Head of Adults,052750,Learning Disability Management,Summary reporting level,740299,Other Income,09-May-2012,206617-W/GC,546.00,REDACTED - PAYMENT TO INDIVIDUAL
Adults Wellbeing and Health,Head of Adults,052750,Learning Disability Management,Summary reporting level,740299,Other Income,09-May-2012,206618-W/GC,612.80,REDACTED - PAYMENT TO INDIVIDUAL
Adults Wellbeing and Health,Head of Adults,057605,LD Supported Housing - Sedgefield,Summary reporting level,720024,Fees and Charges,09-May-2012,206619-UC,622.44,REDACTED - PAYMENT TO INDIVIDUAL
Adults Wellbeing and Health,Head of Adults,057605,LD Supported Housing - Sedgefield,Summary reporting level,720024,Fees and Charges,09-May-2012,206620-UC,854.88,REDACTED - PAYMENT TO INDIVIDUAL
Adults Wellbeing and Health,Head of Adults,052750,Learning Disability Management,Summary reporting level,740299,Other Income,09-May-2012,206620-WCC,845.00,REDACTED - PAYMENT TO INDIVIDUAL
Adults Wellbeing and Health,Head of Adults,052750,Learning Disability Management,Summary reporting level,740299,Other Income,09-May-2012,206621-W/GC,615.00,REDACTED - PAYMENT TO INDIVIDUAL
Adults Wellbeing and Health,Head of Adults,057601,LD Supported Housing - Derwentside,Summary reporting level,720024,Fees and Charges,09-May-2012,206622-UC,"1,157.52",REDACTED - PAYMENT TO INDIVIDUAL
Adults Wellbeing and Health,Head of Adults,057601,LD Supported Housing - Derwentside,Summary reporting level,720024,Fees and Charges,09-May-2012,206684-UC,"1,356.16",REDACTED - PAYMENT TO INDIVIDUAL
Adults Wellbeing and Health,Head of Adults,052750,Learning Disability Management,Summary reporting level,740299,Other Income,09-May-2012,206702-CR,551.00,REDACTED - PAYMENT TO INDIVIDUAL
Adults Wellbeing and Health,Head of Adults,052760,OP Management,Summary reporting level,720047,Fees and Charges,09-May-2012,206728-R,691.49,REDACTED - PAYMENT TO INDIVIDUAL
Adults Wellbeing and Health,Head of Adults,052760,OP Management,Supplies and Services,338045,Services,09-May-2012,206738-189863,750.00,MR NICHOLAS STONOR.
Adults Wellbeing and Health,Head of Adults,052760,OP Management,Summary reporting level,720045,Fees and Charges,09-May-2012,206748-R,"1,836.00",REDACTED - PAYMENT TO INDIVIDUAL
Adults Wellbeing and Health,Head of Adults,052628,Affective Disorders MH (CIT) South,Transport,230005,Contract Hire,09-May-2012,2443676-454,"1,140.00",AC TAXIS.
Adults Wellbeing and Health,Head of Adults,052766,HIV/AIDS,Supplies and Services,338099,Services,09-May-2012,2443701-201205,"1,303.50",BLUE SKY TRUST.
Adults Wellbeing and Health,Head of Adults,052766,HIV/AIDS,Supplies and Services,338099,Services,09-May-2012,2443701-201206,"1,402.50",BLUE SKY TRUST.
Adults Wellbeing and Health,Head of Adults,052354,West Locality LD Team,Transport,230005,Contract Hire,09-May-2012,2443765-54,765.50,ELITE TAXIS.
Adults Wellbeing and Health,Head of Adults,053740,Feryemount Residential Home,Premises,145023,Cleaning and Domestic Supplies,09-May-2012,2443795-08/325837,551.25,GREENHAM TRADING LTD.
Adults Wellbeing and Health,Head of Adults,052354,West Locality LD Team,Transport,230005,Contract Hire,09-May-2012,2443802-61,"1,292.00",HORNDALE AJ`S TAXIS.
Adults Wellbeing and Health,Head of Adults,052554,East Locality LD Team,Transport,230005,Contract Hire,09-May-2012,2443804-012,520.00,I CLYDESDALE T/A BURNOPFIELD TAXIS.
Adults Wellbeing and Health,Head of Adults,057605,LD Supported Housing - Sedgefield,Supplies and Services,384616,Miscellaneous Expenses,09-May-2012,2443810-2012/05,691.28,ISOS HOUSING LTD FORMERLY NOMADE5 HOUSING GROUP LTD.
Adults Wellbeing and Health,Head of Adults,052554,East Locality LD Team,Transport,230005,Contract Hire,09-May-2012,2443816-38,660.00,JDS PRIVATE HIRE.
Adults Wellbeing and Health,Head of Adults,051604,OP/PD Integrated Team - Durham City West,Transport,230005,Contract Hire,09-May-2012,2443816-39,986.00,JDS PRIVATE HIRE.
Adults Wellbeing and Health,Head of Adults,051615,OP/PDIntermediate Care Sedgefield,Transport,230005,Contract Hire,09-May-2012,2443816-41,"1,020.00",JDS PRIVATE HIRE.
Adults Wellbeing and Health,Head of Adults,051603,OP/PD Integrated Team - Durham City East,Transport,230005,Contract Hire,09-May-2012,2443816-42,"1,318.00",JDS PRIVATE HIRE.
Adults Wellbeing and Health,Head of Adults,053705,Newtown House Residential Home,Supplies and Services,324117,Provisions,09-May-2012,2443826-K83499,685.50,JR HOLLAND FOOD SERVICES LTD.
Adults Wellbeing and Health,Head of Adults,052354,West Locality LD Team,Transport,230005,Contract Hire,09-May-2012,2443861-00455,"1,501.00",MICHAELS TRAVEL.
Adults Wellbeing and Health,Head of Adults,052354,West Locality LD Team,Transport,230005,Contract Hire,09-May-2012,2443861-00456,"1,425.00",MICHAELS TRAVEL.
Adults Wellbeing and Health,Head of Adults,051615,OP/PDIntermediate Care Sedgefield,Transport,230005,Contract Hire,09-May-2012,2443867-31APR12,846.00,MOLLYS TAXIS.
Adults Wellbeing and Health,Head of Adults,051602,OP/PD Integrated Team - Derwentside East,Transport,230005,Contract Hire,09-May-2012,2443867-32APR12,"1,280.00",MOLLYS TAXIS.
Adults Wellbeing and Health,Head of Adults,052354,West Locality LD Team,Transport,230005,Contract Hire,09-May-2012,2443871-PA/4/12,608.00,MR J AGAR T/A PARK TAXIS.
Adults Wellbeing and Health,Head of Adults,052354,West Locality LD Team,Transport,230005,Contract Hire,09-May-2012,2443871-SU/4/12,680.00,MR J AGAR T/A PARK TAXIS.
Adults Wellbeing and Health,Head of Adults,052554,East Locality LD Team,Transport,230005,Contract Hire,09-May-2012,2443872-0110412,990.00,MR JOHN CHISHOLM.
Adults Wellbeing and Health,Head of Adults,055848,Pace Shop LD Day Care,Premises,120009,Energy Costs,09-May-2012,2443901-79910215800-20/04/2012,"1,506.19",NPOWER.
Adults Wellbeing and Health,Head of Adults,055846,Empower 2 LD Day Care,Premises,125009,Rents,09-May-2012,2443918-0242,"1,500.00",PELTON FELL COMMUNITY PARTNERSHIP.
Adults Wellbeing and Health,Head of Adults,052554,East Locality LD Team,Transport,230005,Contract Hire,09-May-2012,2443930-697,720.00,PODA LTD.
Adults Wellbeing and Health,Head of Adults,052354,West Locality LD Team,Transport,230005,Contract Hire,09-May-2012,2443955-00033,"2,174.00",S & S TRAVEL LTD.
Adults Wellbeing and Health,Head of Adults,052760,OP Management,Supplies and Services,384919,Miscellaneous Expenses,09-May-2012,2443958-EP,"1,914.88",REDACTED - PAYMENT TO INDIVIDUAL
Adults Wellbeing and Health,Head of Adults,052554,East Locality LD Team,Transport,230005,Contract Hire,09-May-2012,2443985-NCSAS042012,"1,210.00",STUARTS TAXIS.
Adults Wellbeing and Health,Head of Adults,052354,West Locality LD Team,Transport,230005,Contract Hire,09-May-2012,2443989-416APR12,"2,375.00",T MOORE & SON.
Adults Wellbeing and Health,Head of Adults,052554,East Locality LD Team,Employees,080025,Agency Staff,09-May-2012,2443995-430021907,"4,149.13",TEES ESK & WEAR VALLEY NHS FOUNDATION TRUST.
Adults Wellbeing and Health,Head of Adults,052854,LD Review Team,Employees,080025,Agency Staff,09-May-2012,2443995-430021908,"1,036.36",TEES ESK & WEAR VALLEY NHS FOUNDATION TRUST.
Adults Wellbeing and Health,Planning and Performance,052920,Taining-Ind. and Vol. Sector Prog.,Supplies and Services,352001,Conference Expenses,09-May-2012,2443913-036,"2,500.00",PATTINSON & MILBURN TRAINING LTD.
Adults Wellbeing and Health,Social Inclusion,056650,LMAP - SNU - Area 3,Supplies and Services,384199,Miscellaneous Expenses,09-May-2012,2443757-20009226,"2,000.00",DURHAM POLICE AUTHORITY.
Adults Wellbeing and Health,Social Inclusion,054604,Spennymoor Seven Hills - LLC,Premises,120021,Energy Costs,09-May-2012,2443808-5377,"3,791.10",IMPALA ESTATES LTD.
Assistant Chief Executive,Partnerships & Community Engagement Div.,060660,Members Initiative Fund,Supplies and Services,384085,Miscellaneous Expenses,09-May-2012,206656-BAIA06-12BAIB05-12HENS05-12,900.00,CHESTER LE STREET & DISTRICT ATHLETICS CLUB.
Assistant Chief Executive,Partnerships & Community Engagement Div.,060660,Members Initiative Fund,Supplies and Services,384085,Miscellaneous Expenses,09-May-2012,206660-ZAIS02-12,500.00,COCKTON HILL BOWLING CLUB.
Assistant Chief Executive,Partnerships & Community Engagement Div.,060435,Community Buildings,Transfer Payments,525030,Other,09-May-2012,206663-G,"3,500.00",COXHOE VILLAGE HALL ASSOCIATION.
Assistant Chief Executive,Partnerships & Community Engagement Div.,060660,Members Initiative Fund,Supplies and Services,384085,Miscellaneous Expenses,09-May-2012,206791-FARD01-12,500.00,SEDGEFIELD & DISTRICT CITIZENS ADVICE BUREAU.
Assistant Chief Executive,Partnerships & Community Engagement Div.,060435,Community Buildings,Transfer Payments,525030,Other,09-May-2012,206793-G,"3,500.00",SHERBURN COMMUNITY ASSOCIATION.
Assistant Chief Executive,Partnerships & Community Engagement Div.,060435,Community Buildings,Transfer Payments,525030,Other,09-May-2012,2443704-G,819.00,BOWES & GILMONBY VILLAGE HALL ASSOCIATION.
Assistant Chief Executive,Partnerships & Community Engagement Div.,060435,Community Buildings,Transfer Payments,525030,Other,09-May-2012,2443733-G,"1,120.00",COPLEY VILLAGE HALL ASSOCIATION.
Assistant Chief Executive,Partnerships & Community Engagement Div.,060661,Members Neighbourhood Fund,Supplies and Services,384086,Miscellaneous Expenses,09-May-2012,2443797-EDUR047-NB11,"10,000.00",GROUNDWORK NORTH EAST.
Assistant Chief Executive,Partnerships & Community Engagement Div.,060435,Community Buildings,Transfer Payments,525030,Other,09-May-2012,2443839-CBG,"3,500.00",LAUREL AVENUE COMMUNITY ASSOCIATION.
Assistant Chief Executive,Partnerships & Community Engagement Div.,060661,Members Neighbourhood Fund,Cap Exp on Grants & Other Financial Assistance (REFCUS),918004,Contributions to other bodies,09-May-2012,2443974-EDUR045-NB11,"3,007.00",SOUTH HETTON & DISTRICT COMMUNITY ASSOCIATION.
Assistant Chief Executive,Partnerships & Community Engagement Div.,060435,Community Buildings,Transfer Payments,525030,Other,09-May-2012,2444026-CBG,"1,011.00",WEARHEAD VILLAGE HALL ASSOCIATION.
Assistant Chief Executive,Partnerships & Community Engagement Div.,060435,Community Buildings,Transfer Payments,525030,Other,09-May-2012,2444028-G,"1,151.00",WHORLTON VILLAGE COMMUNITY ASSOCIATION.
Assistant Chief Executive,Partnerships & Community Engagement Div.,060531,Internal Projects - Crook Willington and Tow Law AAP,Supplies and Services,384700,Miscellaneous Expenses,09-May-2012,2444030-3TWN02,500.00,WILLINGTON COMMUNITY ACTION.
Assistant Chief Executive,Planning & Performance Division,060120,Research,Supplies and Services,372009,Subscriptions,09-May-2012,2443806-105272233,"2,156.72",IBM UNITED KINGDOM LTD.
Children and Young Peoples Services,CYPS - Local Authority,077800,Special Schools General-LA,Transport,230007,Contract Hire,09-May-2012,206654-1APR12,"1,900.00",REDACTED - PAYMENT TO INDIVIDUAL
Children and Young Peoples Services,CYPS - Local Authority,072361,Kirk Merrington Primary,Construction Work,908105,Construction work,09-May-2012,206693-INV2311-30/4/12,600.00,FIND IT FIRST.
Children and Young Peoples Services,CYPS - Local Authority,085917,Children In Need-Listening to Child,Supplies and Services,332029,"Printing, Stationery and Gen Off Exps",09-May-2012,206703-1363,630.00,GRAPHIC PRINT.
Children and Young Peoples Services,CYPS - Local Authority,070132,Sport Secondary CPD,Supplies and Services,338027,Services,09-May-2012,206789-233,"1,050.00",S MORETON.
Children and Young Peoples Services,CYPS - Local Authority,077030,Windlestone Hall School,Transport,230007,Contract Hire,09-May-2012,2443669-041203,777.00,24/7 TAXI SERVICES LTD.
Children and Young Peoples Services,CYPS - Local Authority,077000,The Meadows School,Transport,230007,Contract Hire,09-May-2012,2443669-041204,759.00,24/7 TAXI SERVICES LTD.
Children and Young Peoples Services,CYPS - Local Authority,077029,Glen Dene School,Transport,230007,Contract Hire,09-May-2012,2443669-041207,"1,300.00",24/7 TAXI SERVICES LTD.
Children and Young Peoples Services,CYPS - Local Authority,077029,Glen Dene School,Transport,230007,Contract Hire,09-May-2012,2443669-041209,720.00,24/7 TAXI SERVICES LTD.
Children and Young Peoples Services,CYPS - Local Authority,085123,Children In Need Team Durham,Transport,230005,Contract Hire,09-May-2012,2443670-478-LP,808.00,TONYS TAXIS (A BIRCH).
Children and Young Peoples Services,CYPS - Local Authority,077014,Walworth School,Transport,230007,Contract Hire,09-May-2012,2443682-197502,825.00,ALANS CABS.
Children and Young Peoples Services,CYPS - Local Authority,089031,Duke Of Edinburgh Award,Supplies and Services,338035,Services,09-May-2012,2443692-0000048979,912.50,AWARD SCHEME LTD.
Children and Young Peoples Services,CYPS - Local Authority,077013,Hare Law School,Transport,230007,Contract Hire,09-May-2012,2443696-327,681.12,BEELINE MINI BUSES.
Children and Young Peoples Services,CYPS - Local Authority,079012,Lang Unit-Cheveley Pk-Transport,Transport,230007,Contract Hire,09-May-2012,2443696-328,"1,148.80",BEELINE MINI BUSES.
Children and Young Peoples Services,CYPS - Local Authority,077028,Villa Real School,Transport,230007,Contract Hire,09-May-2012,2443697-S/1A12,976.68,BEELINE PRIVATE HIRE.
Children and Young Peoples Services,CYPS - Local Authority,077032,Trinity SEN Centre,Transport,230007,Contract Hire,09-May-2012,2443697-S2A12,685.00,BEELINE PRIVATE HIRE.
Children and Young Peoples Services,CYPS - Local Authority,077014,Walworth School,Transport,230007,Contract Hire,09-May-2012,2443697-S/312,"1,235.00",BEELINE PRIVATE HIRE.
Children and Young Peoples Services,CYPS - Local Authority,077800,Special Schools General-LA,Transport,230007,Contract Hire,09-May-2012,2443697-S/4A12,"1,100.00",BEELINE PRIVATE HIRE.
Children and Young Peoples Services,CYPS - Local Authority,085145,Children In Need Team Spennymoor,Supplies and Services,364340,Grants to Voluntary Organisations,09-May-2012,2443700-3468,620.00,BISHOP AUCKLAND COMMUNITY PARTNERSHIP.
Children and Young Peoples Services,CYPS - Local Authority,085200,Investing in Children,Premises,150005,Apportioned Exps of Operational Blds,09-May-2012,2443705-3503,"22,500.00",BRADLEY HALL CHARTERED SURVEYORS.
Children and Young Peoples Services,CYPS - Local Authority,071498,Childrens Centres Sustainability,Transfer Payments,510032,School Children,09-May-2012,2443712-F,"10,000.00",BURNHOPE FIRST CLASS CHILDCARE LTD.
Children and Young Peoples Services,CYPS - Local Authority,073521,Stephenson Way Community Primary,Fees,901002,Professional Fees,09-May-2012,2443717-92309855,690.00,CAPITA SYMONDS LTD.
Children and Young Peoples Services,CYPS - Local Authority,085383,Recruitment and Specialist,Employees,080025,Agency Staff,09-May-2012,2443731-516098,"160,237.24",COMENSURA LTD.
